Workbook

Sheet Results
A1: Soil Lab, Geological Survey of Israel
A2: Particle Size Analysis by laser diffraction, Instrument: Mastersizer 2000
A3: Aviv Lee Zada
A4: Sample description: dune sand
A5: Samples ID's: [4446-4454]
A8: Particle | C8: ='raw files'!C1 -> [4446] Chile_NN3 bulk - a - Average | J8: Particle | L8: ='raw files'!I1 -> [4447] NN4 bulk - a - Average | S8: Particle | U8: ='raw files'!O1 -> [4448] Chile_NN6 bulk - c - Average | AB8: Particle | AD8: ='raw files'!V1 -> [4449] Chile_NN9 bulk - a - Average | AK8: Particle | AM8: ='raw files'!AB1 -> [4450] CNN-12 bulk - a - Average | AT8: Particle | AV8: ='raw files'!AH1 -> [4450a] CNN-12 bulk - a - Average | BC8: Particle | BE8: ='raw files'!AN1 -> [4451] Chile_CNN_11 bulk - b - Average | BL8: Particle | BN8: ='raw files'!AT1 -> [4452] Chile_CNN_10 bulk - a - Average | BU8: Particle | BW8: ='raw files'!AZ1 -> [4453] Chile_Amboy_1 bulk - c - Average | CC8: Particle | CE8: ='raw files'!BF1 -> [4454] Amboy 3 bulk - a - Average
A9: Diameter | C9: Differential Volume (%) | J9: Diameter | L9: Differential Volume (%) | S9: Diameter | U9: Differential Volume (%) | AB9: Diameter | AD9: Differential Volume (%) | AK9: Diameter | AM9: Differential Volume (%) | AT9: Diameter | AV9: Differential Volume (%) | BC9: Diameter | BE9: Differential Volume (%) | BL9: Diameter | BN9: Differential Volume (%) | BU9: Diameter | BW9: Differential Volume (%) | CC9: Diameter | CE9: Differential Volume (%)
A10: Range (mm) | B10: Size Class | C10: Rep. 1 | D10: Rep. 2 | E10: Rep. 3 | F10: Average | G10: SE | J10: Range (mm) | K10: Size Class | L10: Rep. 1 | M10: Rep. 2 | N10: Rep. 3 | O10: Average | P10: SE | S10: Range (mm) | T10: Size Class | U10: Rep. 1 | V10: Rep. 2 | W10: Rep. 3 | X10: Average | Y10: SE | AB10: Range (mm) | AC10: Size Class | AD10: Rep. 1 | AE10: Rep. 2 | AF10: Rep. 3 | AG10: Average | AH10: SE | AK10: Range (mm) | AL10: Size Class | AM10: Rep. 1 | AN10: Rep. 2 | AO10: Rep. 3 | AP10: Average | AQ10: SE | AT10: Range (mm) | AU10: Size Class | AV10: Rep. 1 | AW10: Rep. 2 | AX10: Rep. 3 | AY10: Average | AZ10: SE | BC10: Range (mm) | BD10: Size Class | BE10: Rep. 1 | BF10: Rep. 2 | BG10: Rep. 3 | BH10: Average | BI10: SE | BL10: Range (mm) | BM10: Size Class | BN10: Rep. 1 | BO10: Rep. 2 | BP10: Rep. 3 | BQ10: Average | BR10: SE | BT10: Range (mm) | BU10: Size Class | BV10: Rep. 1 | BW10: Rep. 2 | BX10: Rep. 3 | BY10: Average | BZ10: SE | CC10: Range (mm) | CD10: Size Class | CE10: Rep. 1 | CF10: Rep. 2 | CG10: Rep. 3 | CH10: Average | CI10: SE
A11: < 6 | B11: Clay | C11: ='raw files'!C13 -> 1.725 | D11: ='raw files'!D13 -> 1.036 | E11: ='raw files'!E13 -> 0 | F11: =AVERAGE(C11:E11) -> 0.9203333333 | G11: =(STDEV(C11:E11))/SQRT(3) -> 0.5013117238 | J11: < 6 | K11: Clay | L11: ='raw files'!I13 -> 0.546 | M11: ='raw files'!J13 -> 1.579 | N11: ='raw files'!K13 -> 1.83 | O11: =AVERAGE(L11,N11) -> 1.188 | P11: =(STDEV(L11:N11))/SQRT(3) -> 0.3929055583 | S11: < 6 | T11: Clay | U11: ='raw files'!O13 -> 0.433 | V11: ='raw files'!P13 -> 0 | W11: ='raw files'!Q13 -> 0.108 | X11: =AVERAGE(U11:W11) -> 0.1803333333 | Y11: =(STDEV(U11:W11))/SQRT(3) -> 0.1301234457 | AB11: < 6 | AC11: Clay | AD11: ='raw files'!V13 -> 0 | AE11: ='raw files'!W13 -> 0.195 | AF11: ='raw files'!X13 -> 0.388 | AG11: =AVERAGE(AD11:AF11) -> 0.1943333333 | AH11: =(STDEV(AD11:AF11))/SQRT(3) -> 0.1120064482 | AK11: < 6 | AL11: Clay | AM11: ='raw files'!AB13 -> 0.838 | AN11: ='raw files'!AC13 -> 1.073 | AO11: ='raw files'!AD13 -> 1.328 | AP11: =AVERAGE(AM11:AO11) -> 1.079666667 | AQ11: =(STDEV(AM11:AO11))/SQRT(3) -> 0.141490086 | AT11: < 6 | AU11: Clay | AV11: ='raw files'!AH13 -> 0.899 | AW11: ='raw files'!AI13 -> 1.158 | AX11: ='raw files'!AJ13 -> 1.53 | AY11: =AVERAGE(AV11:AX11) -> 1.195666667 | AZ11: =(STDEV(AV11:AX11))/SQRT(3) -> 0.1831250332 | BC11: < 6 | BD11: Clay | BE11: ='raw files'!AN13 -> 0 | BF11: ='raw files'!AO13 -> 0 | BG11: ='raw files'!AP13 -> 0 | BH11: =AVERAGE(BE11:BG11) -> 0 | BI11: =(STDEV(BE11:BG11))/SQRT(3) -> 0 | BL11: < 6 | BM11: Clay | BN11: ='raw files'!AT13 -> 0 | BO11: ='raw files'!AU13 -> 0 | BP11: ='raw files'!AV13 -> 0.136 | BQ11: =AVERAGE(BN11:BP11) -> 0.04533333333 | BR11: =(STDEV(BN11:BP11))/SQRT(3) -> 0.04533333333 | BT11: < 6 | BU11: Clay | BV11: ='raw files'!AZ13 -> 2.709 | BW11: ='raw files'!BA13 -> 3.179 | BX11: ='raw files'!BB13 -> 3.928 | BY11: =AVERAGE(BV11:BX11) -> 3.272 | BZ11: =(STDEV(BV11:BX11))/SQRT(3) -> 0.3549539876 | CC11: < 6 | CD11: Clay | CE11: ='raw files'!BF13 -> 19.054 | CF11: ='raw files'!BG13 -> 18.564 | CG11: ='raw files'!BH13 -> 19.235 | CH11: =AVERAGE(CE11:CG11) -> 18.951 | CI11: =(STDEV(CE11:CG11))/SQRT(3) -> 0.2004303703
A12: 6 - 63 | B12: Silt | C12: ='raw files'!C14 -> 2.999 | D12: ='raw files'!D14 -> 2.338 | E12: ='raw files'!E14 -> 1.478 | F12: =AVERAGE(C12:E12) -> 2.271666667 | G12: =(STDEV(C12:E12))/SQRT(3) -> 0.4403257632 | J12: 6 - 63 | K12: Silt | L12: ='raw files'!I14 -> 1.702 | M12: ='raw files'!J14 -> 3.006 | N12: ='raw files'!K14 -> 3.296 | O12: =AVERAGE(L12,N12) -> 2.499 | P12: =(STDEV(L12:N12))/SQRT(3) -> 0.4902013192 | S12: 6 - 63 | T12: Silt | U12: ='raw files'!O14 -> 1.867 | V12: ='raw files'!P14 -> 0.648 | W12: ='raw files'!Q14 -> 1.148 | X12: =AVERAGE(U12:W12) -> 1.221 | Y12: =(STDEV(U12:W12))/SQRT(3) -> 0.3537828901 | AB12: 6 - 63 | AC12: Silt | AD12: ='raw files'!V14 -> 0.506 | AE12: ='raw files'!W14 -> 0.767 | AF12: ='raw files'!X14 -> 1.11 | AG12: =AVERAGE(AD12:AF12) -> 0.7943333333 | AH12: =(STDEV(AD12:AF12))/SQRT(3) -> 0.1748945714 | AK12: 6 - 63 | AL12: Silt | AM12: ='raw files'!AB14 -> 1.97 | AN12: ='raw files'!AC14 -> 2.29 | AO12: ='raw files'!AD14 -> 2.467 | AP12: =AVERAGE(AM12:AO12) -> 2.242333333 | AQ12: =(STDEV(AM12:AO12))/SQRT(3) -> 0.1454376537 | AT12: 6 - 63 | AU12: Silt | AV12: ='raw files'!AH14 -> 4.143 | AW12: ='raw files'!AI14 -> 4.728 | AX12: ='raw files'!AJ14 -> 5.46 | AY12: =AVERAGE(AV12:AX12) -> 4.777 | AZ12: =(STDEV(AV12:AX12))/SQRT(3) -> 0.3809737524 | BC12: 6 - 63 | BD12: Silt | BE12: ='raw files'!AN14 -> 0 | BF12: ='raw files'!AO14 -> 0 | BG12: ='raw files'!AP14 -> 0 | BH12: =AVERAGE(BE12:BG12) -> 0 | BI12: =(STDEV(BE12:BG12))/SQRT(3) -> 0 | BL12: 6 - 63 | BM12: Silt | BN12: ='raw files'!AT14 -> 0.096 | BO12: ='raw files'!AU14 -> 0 | BP12: ='raw files'!AV14 -> 0.318 | BQ12: =AVERAGE(BN12:BP12) -> 0.138 | BR12: =(STDEV(BN12:BP12))/SQRT(3) -> 0.09417005894 | BT12: 6 - 63 | BU12: Silt | BV12: ='raw files'!AZ14 -> 7.67 | BW12: ='raw files'!BA14 -> 8.176 | BX12: ='raw files'!BB14 -> 10.491 | BY12: =AVERAGE(BV12:BX12) -> 8.779 | BZ12: =(STDEV(BV12:BX12))/SQRT(3) -> 0.8683733836 | CC12: 6 - 63 | CD12: Silt | CE12: ='raw files'!BF14 -> 48.353 | CF12: ='raw files'!BG14 -> 44.245 | CG12: ='raw files'!BH14 -> 47.73 | CH12: =AVERAGE(CE12:CG12) -> 46.776 | CI12: =(STDEV(CE12:CG12))/SQRT(3) -> 1.278215292
A13: 63 - 2000 | B13: Sand | C13: ='raw files'!C15 -> 95.276 | D13: ='raw files'!D15 -> 96.626 | E13: ='raw files'!E15 -> 98.522 | F13: 96.808 | G13: =(STDEV(C13:E13))/SQRT(3) -> 0.9414478212 | J13: 63 - 2000 | K13: Sand | L13: ='raw files'!I15 -> 97.752 | M13: ='raw files'!J15 -> 95.415 | N13: ='raw files'!K15 -> 94.875 | O13: 96.3135 | P13: =(STDEV(L13:N13))/SQRT(3) -> 0.8828708852 | S13: 63 - 2000 | T13: Sand | U13: ='raw files'!O15 -> 97.699 | V13: ='raw files'!P15 -> 99.352 | W13: ='raw files'!Q15 -> 98.744 | X13: 98.59833333 | Y13: =(STDEV(U13:W13))/SQRT(3) -> 0.482706375 | AB13: 63 - 2000 | AC13: Sand | AD13: ='raw files'!V15 -> 99.494 | AE13: ='raw files'!W15 -> 99.038 | AF13: ='raw files'!X15 -> 98.502 | AG13: 99.01133333 | AH13: =(STDEV(AD13:AF13))/SQRT(3) -> 0.2866759688 | AK13: 63 - 2000 | AL13: Sand | AM13: ='raw files'!AB15 -> 97.191 | AN13: ='raw files'!AC15 -> 96.637 | AO13: ='raw files'!AD15 -> 96.204 | AP13: 96.67733333 | AQ13: 0.2856351597 | AT13: 63 - 2000 | AU13: Sand | AV13: ='raw files'!AH15 -> 94.958 | AW13: ='raw files'!AI15 -> 94.114 | AX13: ='raw files'!AJ15 -> 93.01 | AY13: 94.02733333 | AZ13: 0.5640063041 | BC13: 63 - 2000 | BD13: Sand | BE13: ='raw files'!AN15 -> 100 | BF13: ='raw files'!AO15 -> 100 | BG13: ='raw files'!AP15 -> 100 | BH13: 100 | BI13: =(STDEV(BE13:BG13))/SQRT(3) -> 0 | BL13: 63 - 2000 | BM13: Sand | BN13: ='raw files'!AT15 -> 99.904 | BO13: ='raw files'!AU15 -> 100 | BP13: ='raw files'!AV15 -> 99.546 | BQ13: 99.81666667 | BR13: 0.1381416342 | BT13: 63 - 2000 | BU13: Sand | BV13: ='raw files'!AZ15 -> 89.621 | BW13: ='raw files'!BA15 -> 88.645 | BX13: ='raw files'!BB15 -> 85.581 | BY13: 87.949 | BZ13: =(STDEV(BV13:BX13))/SQRT(3) -> 1.217060941 | CC13: 63 - 2000 | CD13: Sand | CE13: ='raw files'!BF15 -> 32.592 | CF13: ='raw files'!BG15 -> 37.19 | CG13: ='raw files'!BH15 -> 33.035 | CH13: 34.27233333 | CI13: =(STDEV(CE13:CG13))/SQRT(3) -> 1.464427799
A14: 63 - 125 | B14: VF Sand | C14: ='raw files'!C16 -> 10.462 | D14: ='raw files'!D16 -> 10.518 | E14: ='raw files'!E16 -> 11.602 | F14: 10.86066667 | G14: 0.3710190172 | J14: 63 - 125 | K14: VF Sand | L14: ='raw files'!I16 -> 9.039 | M14: ='raw files'!J16 -> 13.03 | N14: ='raw files'!K16 -> 14.422 | O14: 11.7305 | P14: 1.613182397 | S14: 63 - 125 | T14: VF Sand | U14: ='raw files'!O16 -> 8.861 | V14: ='raw files'!P16 -> 7.691 | W14: ='raw files'!Q16 -> 8.423 | X14: 8.325 | Y14: 0.341285804 | AB14: 63 - 125 | AC14: VF Sand | AD14: ='raw files'!V16 -> 2.91 | AE14: ='raw files'!W16 -> 3.38 | AF14: ='raw files'!X16 -> 3.995 | AG14: 3.428333333 | AH14: 0.3141434563 | AK14: 63 - 125 | AL14: VF Sand | AM14: ='raw files'!AB16 -> 5.248 | AN14: ='raw files'!AC16 -> 5.304 | AO14: ='raw files'!AD16 -> 5.275 | AP14: 5.275666667 | AQ14: 0.01616924378 | AT14: 63 - 125 | AU14: VF Sand | AV14: ='raw files'!AH16 -> 8.899 | AW14: ='raw files'!AI16 -> 10.293 | AX14: ='raw files'!AJ16 -> 10.103 | AY14: 9.765 | AZ14: 0.436460002 | BC14: 63 - 125 | BD14: VF Sand | BE14: ='raw files'!AN16 -> 0.417 | BF14: ='raw files'!AO16 -> 1.67 | BG14: ='raw files'!AP16 -> 0.736 | BH14: =AVERAGE(BE14:BG14) -> 0.941 | BI14: =(STDEV(BE14:BG14))/SQRT(3) -> 0.3759525679 | BL14: 63 - 125 | BM14: VF Sand | BN14: ='raw files'!AT16 -> 1.68 | BO14: ='raw files'!AU16 -> 2.111 | BP14: ='raw files'!AV16 -> 1.009 | BQ14: =AVERAGE(BN14:BP14) -> 1.6 | BR14: =(STDEV(BN14:BP14))/SQRT(3) -> 0.3206249107 | BT14: 63 - 125 | BU14: VF Sand | BV14: ='raw files'!AZ16 -> 14.867 | BW14: ='raw files'!BA16 -> 13.363 | BX14: ='raw files'!BB16 -> 16.429 | BY14: 14.88633333 | BZ14: 0.8851307499 | CC14: 63 - 125 | CD14: VF Sand | CE14: ='raw files'!BF16 -> 18.355 | CF14: ='raw files'!BG16 -> 16.437 | CG14: ='raw files'!BH16 -> 18.989 | CH14: 17.927 | CI14: 0.7671514409
A15: 125 - 250 | B15: F Sand | C15: ='raw files'!C17 -> 44.176 | D15: ='raw files'!D17 -> 48.675 | E15: ='raw files'!E17 -> 46.393 | F15: 46.41466667 | G15: 1.298794612 | J15: 125 - 250 | K15: F Sand | L15: ='raw files'!I17 -> 33.241 | M15: ='raw files'!J17 -> 40.007 | N15: ='raw files'!K17 -> 45.022 | O15: 39.1315 | P15: 3.413380062 | S15: 125 - 250 | T15: F Sand | U15: ='raw files'!O17 -> 23.208 | V15: ='raw files'!P17 -> 23.07 | W15: ='raw files'!Q17 -> 23.841 | X15: 23.373 | Y15: 0.2373668048 | AB15: 125 - 250 | AC15: F Sand | AD15: ='raw files'!V17 -> 22.974 | AE15: ='raw files'!W17 -> 23.607 | AF15: ='raw files'!X17 -> 26.507 | AG15: 24.36266667 | AH15: 1.087626825 | AK15: 125 - 250 | AL15: F Sand | AM15: ='raw files'!AB17 -> 10.614 | AN15: ='raw files'!AC17 -> 9.971 | AO15: ='raw files'!AD17 -> 9.909 | AP15: 10.16466667 | AQ15: 0.2253784472 | AT15: 125 - 250 | AU15: F Sand | AV15: ='raw files'!AH17 -> 16.937 | AW15: ='raw files'!AI17 -> 20.593 | AX15: ='raw files'!AJ17 -> 18.966 | AY15: 18.832 | AZ15: 1.057520843 | BC15: 125 - 250 | BD15: F Sand | BE15: ='raw files'!AN17 -> 2.596 | BF15: ='raw files'!AO17 -> 7.501 | BG15: ='raw files'!AP17 -> 4.067 | BH15: =AVERAGE(BE15:BG15) -> 4.721333333 | BI15: =(STDEV(BE15:BG15))/SQRT(3) -> 1.453257299 | BL15: 125 - 250 | BM15: F Sand | BN15: ='raw files'!AT17 -> 5.275 | BO15: ='raw files'!AU17 -> 8.198 | BP15: ='raw files'!AV17 -> 3.223 | BQ15: 5.565333333 | BR15: 1.44347686 | BT15: 125 - 250 | BU15: F Sand | BV15: ='raw files'!AZ17 -> 30.858 | BW15: ='raw files'!BA17 -> 26.165 | BX15: ='raw files'!BB17 -> 27.664 | BY15: 28.229 | BZ15: 1.38389318 | CC15: 125 - 250 | CD15: F Sand | CE15: ='raw files'!BF17 -> 9.071 | CF15: ='raw files'!BG17 -> 8.253 | CG15: ='raw files'!BH17 -> 9.544 | CH15: 8.956 | CI15: 0.3770892909
A16: 250 - 500 | B16: M Sand | C16: ='raw files'!C18 -> 25.883 | D16: ='raw files'!D18 -> 27.917 | E16: ='raw files'!E18 -> 21.943 | F16: 25.24766667 | G16: 1.753558794 | J16: 250 - 500 | K16: M Sand | L16: ='raw files'!I18 -> 24.107 | M16: ='raw files'!J18 -> 23.661 | N16: ='raw files'!K18 -> 24.219 | O16: 24.163 | P16: 0.1704282188 | S16: 250 - 500 | T16: M Sand | U16: ='raw files'!O18 -> 21.749 | V16: ='raw files'!P18 -> 19.118 | W16: ='raw files'!Q18 -> 19.561 | X16: 20.14266667 | Y16: 0.8132839466 | AB16: 250 - 500 | AC16: M Sand | AD16: ='raw files'!V18 -> 35.196 | AE16: ='raw files'!W18 -> 32.477 | AF16: ='raw files'!X18 -> 36.288 | AG16: 34.65366667 | AH16: 1.133067273 | AK16: 250 - 500 | AL16: M Sand | AM16: ='raw files'!AB18 -> 10.603 | AN16: ='raw files'!AC18 -> 12.601 | AO16: ='raw files'!AD18 -> 11.917 | AP16: 11.707 | AQ16: 0.5862525053 | AT16: 250 - 500 | AU16: M Sand | AV16: ='raw files'!AH18 -> 15.475 | AW16: ='raw files'!AI18 -> 18.032 | AX16: ='raw files'!AJ18 -> 17.755 | AY16: 17.08733333 | AZ16: 0.810122693 | BC16: 250 - 500 | BD16: M Sand | BE16: ='raw files'!AN18 -> 9.774 | BF16: ='raw files'!AO18 -> 9.668 | BG16: ='raw files'!AP18 -> 8.09 | BH16: 9.177333333 | BI16: 0.5445271139 | BL16: 250 - 500 | BM16: M Sand | BN16: ='raw files'!AT18 -> 9.161 | BO16: ='raw files'!AU18 -> 11.281 | BP16: ='raw files'!AV18 -> 8.442 | BQ16: 9.628 | BR16: 0.8521633255 | BT16: 250 - 500 | BU16: M Sand | BV16: ='raw files'!AZ18 -> 32.241 | BW16: ='raw files'!BA18 -> 31.907 | BX16: ='raw files'!BB18 -> 30.429 | BY16: 31.52566667 | BZ16: 0.556745703 | CC16: 250 - 500 | CD16: M Sand | CE16: ='raw files'!BF18 -> 3.52 | CF16: ='raw files'!BG18 -> 3.83 | CG16: ='raw files'!BH18 -> 3.419 | CH16: 3.589666667 | CI16: 0.1236531888
A17: 500 - 1000 | B17: C Sand | C17: ='raw files'!C19 -> 8.266 | D17: ='raw files'!D19 -> 6.081 | E17: ='raw files'!E19 -> 7.939 | F17: 7.428666667 | G17: 0.6804131915 | J17: 500 - 1000 | K17: C Sand | L17: ='raw files'!I19 -> 18.974 | M17: ='raw files'!J19 -> 11.987 | N17: ='raw files'!K19 -> 7.094 | O17: 13.034 | P17: 3.4471729 | S17: 500 - 1000 | T17: C Sand | U17: ='raw files'!O19 -> 28.275 | V17: ='raw files'!P19 -> 27.605 | W17: ='raw files'!Q19 -> 27.333 | X17: 27.73766667 | Y17: 0.2799055396 | AB17: 500 - 1000 | AC17: C Sand | AD17: ='raw files'!V19 -> 27.589 | AE17: ='raw files'!W19 -> 27.2 | AF17: ='raw files'!X19 -> 23.593 | AG17: 26.12733333 | AH17: 1.272132636 | AK17: 500 - 1000 | AL17: C Sand | AM17: ='raw files'!AB19 -> 37.805 | AN17: ='raw files'!AC19 -> 39.682 | AO17: ='raw files'!AD19 -> 38.761 | AP17: 38.74933333 | AQ17: 0.5418746267 | AT17: 500 - 1000 | AU17: C Sand | AV17: ='raw files'!AH19 -> 30.996 | AW17: ='raw files'!AI19 -> 27.287 | AX17: ='raw files'!AJ19 -> 27.849 | AY17: 28.71066667 | AZ17: 1.154126269 | BC17: 500 - 1000 | BD17: C Sand | BE17: ='raw files'!AN19 -> 43 | BF17: ='raw files'!AO19 -> 39.384 | BG17: ='raw files'!AP19 -> 41.327 | BH17: 41.237 | BI17: 1.044818804 | BL17: 500 - 1000 | BM17: C Sand | BN17: ='raw files'!AT19 -> 41.801 | BO17: ='raw files'!AU19 -> 38.847 | BP17: ='raw files'!AV19 -> 43.393 | BQ17: 41.347 | BR17: 1.331805291 | BT17: 500 - 1000 | BU17: C Sand | BV17: ='raw files'!AZ19 -> 10.978 | BW17: ='raw files'!BA19 -> 15.424 | BX17: ='raw files'!BB19 -> 10.962 | BY17: 12.45466667 | BZ17: 1.484673851 | CC17: 500 - 1000 | CD17: C Sand | CE17: ='raw files'!BF19 -> 1.645 | CF17: ='raw files'!BG19 -> 6.098 | CG17: ='raw files'!BH19 -> 1.082 | CH17: 2.941666667 | CI17: 1.586513193
A18: 1000 - 2000 | B18: VC Sand | C18: ='raw files'!C20 -> 6.488 | D18: ='raw files'!D20 -> 3.435 | E18: ='raw files'!E20 -> 10.645 | F18: 6.856 | G18: 2.089465083 | J18: 1000 - 2000 | K18: VC Sand | L18: ='raw files'!I20 -> 12.392 | M18: ='raw files'!J20 -> 6.73 | N18: ='raw files'!K20 -> 4.117 | O18: 8.2545 | P18: 2.442239842 | S18: 1000 - 2000 | T18: VC Sand | U18: ='raw files'!O20 -> 15.606 | V18: ='raw files'!P20 -> 21.869 | W18: ='raw files'!Q20 -> 19.586 | X18: 19.02033333 | Y18: 1.829961414 | AB18: 1000 - 2000 | AC18: VC Sand | AD18: ='raw files'!V20 -> 10.825 | AE18: ='raw files'!W20 -> 12.374 | AF18: ='raw files'!X20 -> 8.119 | AG18: 10.43933333 | AH18: 1.24335706 | AK18: 1000 - 2000 | AL18: VC Sand | AM18: ='raw files'!AB20 -> 32.922 | AN18: ='raw files'!AC20 -> 29.079 | AO18: ='raw files'!AD20 -> 30.343 | AP18: 30.78133333 | AQ18: 1.1308204 | AT18: 1000 - 2000 | AU18: VC Sand | AV18: ='raw files'!AH20 -> 22.652 | AW18: ='raw files'!AI20 -> 17.909 | AX18: ='raw files'!AJ20 -> 18.337 | AY18: 19.63266667 | AZ18: 1.514714091 | BC18: 1000 - 2000 | BD18: VC Sand | BE18: ='raw files'!AN20 -> 44.213 | BF18: ='raw files'!AO20 -> 41.778 | BG18: ='raw files'!AP20 -> 45.781 | BH18: 43.924 | BI18: 1.164566157 | BL18: 1000 - 2000 | BM18: VC Sand | BN18: ='raw files'!AT20 -> 41.987 | BO18: ='raw files'!AU20 -> 39.563 | BP18: ='raw files'!AV20 -> 43.479 | BQ18: 41.67633333 | BR18: 1.141073958 | BT18: 1000 - 2000 | BU18: VC Sand | BV18: ='raw files'!AZ20 -> 0.677 | BW18: ='raw files'!BA20 -> 1.787 | BX18: ='raw files'!BB20 -> 0.098 | BY18: 0.854 | BZ18: 0.4955391004 | CC18: 1000 - 2000 | CD18: VC Sand | CE18: ='raw files'!BF20 -> 0 | CF18: ='raw files'!BG20 -> 2.572 | CG18: ='raw files'!BH20 -> 0 | CH18: 0.8573333333 | CI18: 0.8573333333
D19: Textural Class: | F19: ='Texture Calculator'!N4 -> SAND | M19: Textural Class: | O19: ='Texture Calculator'!N5 -> SAND | V19: Textural Class: | W19: ='Texture Calculator'!N6 -> SAND | AE19: Textural Class: | AF19: ='Texture Calculator'!N7 -> SAND | AM19: Textural Class: | AO19: ='Texture Calculator'!N8 -> SAND | AV19: Textural Class: | AX19: ='Texture Calculator'!N9 -> SAND | BE19: Textural Class: | BG19: ='Texture Calculator'!N10 -> SAND | BM19: Textural Class: | BO19: ='Texture Calculator'!N11 -> SAND | BV19: Textural Class: | BX19: ='Texture Calculator'!N12 -> SAND | CD19: Textural Class: | CF19: ='Texture Calculator'!N13 -> LOAM
D20: avg mode: | F20: =AVERAGE('raw files'!C6:E6) -> 197.958 | M20: avg mode: | O20: =AVERAGE('raw files'!I6:K6) -> 192.707 | V20: avg mode: | X20: =AVERAGE('raw files'!O6:Q6) -> 864.3996667 | AE20: avg mode: | AG20: =AVERAGE('raw files'!V6:W6) -> 326.3005 | AM20: avg mode: | AO20: =AVERAGE('raw files'!AF6:AH6) -> 899.898 | AV20: avg mode: | AX20: =AVERAGE('raw files'!AH6:AJ6) -> 863.805 | BE20: avg mode: | BG20: =AVERAGE('raw files'!AN6:AP6) -> 1073.109 | BM20: avg mode: | BO20: =AVERAGE('raw files'!AU6:AV6) -> 1050.7295 | BV20: avg mode: | BX20: =AVERAGE('raw files'!AZ6:BB6) -> 290.4386667 | CE20: avg mode: | CG20: =AVERAGE('raw files'!BF6:BH6) -> 78.09966667
R31: Clay | S31: Silt
Q32: 0 | R32: 6 | S32: 63
Q33: 16 | R33: 6 | S33: 63
A70: # lab | B70: total weight (gr) | C70: >2mm weight (gr)
A71: 4415 | B71: 10.947 | C71: 0.665
A72: 4416 | B72: 88.929 | C72: 21.414
A73: 4419 | B73: 8.536 | C73: 0.658
A74: 4420 | B74: 86.884 | C74: 5.086
A75: 4424 | B75: 98.031 | C75: 3.921
A76: 4428 | B76: 96.982 | C76: 17.028
A77: 4428 | B77: 77.745 | C77: 9.919
A78: 4429 | B78: 111.033 | C78: 3.517
A79: 4433 | B79: 50.493 | C79: 28.961
A80: 4434 | B80: 70.075 | C80: 30.188
A81: 4435 | B81: 97.981 | C81: 41.111
A82: 4436 | B82: 70.891 | C82: 44.57
A83: 4437 | B83: 78.118 | C83: 0.968
A84: 4439 | B84: 65.536 | C84: 23.669
A85: 4440 | B85: 105.363 | C85: 24.613
A86: 4441 | B86: 78.715 | C86: 6.356
A87: 4445 | B87: 110.97 | C87: 55.33
A88: 4450 | B88: 67.57 | C88: 7.8
A89: 4451 | B89: 85.799 | C89: 11.29
A90: 4454 | B90: 90 | C90: 33.616
A91: 4427a | B91: 105.277 | C91: 4.52
A92: 4433a | B92: 94.379 | C92: 21.16
A93: 4450a | B93: 73.308 | C93: 45.371

Sheet Texture Calculator
B1: Enter your data into the yellow highlighted cells | I1: Password = Texture
B3: Sand | D3: Clay | F3: Silt | H3: USDA Texture
A4: 4446 | B4: % Sand 1 | C4: =Results!$F$13/100 -> 0.96808 | D4: %Clay 1 | E4: =Results!$F$11/100 -> 0.009203333333 | F4: % Silt 1 | G4: =1-C4-E4 -> 0.02271666667 | H4: =GRAIN(C4,E4,G4) -> SAND | N4: =H4 -> SAND
A5: 4447 | B5: % Sand 2 | C5: =Results!$O$13/100 -> 0.963135 | D5: %Clay 2 | E5: =Results!$O$11/100 -> 0.01188 | F5: % Silt 2 | G5: =1-C5-E5 -> 0.024985 | H5: =GRAIN(C5,E5,G5) -> SAND | N5: =H5 -> SAND
A6: 4448 | B6: % Sand 3 | C6: =Results!$X$13/100 -> 0.9859833333 | D6: %Clay 3 | E6: =Results!X11/100 -> 0.001803333333 | F6: % Silt 3 | G6: =1-C6-E6 -> 0.01221333333 | H6: SAND | N6: =H6 -> SAND
A7: 4449 | B7: % Sand 4 | C7: =Results!$AG$13/100 -> 0.9901133333 | D7: %Clay 4 | E7: =Results!$AG$11/100 -> 0.001943333333 | F7: % Silt 4 | G7: =1-C7-E7 -> 0.007943333333 | H7: =GRAIN(C7,E7,G7) -> SAND | N7: =H7 -> SAND
A8: 4450 | B8: % Sand 5 | C8: =Results!$AP$13/100 -> 0.9667733333 | D8: %Clay 5 | E8: =Results!$AP$11/100 -> 0.01079666667 | F8: % Silt 5 | G8: =1-C8-E8 -> 0.02243 | H8: =GRAIN(C8,E8,G8) -> SAND | N8: =H8 -> SAND
A9: 4450a | B9: % Sand 6 | C9: =Results!$AY$13/100 -> 0.9402733333 | D9: %Clay 6 | E9: =Results!$AY$11/100 -> 0.01195666667 | F9: % Silt 6 | G9: =1-C9-E9 -> 0.04777 | H9: =GRAIN(C9,E9,G9) -> SAND | N9: SAND
A10: 4451 | B10: % Sand 7 | C10: =Results!$BH$13/100 -> 1 | D10: %Clay 7 | E10: =Results!$BH$11/100 -> 0 | F10: % Silt 7 | G10: 0 | H10: SAND | N10: SAND
A11: 4452 | B11: % Sand 8 | C11: =Results!$BQ$13/100 -> 0.9981666667 | D11: %Clay 8 | E11: =Results!$BQ$11/100 -> 0.0004533333333 | F11: % Silt 8 | G11: =1-C11-E11 -> 0.00138 | H11: =GRAIN(C11,E11,G11) -> SAND | N11: SAND
A12: 4453 | B12: % Sand 9 | C12: =Results!$BY$13/100 -> 0.87949 | D12: %Clay 9 | E12: =Results!$BY$11/100 -> 0.03272 | F12: % Silt 9 | G12: 0.08779 | H12: SAND | N12: SAND
A13: 4454 | B13: % Sand 11 | C13: =Results!$CH$13/100 -> 0.3427233333 | D13: %Clay 11 | E13: =Results!$CH$11/100 -> 0.18951 | F13: % Silt 11 | G13: =1-C13-E13 -> 0.4677666667 | H13: =GRAIN(C13,E13,G13) -> LOAM | N13: LOAM
B14: % Sand 12 | C14: =Results!#REF!/100 ->  | D14: %Clay 12 | E14: =Results!#REF!/100 ->  | F14: % Silt 12
B15: % Sand 13 | C15: =Results!#REF!/100 ->  | D15: %Clay 13 | E15: =Results!#REF!/100 ->  | F15: % Silt 13
B16: % Sand 14 | C16: =Results!#REF!/100 ->  | D16: %Clay 14 | E16: =Results!#REF!/100 ->  | F16: % Silt 14
B17: % Sand 15 | C17: =Results!#REF!/100 ->  | D17: %Clay 15 | E17: =Results!#REF!/100 ->  | F17: % Silt 15
B18: % Sand 16 | C18: =Results!#REF!/100 ->  | D18: %Clay 16 | E18: =Results!#REF!/100 ->  | F18: % Silt 16 | G18: =1-C18-E18 ->  | H18: =GRAIN(C18,E18,G18) -> 
B19: % Sand 17 | C19: =Results!#REF!/100 ->  | D19: %Clay 17 | E19: =Results!#REF!/100 ->  | F19: % Silt 17 | G19: =1-C19-E19 ->  | H19: =GRAIN(C19,E19,G19) -> 
B20: % Sand 18 | C20: =Results!#REF!/100 ->  | D20: %Clay 18 | E20: =Results!#REF!/100 ->  | F20: % Silt 18 | G20: =1-C20-E20 ->  | H20: =GRAIN(C20,E20,G20) -> 
B21: % Sand 19 | C21: =Results!#REF!/100 ->  | D21: %Clay 19 | E21: =Results!#REF!/100 ->  | F21: % Silt 19
B22: % Sand 20 | C22: =Results!#REF!/100 ->  | D22: %Clay 20 | E22: =Results!#REF!/100 ->  | F22: % Silt 20 | H22: =GRAIN(C22,E22,G22) -> 
B23: % Sand 21 | C23: =Results!#REF!/100 ->  | D23: %Clay 21 | E23: =Results!#REF!/100 ->  | F23: % Silt 21 | G23: =1-C23-E23 ->  | H23: =GRAIN(C23,E23,G23) -> 
B24: % Sand 22 | C24: =Results!#REF!/100 ->  | D24: %Clay 22 | E24: =Results!#REF!/100 ->  | F24: % Silt 22
B25: % Sand 23 | C25: =Results!#REF!/100 ->  | D25: %Clay 23 | E25: =Results!#REF!/100 ->  | F25: % Silt 23
B26: % Sand 24 | C26: =Results!#REF!/100 ->  | D26: %Clay 24 | E26: =Results!#REF!/100 ->  | F26: % Silt 24 | G26: =1-C26-E26 ->  | H26: =GRAIN(C26,E26,G26) -> 
B27: % Sand 25 | C27: =Results!#REF!/100 ->  | D27: %Clay 25 | E27: =Results!#REF!/100 ->  | F27: % Silt 25 | G27: =1-C27-E27 ->  | H27: =GRAIN(C27,E27,G27) -> 
B28: % Sand 26 | C28: =Results!#REF!/100 ->  | D28: %Clay 26 | E28: =Results!#REF!/100 ->  | F28: % Silt 26
B29: % Sand 27 | C29: =Results!#REF!/100 ->  | D29: %Clay 27 | E29: =Results!#REF!/100 ->  | F29: % Silt 27
B30: % Sand 28 | C30: =Results!#REF!/100 ->  | D30: %Clay 28 | E30: =Results!#REF!/100 ->  | F30: % Silt 28 | G30: =1-C30-E30 ->  | H30: =GRAIN(C30,E30,G30) -> 
B31: % Sand 29 | C31: =Results!#REF!/100 ->  | D31: %Clay 29 | E31: =Results!#REF!/100 ->  | F31: % Silt 29
B32: % Sand 30 | C32: =Results!#REF!/100 ->  | D32: %Clay 30 | E32: =Results!#REF!/100 ->  | F32: % Silt 30
B33: % Sand 31 | C33: =Results!#REF!/100 ->  | D33: %Clay 31 | E33: =Results!#REF!/100 ->  | F33: % Silt 31
B34: % Sand 32 | C34: =Results!#REF!/100 ->  | D34: %Clay 32 | E34: =Results!#REF!/100 ->  | F34: % Silt 32 | H34: =GRAIN(C34,E34,G34) -> 
B35: % Sand 33 | C35: =Results!#REF!/100 ->  | D35: %Clay 33 | E35: =Results!#REF!/100 ->  | F35: % Silt 33
B36: % Sand 34 | C36: =Results!#REF!/100 ->  | D36: %Clay 34 | E36: =Results!#REF!/100 ->  | F36: % Silt 34 | G36: =1-C36-E36 ->  | H36: =GRAIN(C36,E36,G36) -> 
D40: =A4 -> 4446 | E40: =(1.095-(C4*0.0104*100))-((0.52)*(0.0099*E4*100)) -> 0.083458924 | F40: =0.145+(0.0099*E4*100) -> 0.1541113
D41: 4447 | E41: 0.087223776 | F41: 0.1567612
D42: 4448 | E42: 0.06864897733 | F42: 0.1467853
D43: 4449 | E43: 0.06428170533 | F43: 0.1469239
D44: 4450 | E44: 0.08399760933 | F44: 0.1556887
D45: 4450a | E45: 0.1109604413 | F45: 0.1568371
D46: 4451 | E46: 0.055 | F46: 0.145
D47: 4452 | E47: 0.05667329067 | F47: 0.1454488
D48: =A12 -> 4453 | E48: 0.163486144 | F48: 0.1773928
D49: 4454 | E49: =(1.095-(C13*0.0104*100))-((0.52)*(0.0099*E13*100)) -> 0.6410079853 | F49: =0.145+(0.0099*E13*100) -> 0.3326149
E53: 0.525
E54: 1.04

Sheet raw files
A1: Sample Name | C1: [4446] Chile_NN3 bulk - a - Average | D1: [4446] Chile_NN3 bulk - b - Average | E1: [4446] Chile_NN3 bulk - c - Average | G1: Sample Name | I1: [4447] NN4 bulk - a - Average | J1: [4447] NN4 bulk - b - Average | K1: [4447] NN4 bulk - c - Average | M1: Sample Name | O1: [4448] Chile_NN6 bulk - c - Average | P1: [4448] Chile_NN6 bulk - e - Average | Q1: [4448] Chile_NN6 bulk - g - Average | T1: Sample Name | V1: [4449] Chile_NN9 bulk - a - Average | W1: [4449] Chile_NN9 bulk - c - Average | X1: [4449] Chile_NN9 bulk - d - Average | Z1: Sample Name | AB1: [4450] CNN-12 bulk - a - Average | AC1: [4450] CNN-12 bulk - b - Average | AD1: [4450] CNN-12 bulk - c - Average | AF1: Sample Name | AH1: [4450a] CNN-12 bulk - a - Average | AI1: [4450a] CNN-12 bulk - b - Average | AJ1: [4450a] CNN-12 bulk - e+f new Averaged Result | AL1: Sample Name | AN1: [4451] Chile_CNN_11 bulk - b - Average | AO1: [4451] Chile_CNN_11 bulk - d - Average | AP1: [4451] Chile_CNN_11 bulk - e - Average | AR1: Sample Name | AT1: [4452] Chile_CNN_10 bulk - a - Average | AU1: [4452] Chile_CNN_10 bulk - b - Average | AV1: [4452] Chile_CNN_10 bulk - c - Average | AX1: Sample Name | AZ1: [4453] Chile_Amboy_1 bulk - c - Average | BA1: [4453] Chile_Amboy_1 bulk - d - Average | BB1: [4453] Chile_Amboy_1 bulk - f - Average | BD1: Sample Name | BF1: [4454] Amboy 3 bulk - a - Average | BG1: [4454] Amboy 3 bulk - b - Average | BH1: [4454] Amboy 3 bulk - c+d new Averaged Result
A2: Analysis date and time | C2: éåí ùðé 26 àåâåñè 2019 13:39:40 | D2: éåí ùðé 26 àåâåñè 2019 13:47:28 | E2: éåí ùðé 26 àåâåñè 2019 13:56:49 | G2: Analysis date and time | I2: éåí øáéòé 04 ñôèîáø 2019 10:53:48 | J2: éåí øáéòé 04 ñôèîáø 2019 11:04:56 | K2: éåí øáéòé 04 ñôèîáø 2019 11:07:59 | M2: Analysis date and time | O2: éåí ùðé 26 àåâåñè 2019 14:24:27 | P2: éåí ùðé 26 àåâåñè 2019 14:48:54 | Q2: éåí ùðé 26 àåâåñè 2019 15:06:02 | T2: Analysis date and time | V2: éåí ùðé 26 àåâåñè 2019 15:20:07 | W2: éåí ùðé 26 àåâåñè 2019 15:32:47 | X2: éåí ùðé 26 àåâåñè 2019 15:44:40 | Z2: Analysis date and time | AB2: éåí øáéòé 04 ñôèîáø 2019 11:37:19 | AC2: éåí øáéòé 04 ñôèîáø 2019 11:45:42 | AD2: éåí øáéòé 04 ñôèîáø 2019 11:58:47 | AF2: Analysis date and time | AH2: éåí øáéòé 04 ñôèîáø 2019 12:18:06 | AI2: éåí øáéòé 04 ñôèîáø 2019 12:22:06 | AJ2: éåí øáéòé 04 ñôèîáø 2019 12:43:05 | AL2: Analysis date and time | AN2: éåí ùðé 26 àåâåñè 2019 16:37:51 | AO2: éåí ùðé 26 àåâåñè 2019 16:52:24 | AP2: éåí ùðé 26 àåâåñè 2019 17:31:58 | AR2: Analysis date and time | AT2: éåí ùðé 26 àåâåñè 2019 15:56:42 | AU2: éåí ùðé 26 àåâåñè 2019 16:03:52 | AV2: éåí ùðé 26 àåâåñè 2019 16:15:31 | AX2: Analysis date and time | AZ2: éåí øàùåï 01 ñôèîáø 2019 14:26:28 | BA2: éåí øàùåï 01 ñôèîáø 2019 14:40:14 | BB2: éåí øàùåï 01 ñôèîáø 2019 15:05:38 | BD2: Analysis date and time | BF2: éåí øáéòé 04 ñôèîáø 2019 09:52:12 | BG2: éåí øáéòé 04 ñôèîáø 2019 09:55:55 | BH2: éåí øáéòé 04 ñôèîáø 2019 10:02:51
A3: Operator name | C3: Sadimentary | D3: Sadimentary | E3: Sadimentary | G3: Operator name | I3: Yael | J3: Yael | K3: Yael | M3: Operator name | O3: Sadimentary | P3: Sadimentary | Q3: Sadimentary | T3: Operator name | V3: Sadimentary | W3: Sadimentary | X3: Sadimentary | Z3: Operator name | AB3: Yael | AC3: Yael | AD3: Yael | AF3: Operator name | AH3: Yael | AI3: Yael | AJ3: Yael | AL3: Operator name | AN3: Sadimentary | AO3: Sadimentary | AP3: Sadimentary | AR3: Operator name | AT3: Sadimentary | AU3: Sadimentary | AV3: Sadimentary | AX3: Operator name | AZ3: Yael | BA3: Yael | BB3: Yael | BD3: Operator name | BF3: Yael | BG3: Yael | BH3: Yael
A4: Obscuration | C4: 12.07 | D4: 11.14 | E4: 10.71 | G4: Obscuration | I4: 8.67 | J4: 8.5 | K4: 8.34 | M4: Obscuration | O4: 10.29 | P4: 11.91 | Q4: 11.5 | T4: Obscuration | V4: 7.89 | W4: 8.81 | X4: 8.07 | Z4: Obscuration | AB4: 7.09 | AC4: 9.23 | AD4: 12.76 | AF4: Obscuration | AH4: 11.67 | AI4: 10.91 | AJ4: 8.17 | AL4: Obscuration | AN4: 9.83 | AO4: 9.33 | AP4: 10.04 | AR4: Obscuration | AT4: 7.68 | AU4: 9.96 | AV4: 7.59 | AX4: Obscuration | AZ4: 10.47 | BA4: 12.56 | BB4: 10.01 | BD4: Obscuration | BF4: 11.12 | BG4: 10.92 | BH4: 10.63
A5: Residual | C5: 0.635 | D5: 0.644 | E5: 0.705 | G5: Residual | I5: 0.562 | J5: 0.604 | K5: 0.597 | M5: Residual | O5: 0.664 | P5: 0.847 | Q5: 0.81 | T5: Residual | V5: 0.592 | W5: 0.728 | X5: 0.573 | Z5: Residual | AB5: 1.84 | AC5: 1.389 | AD5: 1.263 | AF5: Residual | AH5: 1.047 | AI5: 0.799 | AJ5: 0.785 | AL5: Residual | AN5: 2.441 | AO5: 1.915 | AP5: 2.64 | AR5: Residual | AT5: 1.796 | AU5: 1.84 | AV5: 2.188 | AX5: Residual | AZ5: 0.221 | BA5: 0.209 | BB5: 0.234 | BD5: Residual | BF5: 0.498 | BG5: 0.414 | BH5: 0.477
A6: Mode | C6: 200.101 | D6: 200.408 | E6: 193.365 | G6: Mode | I6: 199.31 | J6: 189.572 | K6: 189.239 | M6: Mode | O6: 751.7 | P6: 949.939 | Q6: 891.56 | T6: Mode | V6: 346.135 | W6: 306.466 | X6: 303 | Z6: Mode | AB6: 977.435 | AC6: 897.229 | AD6: 927.61 | AF6: Mode | AH6: 899.898 | AI6: 847.058 | AJ6: 844.459 | AL6: Mode | AN6: 1064.684 | AO6: 1067.469 | AP6: 1087.174 | AR6: Mode | AT6: 1045.828 | AU6: 1058.29 | AV6: 1043.169 | AX6: Mode | AZ6: 266.93 | BA6: 310.915 | BB6: 293.471 | BD6: Mode | BF6: 77.27 | BG6: 76.861 | BH6: 80.168
A7: Skewness | C7: 2.442 | D7: 3.148 | E7: 2.046 | G7: Skewness | I7: 1.438 | J7: 2.112 | K7: 2.83 | M7: Skewness | O7: 1.015 | P7: 0.805 | Q7: 0.886 | T7: Skewness | V7: 1.389 | W7: 1.295 | X7: 1.612 | Z7: Skewness | AB7: 0.242 | AC7: 0.337 | AD7: 0.301 | AF7: Skewness | AH7: 0.646 | AI7: 0.894 | AJ7: 0.853 | AL7: Skewness | AN7: 0.248 | AO7: 0.133 | AP7: 0.136 | AR7: Skewness | AT7: 0.16 | AU7: 0.186 | AV7: 0.179 | AX7: Skewness | AZ7: 1.473 | BA7: 1.588 | BB7: 1.008 | BD7: Skewness | BF7: 3.514 | BG7: 3.258 | BH7: 3.214
A8: Kurtosis | C8: 6.067 | D8: 11.845 | E8: 3.34 | G8: Kurtosis | I8: 1.366 | J8: 4.457 | K8: 9.194 | M8: Kurtosis | O8: 0.332 | P8: -0.319 | Q8: -0.121 | T8: Kurtosis | V8: 1.7 | W8: 1.263 | X8: 2.699 | Z8: Kurtosis | AB8: -0.721 | AC8: -0.58 | AD8: -0.642 | AF8: Kurtosis | AH8: -0.482 | AI8: -0.047 | AJ8: -0.12 | AL8: Kurtosis | AN8: -0.569 | AO8: -0.661 | AP8: -0.555 | AR8: Kurtosis | AT8: -0.562 | AU8: -0.699 | AV8: -0.479 | AX8: Kurtosis | AZ8: 3.454 | BA8: 3.907 | BB8: 0.799 | BD8: Kurtosis | BF8: 15.362 | BG8: 11.493 | BH8: 13.154
A9: d (0.1) | C9: 107.92 | D9: 113.394 | E9: 116.346 | G9: d (0.1) | I9: 120.099 | J9: 100.764 | K9: 97.061 | M9: d (0.1) | O9: 119.498 | P9: 132.935 | Q9: 126.473 | T9: d (0.1) | V9: 166.549 | W9: 159.062 | X9: 150.303 | Z9: d (0.1) | AB9: 141.791 | AC9: 136.943 | AD9: 133.398 | AF9: d (0.1) | AH9: 102.76 | AI9: 94.321 | AJ9: 87.298 | AL9: d (0.1) | AN9: 452.753 | AO9: 270.158 | AP9: 438.369 | AR9: d (0.1) | AT9: 361.653 | AU9: 243.843 | AV9: 442.696 | AX9: d (0.1) | AZ9: 60.946 | BA9: 55.397 | BB9: 41.484 | BD9: d (0.1) | BF9: 2.906 | BG9: 2.911 | BH9: 2.858
A10: d (0.5) | C10: 217.788 | D10: 211.801 | E10: 217.665 | G10: d (0.5) | I10: 281.416 | J10: 219.049 | K10: 200.801 | M10: d (0.5) | O10: 416.424 | P10: 491 | Q10: 448.966 | T10: d (0.5) | V10: 396.917 | W10: 397.585 | X10: 347.923 | Z10: d (0.5) | AB10: 777.665 | AC10: 729.19 | AD10: 742.779 | AF10: d (0.5) | AH10: 557.129 | AI10: 422.912 | AJ10: 440.403 | AL10: d (0.5) | AN10: 933.926 | AO10: 901.767 | AP10: 952.377 | AR10: d (0.5) | AT10: 906.59 | AU10: 870.477 | AV10: 926.37 | AX10: d (0.5) | AZ10: 222.342 | BA10: 245.301 | BB10: 206.989 | BD10: d (0.5) | BF10: 29.888 | BG10: 35.032 | BH10: 30.114
A11: d (0.9) | C11: 751.679 | D11: 484.207 | E11: 1034.326 | G11: d (0.9) | I11: 1091.199 | J11: 823.734 | K11: 549.604 | M11: d (0.9) | O11: 1171.667 | P11: 1317.757 | Q11: 1269.269 | T11: d (0.9) | V11: 1029.858 | W11: 1082.74 | X11: 921.081 | Z11: d (0.9) | AB11: 1442.931 | AC11: 1393.094 | AD11: 1412.114 | AF11: d (0.9) | AH11: 1318.067 | AI11: 1230.466 | AJ11: 1239.961 | AL11: d (0.9) | AN11: 1544.253 | AO11: 1526.934 | AP11: 1553.622 | AR11: d (0.9) | AT11: 1526.174 | AU11: 1512.171 | AV11: 1534.606 | AX11: d (0.9) | AZ11: 526.984 | BA11: 620.609 | BB11: 516.365 | BD11: d (0.9) | BF11: 156.645 | BG11: 411.241 | BH11: 152.733
A12: Specific surface area | C12: 0.0923 | D12: 0.0556 | E12: 0.0318 | G12: Specific surface area | I12: 0.0377 | J12: 0.0792 | K12: 0.0937 | M12: Specific surface area | O12: 0.0326 | P12: 0.021 | Q12: 0.0245 | T12: Specific surface area | V12: 0.0193 | W12: 0.0232 | X12: 0.0301 | Z12: Specific surface area | AB12: 0.0401 | AC12: 0.0486 | AD12: 0.0625 | AF12: Specific surface area | AH12: 0.0473 | AI12: 0.0615 | AJ12: 0.0785 | AL12: Specific surface area | AN12: 0.00817 | AO12: 0.0102 | AP12: 0.00852 | AR12: Specific surface area | AT12: 0.00984 | AU12: 0.0109 | AV12: 0.012 | AX12: Specific surface area | AZ12: 0.13 | BA12: 0.149 | BB12: 0.182 | BD12: Specific surface area | BF12: 0.798 | BG12: 0.783 | BH12: 0.808
A13: Result Below 6.000 µm | C13: 1.725 | D13: 1.036 | E13: 0 | G13: Result Below 6.000 µm | I13: 0.546 | J13: 1.579 | K13: 1.83 | M13: Result Below 6.000 µm | O13: 0.433 | P13: 0 | Q13: 0.108 | T13: Result Below 6.000 µm | V13: 0 | W13: 0.195 | X13: 0.388 | Z13: Result Below 6.000 µm | AB13: 0.838 | AC13: 1.073 | AD13: 1.328 | AF13: Result Below 6.000 µm | AH13: 0.899 | AI13: 1.158 | AJ13: 1.53 | AL13: Result Below 6.000 µm | AN13: 0 | AO13: 0 | AP13: 0 | AR13: Result Below 6.000 µm | AT13: 0 | AU13: 0 | AV13: 0.136 | AX13: Result Below 6.000 µm | AZ13: 2.709 | BA13: 3.179 | BB13: 3.928 | BD13: Result Below 6.000 µm | BF13: 19.054 | BG13: 18.564 | BH13: 19.235
A14: Result 6.00µm-63.00µm | C14: 2.999 | D14: 2.338 | E14: 1.478 | G14: Result 6.00µm-63.00µm | I14: 1.702 | J14: 3.006 | K14: 3.296 | M14: Result 6.00µm-63.00µm | O14: 1.867 | P14: 0.648 | Q14: 1.148 | T14: Result 6.00µm-63.00µm | V14: 0.506 | W14: 0.767 | X14: 1.11 | Z14: Result 6.00µm-63.00µm | AB14: 1.97 | AC14: 2.29 | AD14: 2.467 | AF14: Result 6.00µm-63.00µm | AH14: 4.143 | AI14: 4.728 | AJ14: 5.46 | AL14: Result 6.00µm-63.00µm | AN14: 0 | AO14: 0 | AP14: 0 | AR14: Result 6.00µm-63.00µm | AT14: 0.096 | AU14: 0 | AV14: 0.318 | AX14: Result 6.00µm-63.00µm | AZ14: 7.67 | BA14: 8.176 | BB14: 10.491 | BD14: Result 6.00µm-63.00µm | BF14: 48.353 | BG14: 44.245 | BH14: 47.73
A15: Result 63.00µm-2000.00µm | C15: 95.276 | D15: 96.626 | E15: 98.522 | G15: Result 63.00µm-2000.00µm | I15: 97.752 | J15: 95.415 | K15: 94.875 | M15: Result 63.00µm-2000.00µm | O15: 97.699 | P15: 99.352 | Q15: 98.744 | T15: Result 63.00µm-2000.00µm | V15: 99.494 | W15: 99.038 | X15: 98.502 | Z15: Result 63.00µm-2000.00µm | AB15: 97.191 | AC15: 96.637 | AD15: 96.204 | AF15: Result 63.00µm-2000.00µm | AH15: 94.958 | AI15: 94.114 | AJ15: 93.01 | AL15: Result 63.00µm-2000.00µm | AN15: 100 | AO15: 100 | AP15: 100 | AR15: Result 63.00µm-2000.00µm | AT15: 99.904 | AU15: 100 | AV15: 99.546 | AX15: Result 63.00µm-2000.00µm | AZ15: 89.621 | BA15: 88.645 | BB15: 85.581 | BD15: Result 63.00µm-2000.00µm | BF15: 32.592 | BG15: 37.19 | BH15: 33.035
A16: Result 63.00µm-125.00µm | C16: 10.462 | D16: 10.518 | E16: 11.602 | G16: Result 63.00µm-125.00µm | I16: 9.039 | J16: 13.03 | K16: 14.422 | M16: Result 63.00µm-125.00µm | O16: 8.861 | P16: 7.691 | Q16: 8.423 | T16: Result 63.00µm-125.00µm | V16: 2.91 | W16: 3.38 | X16: 3.995 | Z16: Result 63.00µm-125.00µm | AB16: 5.248 | AC16: 5.304 | AD16: 5.275 | AF16: Result 63.00µm-125.00µm | AH16: 8.899 | AI16: 10.293 | AJ16: 10.103 | AL16: Result 63.00µm-125.00µm | AN16: 0.417 | AO16: 1.67 | AP16: 0.736 | AR16: Result 63.00µm-125.00µm | AT16: 1.68 | AU16: 2.111 | AV16: 1.009 | AX16: Result 63.00µm-125.00µm | AZ16: 14.867 | BA16: 13.363 | BB16: 16.429 | BD16: Result 63.00µm-125.00µm | BF16: 18.355 | BG16: 16.437 | BH16: 18.989
A17: Result 125.00µm-250.00µm | C17: 44.176 | D17: 48.675 | E17: 46.393 | G17: Result 125.00µm-250.00µm | I17: 33.241 | J17: 40.007 | K17: 45.022 | M17: Result 125.00µm-250.00µm | O17: 23.208 | P17: 23.07 | Q17: 23.841 | T17: Result 125.00µm-250.00µm | V17: 22.974 | W17: 23.607 | X17: 26.507 | Z17: Result 125.00µm-250.00µm | AB17: 10.614 | AC17: 9.971 | AD17: 9.909 | AF17: Result 125.00µm-250.00µm | AH17: 16.937 | AI17: 20.593 | AJ17: 18.966 | AL17: Result 125.00µm-250.00µm | AN17: 2.596 | AO17: 7.501 | AP17: 4.067 | AR17: Result 125.00µm-250.00µm | AT17: 5.275 | AU17: 8.198 | AV17: 3.223 | AX17: Result 125.00µm-250.00µm | AZ17: 30.858 | BA17: 26.165 | BB17: 27.664 | BD17: Result 125.00µm-250.00µm | BF17: 9.071 | BG17: 8.253 | BH17: 9.544
A18: Result 250.00µm-500.00µm | C18: 25.883 | D18: 27.917 | E18: 21.943 | G18: Result 250.00µm-500.00µm | I18: 24.107 | J18: 23.661 | K18: 24.219 | M18: Result 250.00µm-500.00µm | O18: 21.749 | P18: 19.118 | Q18: 19.561 | T18: Result 250.00µm-500.00µm | V18: 35.196 | W18: 32.477 | X18: 36.288 | Z18: Result 250.00µm-500.00µm | AB18: 10.603 | AC18: 12.601 | AD18: 11.917 | AF18: Result 250.00µm-500.00µm | AH18: 15.475 | AI18: 18.032 | AJ18: 17.755 | AL18: Result 250.00µm-500.00µm | AN18: 9.774 | AO18: 9.668 | AP18: 8.09 | AR18: Result 250.00µm-500.00µm | AT18: 9.161 | AU18: 11.281 | AV18: 8.442 | AX18: Result 250.00µm-500.00µm | AZ18: 32.241 | BA18: 31.907 | BB18: 30.429 | BD18: Result 250.00µm-500.00µm | BF18: 3.52 | BG18: 3.83 | BH18: 3.419
A19: Result 500.00µm-1000.00µm | C19: 8.266 | D19: 6.081 | E19: 7.939 | G19: Result 500.00µm-1000.00µm | I19: 18.974 | J19: 11.987 | K19: 7.094 | M19: Result 500.00µm-1000.00µm | O19: 28.275 | P19: 27.605 | Q19: 27.333 | T19: Result 500.00µm-1000.00µm | V19: 27.589 | W19: 27.2 | X19: 23.593 | Z19: Result 500.00µm-1000.00µm | AB19: 37.805 | AC19: 39.682 | AD19: 38.761 | AF19: Result 500.00µm-1000.00µm | AH19: 30.996 | AI19: 27.287 | AJ19: 27.849 | AL19: Result 500.00µm-1000.00µm | AN19: 43 | AO19: 39.384 | AP19: 41.327 | AR19: Result 500.00µm-1000.00µm | AT19: 41.801 | AU19: 38.847 | AV19: 43.393 | AX19: Result 500.00µm-1000.00µm | AZ19: 10.978 | BA19: 15.424 | BB19: 10.962 | BD19: Result 500.00µm-1000.00µm | BF19: 1.645 | BG19: 6.098 | BH19: 1.082
A20: Result 1000.00µm-2000.00µm | C20: 6.488 | D20: 3.435 | E20: 10.645 | G20: Result 1000.00µm-2000.00µm | I20: 12.392 | J20: 6.73 | K20: 4.117 | M20: Result 1000.00µm-2000.00µm | O20: 15.606 | P20: 21.869 | Q20: 19.586 | T20: Result 1000.00µm-2000.00µm | V20: 10.825 | W20: 12.374 | X20: 8.119 | Z20: Result 1000.00µm-2000.00µm | AB20: 32.922 | AC20: 29.079 | AD20: 30.343 | AF20: Result 1000.00µm-2000.00µm | AH20: 22.652 | AI20: 17.909 | AJ20: 18.337 | AL20: Result 1000.00µm-2000.00µm | AN20: 44.213 | AO20: 41.778 | AP20: 45.781 | AR20: Result 1000.00µm-2000.00µm | AT20: 41.987 | AU20: 39.563 | AV20: 43.479 | AX20: Result 1000.00µm-2000.00µm | AZ20: 0.677 | BA20: 1.787 | BB20: 0.098 | BD20: Result 1000.00µm-2000.00µm | BF20: 0 | BG20: 2.572 | BH20: 0
A21: Result Between User Sizes (Sizes in um) | B21: 0.01 | G21: Result Between User Sizes (Sizes in um) | H21: 0.01 | M21: Result Between User Sizes (Sizes in um) | N21: 0.01 | T21: Result Between User Sizes (Sizes in um) | U21: 0.01 | Z21: Result Between User Sizes (Sizes in um) | AA21: 0.01 | AF21: Result Between User Sizes (Sizes in um) | AG21: 0.01 | AL21: Result Between User Sizes (Sizes in um) | AM21: 0.01 | AR21: Result Between User Sizes (Sizes in um) | AS21: 0.01 | AX21: Result Between User Sizes (Sizes in um) | AY21: 0.01 | BD21: Result Between User Sizes (Sizes in um) | BE21: 0.01 | BM21: Result Between User Sizes (Sizes in um) | BN21: 4446 | BO21: 4447 | BP21: 4448 | BQ21: 4449 | BR21: 4450 | BS21: 4450a | BT21: 4451 | BU21: 4452 | BV21: 4453 | BW21: 4454
B22: 0.011482 | C22: 0 | D22: 0 | E22: 0 | H22: 0.011482 | I22: 0 | J22: 0 | K22: 0 | N22: 0.011482 | O22: 0 | P22: 0 | Q22: 0 | U22: 0.011482 | V22: 0 | W22: 0 | X22: 0 | AA22: 0.011482 | AB22: 0 | AC22: 0 | AD22: 0 | AG22: 0.011482 | AH22: 0 | AI22: 0 | AJ22: 0 | AM22: 0.011482 | AN22: 0 | AO22: 0 | AP22: 0 | AS22: 0.011482 | AT22: 0 | AU22: 0 | AV22: 0 | AY22: 0.011482 | AZ22: 0 | BA22: 0 | BB22: 0 | BE22: 0.011482 | BF22: 0 | BG22: 0 | BH22: 0 | BM22: 0.011482 | BN22: =AVERAGE(C22:E22) -> 0 | BO22: =AVERAGE(I22:K22) -> 0 | BP22: =AVERAGE(O22:Q22) -> 0 | BQ22: =AVERAGE(V22:X22) -> 0 | BR22: =AVERAGE(AB22:AD22) -> 0 | BS22: =AVERAGE(AH22:AJ22) -> 0 | BT22: =AVERAGE(AN22:AP22) -> 0 | BU22: =AVERAGE(AT22:AV22) -> 0 | BV22: =AVERAGE(AZ22:BB22) -> 0 | BW22: =AVERAGE(BF22:BH22) -> 0
B23: 0.013183 | C23: 0 | D23: 0 | E23: 0 | H23: 0.013183 | I23: 0 | J23: 0 | K23: 0 | N23: 0.013183 | O23: 0 | P23: 0 | Q23: 0 | U23: 0.013183 | V23: 0 | W23: 0 | X23: 0 | AA23: 0.013183 | AB23: 0 | AC23: 0 | AD23: 0 | AG23: 0.013183 | AH23: 0 | AI23: 0 | AJ23: 0 | AM23: 0.013183 | AN23: 0 | AO23: 0 | AP23: 0 | AS23: 0.013183 | AT23: 0 | AU23: 0 | AV23: 0 | AY23: 0.013183 | AZ23: 0 | BA23: 0 | BB23: 0 | BE23: 0.013183 | BF23: 0 | BG23: 0 | BH23: 0 | BM23: 0.013183 | BN23: =AVERAGE(C23:E23) -> 0 | BO23: =AVERAGE(I23:K23) -> 0 | BP23: =AVERAGE(O23:Q23) -> 0 | BQ23: =AVERAGE(V23:X23) -> 0 | BR23: =AVERAGE(AB23:AD23) -> 0 | BS23: =AVERAGE(AH23:AJ23) -> 0 | BT23: =AVERAGE(AN23:AP23) -> 0 | BU23: =AVERAGE(AT23:AV23) -> 0 | BV23: =AVERAGE(AZ23:BB23) -> 0 | BW23: =AVERAGE(BF23:BH23) -> 0
B24: 0.015136 | C24: 0 | D24: 0 | E24: 0 | H24: 0.015136 | I24: 0 | J24: 0 | K24: 0 | N24: 0.015136 | O24: 0 | P24: 0 | Q24: 0 | U24: 0.015136 | V24: 0 | W24: 0 | X24: 0 | AA24: 0.015136 | AB24: 0 | AC24: 0 | AD24: 0 | AG24: 0.015136 | AH24: 0 | AI24: 0 | AJ24: 0 | AM24: 0.015136 | AN24: 0 | AO24: 0 | AP24: 0 | AS24: 0.015136 | AT24: 0 | AU24: 0 | AV24: 0 | AY24: 0.015136 | AZ24: 0 | BA24: 0 | BB24: 0 | BE24: 0.015136 | BF24: 0 | BG24: 0 | BH24: 0 | BM24: 0.015136 | BN24: 0 | BO24: 0 | BP24: 0 | BQ24: 0 | BR24: 0 | BS24: 0 | BT24: 0 | BU24: 0 | BV24: 0 | BW24: 0
B25: 0.017378 | C25: 0 | D25: 0 | E25: 0 | H25: 0.017378 | I25: 0 | J25: 0 | K25: 0 | N25: 0.017378 | O25: 0 | P25: 0 | Q25: 0 | U25: 0.017378 | V25: 0 | W25: 0 | X25: 0 | AA25: 0.017378 | AB25: 0 | AC25: 0 | AD25: 0 | AG25: 0.017378 | AH25: 0 | AI25: 0 | AJ25: 0 | AM25: 0.017378 | AN25: 0 | AO25: 0 | AP25: 0 | AS25: 0.017378 | AT25: 0 | AU25: 0 | AV25: 0 | AY25: 0.017378 | AZ25: 0 | BA25: 0 | BB25: 0 | BE25: 0.017378 | BF25: 0 | BG25: 0 | BH25: 0 | BM25: 0.017378 | BN25: 0 | BO25: 0 | BP25: 0 | BQ25: 0 | BR25: 0 | BS25: 0 | BT25: 0 | BU25: 0 | BV25: 0 | BW25: 0
B26: 0.019953 | C26: 0 | D26: 0 | E26: 0 | H26: 0.019953 | I26: 0 | J26: 0 | K26: 0 | N26: 0.019953 | O26: 0 | P26: 0 | Q26: 0 | U26: 0.019953 | V26: 0 | W26: 0 | X26: 0 | AA26: 0.019953 | AB26: 0 | AC26: 0 | AD26: 0 | AG26: 0.019953 | AH26: 0 | AI26: 0 | AJ26: 0 | AM26: 0.019953 | AN26: 0 | AO26: 0 | AP26: 0 | AS26: 0.019953 | AT26: 0 | AU26: 0 | AV26: 0 | AY26: 0.019953 | AZ26: 0 | BA26: 0 | BB26: 0 | BE26: 0.019953 | BF26: 0 | BG26: 0 | BH26: 0 | BM26: 0.019953 | BN26: 0 | BO26: 0 | BP26: 0 | BQ26: 0 | BR26: 0 | BS26: 0 | BT26: 0 | BU26: 0 | BV26: 0 | BW26: 0
B27: 0.022909 | C27: 0 | D27: 0 | E27: 0 | H27: 0.022909 | I27: 0 | J27: 0 | K27: 0 | N27: 0.022909 | O27: 0 | P27: 0 | Q27: 0 | U27: 0.022909 | V27: 0 | W27: 0 | X27: 0 | AA27: 0.022909 | AB27: 0 | AC27: 0 | AD27: 0 | AG27: 0.022909 | AH27: 0 | AI27: 0 | AJ27: 0 | AM27: 0.022909 | AN27: 0 | AO27: 0 | AP27: 0 | AS27: 0.022909 | AT27: 0 | AU27: 0 | AV27: 0 | AY27: 0.022909 | AZ27: 0 | BA27: 0 | BB27: 0 | BE27: 0.022909 | BF27: 0 | BG27: 0 | BH27: 0 | BM27: 0.022909 | BN27: 0 | BO27: 0 | BP27: 0 | BQ27: 0 | BR27: 0 | BS27: 0 | BT27: 0 | BU27: 0 | BV27: 0 | BW27: 0
B28: 0.026303 | C28: 0 | D28: 0 | E28: 0 | H28: 0.026303 | I28: 0 | J28: 0 | K28: 0 | N28: 0.026303 | O28: 0 | P28: 0 | Q28: 0 | U28: 0.026303 | V28: 0 | W28: 0 | X28: 0 | AA28: 0.026303 | AB28: 0 | AC28: 0 | AD28: 0 | AG28: 0.026303 | AH28: 0 | AI28: 0 | AJ28: 0 | AM28: 0.026303 | AN28: 0 | AO28: 0 | AP28: 0 | AS28: 0.026303 | AT28: 0 | AU28: 0 | AV28: 0 | AY28: 0.026303 | AZ28: 0 | BA28: 0 | BB28: 0 | BE28: 0.026303 | BF28: 0 | BG28: 0 | BH28: 0 | BM28: 0.026303 | BN28: 0 | BO28: 0 | BP28: 0 | BQ28: 0 | BR28: 0 | BS28: 0 | BT28: 0 | BU28: 0 | BV28: 0 | BW28: 0
B29: 0.0302 | C29: 0 | D29: 0 | E29: 0 | H29: 0.0302 | I29: 0 | J29: 0 | K29: 0 | N29: 0.0302 | O29: 0 | P29: 0 | Q29: 0 | U29: 0.0302 | V29: 0 | W29: 0 | X29: 0 | AA29: 0.0302 | AB29: 0 | AC29: 0 | AD29: 0 | AG29: 0.0302 | AH29: 0 | AI29: 0 | AJ29: 0 | AM29: 0.0302 | AN29: 0 | AO29: 0 | AP29: 0 | AS29: 0.0302 | AT29: 0 | AU29: 0 | AV29: 0 | AY29: 0.0302 | AZ29: 0 | BA29: 0 | BB29: 0 | BE29: 0.0302 | BF29: 0 | BG29: 0 | BH29: 0 | BM29: 0.0302 | BN29: 0 | BO29: 0 | BP29: 0 | BQ29: 0 | BR29: 0 | BS29: 0 | BT29: 0 | BU29: 0 | BV29: 0 | BW29: 0
B30: 0.034674 | C30: 0 | D30: 0 | E30: 0 | H30: 0.034674 | I30: 0 | J30: 0 | K30: 0 | N30: 0.034674 | O30: 0 | P30: 0 | Q30: 0 | U30: 0.034674 | V30: 0 | W30: 0 | X30: 0 | AA30: 0.034674 | AB30: 0 | AC30: 0 | AD30: 0 | AG30: 0.034674 | AH30: 0 | AI30: 0 | AJ30: 0 | AM30: 0.034674 | AN30: 0 | AO30: 0 | AP30: 0 | AS30: 0.034674 | AT30: 0 | AU30: 0 | AV30: 0 | AY30: 0.034674 | AZ30: 0 | BA30: 0 | BB30: 0 | BE30: 0.034674 | BF30: 0 | BG30: 0 | BH30: 0 | BM30: 0.034674 | BN30: 0 | BO30: 0 | BP30: 0 | BQ30: 0 | BR30: 0 | BS30: 0 | BT30: 0 | BU30: 0 | BV30: 0 | BW30: 0
B31: 0.039811 | C31: 0 | D31: 0 | E31: 0 | H31: 0.039811 | I31: 0 | J31: 0 | K31: 0 | N31: 0.039811 | O31: 0 | P31: 0 | Q31: 0 | U31: 0.039811 | V31: 0 | W31: 0 | X31: 0 | AA31: 0.039811 | AB31: 0 | AC31: 0 | AD31: 0 | AG31: 0.039811 | AH31: 0 | AI31: 0 | AJ31: 0 | AM31: 0.039811 | AN31: 0 | AO31: 0 | AP31: 0 | AS31: 0.039811 | AT31: 0 | AU31: 0 | AV31: 0 | AY31: 0.039811 | AZ31: 0 | BA31: 0 | BB31: 0 | BE31: 0.039811 | BF31: 0 | BG31: 0 | BH31: 0 | BM31: 0.039811 | BN31: 0 | BO31: 0 | BP31: 0 | BQ31: 0 | BR31: 0 | BS31: 0 | BT31: 0 | BU31: 0 | BV31: 0 | BW31: 0
B32: 0.045709 | C32: 0 | D32: 0 | E32: 0 | H32: 0.045709 | I32: 0 | J32: 0 | K32: 0 | N32: 0.045709 | O32: 0 | P32: 0 | Q32: 0 | U32: 0.045709 | V32: 0 | W32: 0 | X32: 0 | AA32: 0.045709 | AB32: 0 | AC32: 0 | AD32: 0 | AG32: 0.045709 | AH32: 0 | AI32: 0 | AJ32: 0 | AM32: 0.045709 | AN32: 0 | AO32: 0 | AP32: 0 | AS32: 0.045709 | AT32: 0 | AU32: 0 | AV32: 0 | AY32: 0.045709 | AZ32: 0 | BA32: 0 | BB32: 0 | BE32: 0.045709 | BF32: 0 | BG32: 0 | BH32: 0 | BM32: 0.045709 | BN32: 0 | BO32: 0 | BP32: 0 | BQ32: 0 | BR32: 0 | BS32: 0 | BT32: 0 | BU32: 0 | BV32: 0 | BW32: 0
B33: 0.052481 | C33: 0 | D33: 0 | E33: 0 | H33: 0.052481 | I33: 0 | J33: 0 | K33: 0 | N33: 0.052481 | O33: 0 | P33: 0 | Q33: 0 | U33: 0.052481 | V33: 0 | W33: 0 | X33: 0 | AA33: 0.052481 | AB33: 0 | AC33: 0 | AD33: 0 | AG33: 0.052481 | AH33: 0 | AI33: 0 | AJ33: 0 | AM33: 0.052481 | AN33: 0 | AO33: 0 | AP33: 0 | AS33: 0.052481 | AT33: 0 | AU33: 0 | AV33: 0 | AY33: 0.052481 | AZ33: 0 | BA33: 0 | BB33: 0 | BE33: 0.052481 | BF33: 0 | BG33: 0 | BH33: 0 | BM33: 0.052481 | BN33: 0 | BO33: 0 | BP33: 0 | BQ33: 0 | BR33: 0 | BS33: 0 | BT33: 0 | BU33: 0 | BV33: 0 | BW33: 0
B34: 0.060256 | C34: 0 | D34: 0 | E34: 0 | H34: 0.060256 | I34: 0 | J34: 0 | K34: 0 | N34: 0.060256 | O34: 0 | P34: 0 | Q34: 0 | U34: 0.060256 | V34: 0 | W34: 0 | X34: 0 | AA34: 0.060256 | AB34: 0 | AC34: 0 | AD34: 0 | AG34: 0.060256 | AH34: 0 | AI34: 0 | AJ34: 0 | AM34: 0.060256 | AN34: 0 | AO34: 0 | AP34: 0 | AS34: 0.060256 | AT34: 0 | AU34: 0 | AV34: 0 | AY34: 0.060256 | AZ34: 0 | BA34: 0 | BB34: 0 | BE34: 0.060256 | BF34: 0 | BG34: 0 | BH34: 0 | BM34: 0.060256 | BN34: 0 | BO34: 0 | BP34: 0 | BQ34: 0 | BR34: 0 | BS34: 0 | BT34: 0 | BU34: 0 | BV34: 0 | BW34: 0
B35: 0.069183 | C35: 0 | D35: 0 | E35: 0 | H35: 0.069183 | I35: 0 | J35: 0 | K35: 0 | N35: 0.069183 | O35: 0 | P35: 0 | Q35: 0 | U35: 0.069183 | V35: 0 | W35: 0 | X35: 0 | AA35: 0.069183 | AB35: 0 | AC35: 0 | AD35: 0 | AG35: 0.069183 | AH35: 0 | AI35: 0 | AJ35: 0 | AM35: 0.069183 | AN35: 0 | AO35: 0 | AP35: 0 | AS35: 0.069183 | AT35: 0 | AU35: 0 | AV35: 0 | AY35: 0.069183 | AZ35: 0 | BA35: 0 | BB35: 0 | BE35: 0.069183 | BF35: 0 | BG35: 0 | BH35: 0 | BM35: 0.069183 | BN35: 0 | BO35: 0 | BP35: 0 | BQ35: 0 | BR35: 0 | BS35: 0 | BT35: 0 | BU35: 0 | BV35: 0 | BW35: 0
B36: 0.079433 | C36: 0 | D36: 0 | E36: 0 | H36: 0.079433 | I36: 0 | J36: 0 | K36: 0 | N36: 0.079433 | O36: 0 | P36: 0 | Q36: 0 | U36: 0.079433 | V36: 0 | W36: 0 | X36: 0 | AA36: 0.079433 | AB36: 0 | AC36: 0 | AD36: 0 | AG36: 0.079433 | AH36: 0 | AI36: 0 | AJ36: 0 | AM36: 0.079433 | AN36: 0 | AO36: 0 | AP36: 0 | AS36: 0.079433 | AT36: 0 | AU36: 0 | AV36: 0 | AY36: 0.079433 | AZ36: 0 | BA36: 0 | BB36: 0 | BE36: 0.079433 | BF36: 0 | BG36: 0 | BH36: 0 | BM36: 0.079433 | BN36: 0 | BO36: 0 | BP36: 0 | BQ36: 0 | BR36: 0 | BS36: 0 | BT36: 0 | BU36: 0 | BV36: 0 | BW36: 0
B37: 0.091201 | C37: 0 | D37: 0 | E37: 0 | H37: 0.091201 | I37: 0 | J37: 0 | K37: 0 | N37: 0.091201 | O37: 0 | P37: 0 | Q37: 0 | U37: 0.091201 | V37: 0 | W37: 0 | X37: 0 | AA37: 0.091201 | AB37: 0 | AC37: 0 | AD37: 0 | AG37: 0.091201 | AH37: 0 | AI37: 0 | AJ37: 0 | AM37: 0.091201 | AN37: 0 | AO37: 0 | AP37: 0 | AS37: 0.091201 | AT37: 0 | AU37: 0 | AV37: 0 | AY37: 0.091201 | AZ37: 0 | BA37: 0 | BB37: 0 | BE37: 0.091201 | BF37: 0 | BG37: 0 | BH37: 0 | BM37: 0.091201 | BN37: 0 | BO37: 0 | BP37: 0 | BQ37: 0 | BR37: 0 | BS37: 0 | BT37: 0 | BU37: 0 | BV37: 0 | BW37: 0
B38: 0.104713 | C38: 0 | D38: 0 | E38: 0 | H38: 0.104713 | I38: 0 | J38: 0 | K38: 0 | N38: 0.104713 | O38: 0 | P38: 0 | Q38: 0 | U38: 0.104713 | V38: 0 | W38: 0 | X38: 0 | AA38: 0.104713 | AB38: 0 | AC38: 0 | AD38: 0 | AG38: 0.104713 | AH38: 0 | AI38: 0 | AJ38: 0 | AM38: 0.104713 | AN38: 0 | AO38: 0 | AP38: 0 | AS38: 0.104713 | AT38: 0 | AU38: 0 | AV38: 0 | AY38: 0.104713 | AZ38: 0 | BA38: 0 | BB38: 0 | BE38: 0.104713 | BF38: 0 | BG38: 0 | BH38: 0 | BM38: 0.104713 | BN38: 0 | BO38: 0 | BP38: 0 | BQ38: 0 | BR38: 0 | BS38: 0 | BT38: 0 | BU38: 0 | BV38: 0 | BW38: 0
B39: 0.120226 | C39: 0 | D39: 0 | E39: 0 | H39: 0.120226 | I39: 0 | J39: 0 | K39: 0 | N39: 0.120226 | O39: 0 | P39: 0 | Q39: 0 | U39: 0.120226 | V39: 0 | W39: 0 | X39: 0 | AA39: 0.120226 | AB39: 0 | AC39: 0 | AD39: 0 | AG39: 0.120226 | AH39: 0 | AI39: 0 | AJ39: 0 | AM39: 0.120226 | AN39: 0 | AO39: 0 | AP39: 0 | AS39: 0.120226 | AT39: 0 | AU39: 0 | AV39: 0 | AY39: 0.120226 | AZ39: 0 | BA39: 0 | BB39: 0 | BE39: 0.120226 | BF39: 0 | BG39: 0 | BH39: 0 | BM39: 0.120226 | BN39: 0 | BO39: 0 | BP39: 0 | BQ39: 0 | BR39: 0 | BS39: 0 | BT39: 0 | BU39: 0 | BV39: 0 | BW39: 0
B40: 0.138038 | C40: 0 | D40: 0 | E40: 0 | H40: 0.138038 | I40: 0 | J40: 0 | K40: 0 | N40: 0.138038 | O40: 0 | P40: 0 | Q40: 0 | U40: 0.138038 | V40: 0 | W40: 0 | X40: 0 | AA40: 0.138038 | AB40: 0 | AC40: 0 | AD40: 0 | AG40: 0.138038 | AH40: 0 | AI40: 0 | AJ40: 0 | AM40: 0.138038 | AN40: 0 | AO40: 0 | AP40: 0 | AS40: 0.138038 | AT40: 0 | AU40: 0 | AV40: 0 | AY40: 0.138038 | AZ40: 0 | BA40: 0 | BB40: 0 | BE40: 0.138038 | BF40: 0 | BG40: 0 | BH40: 0 | BM40: 0.138038 | BN40: 0 | BO40: 0 | BP40: 0 | BQ40: 0 | BR40: 0 | BS40: 0 | BT40: 0 | BU40: 0 | BV40: 0 | BW40: 0
B41: 0.158489 | C41: 0 | D41: 0 | E41: 0 | H41: 0.158489 | I41: 0 | J41: 0 | K41: 0 | N41: 0.158489 | O41: 0 | P41: 0 | Q41: 0 | U41: 0.158489 | V41: 0 | W41: 0 | X41: 0 | AA41: 0.158489 | AB41: 0 | AC41: 0 | AD41: 0 | AG41: 0.158489 | AH41: 0 | AI41: 0 | AJ41: 0 | AM41: 0.158489 | AN41: 0 | AO41: 0 | AP41: 0 | AS41: 0.158489 | AT41: 0 | AU41: 0 | AV41: 0 | AY41: 0.158489 | AZ41: 0 | BA41: 0 | BB41: 0 | BE41: 0.158489 | BF41: 0 | BG41: 0 | BH41: 0 | BM41: 0.158489 | BN41: 0 | BO41: 0 | BP41: 0 | BQ41: 0 | BR41: 0 | BS41: 0 | BT41: 0 | BU41: 0 | BV41: 0 | BW41: 0
B42: 0.18197 | C42: 0 | D42: 0 | E42: 0 | H42: 0.18197 | I42: 0 | J42: 0 | K42: 0 | N42: 0.18197 | O42: 0 | P42: 0 | Q42: 0 | U42: 0.18197 | V42: 0 | W42: 0 | X42: 0 | AA42: 0.18197 | AB42: 0 | AC42: 0 | AD42: 0 | AG42: 0.18197 | AH42: 0 | AI42: 0 | AJ42: 0 | AM42: 0.18197 | AN42: 0 | AO42: 0 | AP42: 0 | AS42: 0.18197 | AT42: 0 | AU42: 0 | AV42: 0 | AY42: 0.18197 | AZ42: 0 | BA42: 0 | BB42: 0 | BE42: 0.18197 | BF42: 0 | BG42: 0 | BH42: 0 | BM42: 0.18197 | BN42: 0 | BO42: 0 | BP42: 0 | BQ42: 0 | BR42: 0 | BS42: 0 | BT42: 0 | BU42: 0 | BV42: 0 | BW42: 0
B43: 0.20893 | C43: 0 | D43: 0 | E43: 0 | H43: 0.20893 | I43: 0 | J43: 0 | K43: 0 | N43: 0.20893 | O43: 0 | P43: 0 | Q43: 0 | U43: 0.20893 | V43: 0 | W43: 0 | X43: 0 | AA43: 0.20893 | AB43: 0 | AC43: 0 | AD43: 0 | AG43: 0.20893 | AH43: 0 | AI43: 0 | AJ43: 0 | AM43: 0.20893 | AN43: 0 | AO43: 0 | AP43: 0 | AS43: 0.20893 | AT43: 0 | AU43: 0 | AV43: 0 | AY43: 0.20893 | AZ43: 0 | BA43: 0 | BB43: 0 | BE43: 0.20893 | BF43: 0 | BG43: 0 | BH43: 0 | BM43: 0.20893 | BN43: 0 | BO43: 0 | BP43: 0 | BQ43: 0 | BR43: 0 | BS43: 0 | BT43: 0 | BU43: 0 | BV43: 0 | BW43: 0
B44: 0.239883 | C44: 0 | D44: 0 | E44: 0 | H44: 0.239883 | I44: 0 | J44: 0 | K44: 0 | N44: 0.239883 | O44: 0 | P44: 0 | Q44: 0 | U44: 0.239883 | V44: 0 | W44: 0 | X44: 0 | AA44: 0.239883 | AB44: 0 | AC44: 0 | AD44: 0 | AG44: 0.239883 | AH44: 0 | AI44: 0 | AJ44: 0 | AM44: 0.239883 | AN44: 0 | AO44: 0 | AP44: 0 | AS44: 0.239883 | AT44: 0 | AU44: 0 | AV44: 0 | AY44: 0.239883 | AZ44: 0 | BA44: 0 | BB44: 0 | BE44: 0.239883 | BF44: 0 | BG44: 0 | BH44: 0 | BM44: 0.239883 | BN44: 0 | BO44: 0 | BP44: 0 | BQ44: 0 | BR44: 0 | BS44: 0 | BT44: 0 | BU44: 0 | BV44: 0 | BW44: 0
B45: 0.275423 | C45: 0 | D45: 0 | E45: 0 | H45: 0.275423 | I45: 0 | J45: 0 | K45: 0 | N45: 0.275423 | O45: 0 | P45: 0 | Q45: 0 | U45: 0.275423 | V45: 0 | W45: 0 | X45: 0 | AA45: 0.275423 | AB45: 0 | AC45: 0 | AD45: 0 | AG45: 0.275423 | AH45: 0 | AI45: 0 | AJ45: 0 | AM45: 0.275423 | AN45: 0 | AO45: 0 | AP45: 0 | AS45: 0.275423 | AT45: 0 | AU45: 0 | AV45: 0 | AY45: 0.275423 | AZ45: 0 | BA45: 0 | BB45: 0 | BE45: 0.275423 | BF45: 0 | BG45: 0 | BH45: 0 | BM45: 0.275423 | BN45: 0 | BO45: 0 | BP45: 0 | BQ45: 0 | BR45: 0 | BS45: 0 | BT45: 0 | BU45: 0 | BV45: 0 | BW45: 0
B46: 0.316228 | C46: 0 | D46: 0 | E46: 0 | H46: 0.316228 | I46: 0 | J46: 0 | K46: 0 | N46: 0.316228 | O46: 0 | P46: 0 | Q46: 0 | U46: 0.316228 | V46: 0 | W46: 0 | X46: 0 | AA46: 0.316228 | AB46: 0 | AC46: 0 | AD46: 0 | AG46: 0.316228 | AH46: 0 | AI46: 0 | AJ46: 0 | AM46: 0.316228 | AN46: 0 | AO46: 0 | AP46: 0 | AS46: 0.316228 | AT46: 0 | AU46: 0 | AV46: 0 | AY46: 0.316228 | AZ46: 0 | BA46: 0 | BB46: 0 | BE46: 0.316228 | BF46: 0 | BG46: 0 | BH46: 0 | BM46: 0.316228 | BN46: 0 | BO46: 0 | BP46: 0 | BQ46: 0 | BR46: 0 | BS46: 0 | BT46: 0 | BU46: 0 | BV46: 0 | BW46: 0
B47: 0.363078 | C47: 0 | D47: 0 | E47: 0 | H47: 0.363078 | I47: 0 | J47: 0 | K47: 0 | N47: 0.363078 | O47: 0 | P47: 0 | Q47: 0 | U47: 0.363078 | V47: 0 | W47: 0 | X47: 0 | AA47: 0.363078 | AB47: 0 | AC47: 0 | AD47: 0 | AG47: 0.363078 | AH47: 0 | AI47: 0 | AJ47: 0 | AM47: 0.363078 | AN47: 0 | AO47: 0 | AP47: 0 | AS47: 0.363078 | AT47: 0 | AU47: 0 | AV47: 0 | AY47: 0.363078 | AZ47: 0 | BA47: 0 | BB47: 0 | BE47: 0.363078 | BF47: 0 | BG47: 0 | BH47: 0 | BM47: 0.363078 | BN47: 0 | BO47: 0 | BP47: 0 | BQ47: 0 | BR47: 0 | BS47: 0 | BT47: 0 | BU47: 0 | BV47: 0 | BW47: 0
B48: 0.416869 | C48: 0 | D48: 0 | E48: 0 | H48: 0.416869 | I48: 0 | J48: 0 | K48: 0 | N48: 0.416869 | O48: 0 | P48: 0 | Q48: 0 | U48: 0.416869 | V48: 0 | W48: 0 | X48: 0 | AA48: 0.416869 | AB48: 0 | AC48: 0 | AD48: 0 | AG48: 0.416869 | AH48: 0 | AI48: 0 | AJ48: 0 | AM48: 0.416869 | AN48: 0 | AO48: 0 | AP48: 0 | AS48: 0.416869 | AT48: 0 | AU48: 0 | AV48: 0 | AY48: 0.416869 | AZ48: 0 | BA48: 0 | BB48: 0 | BE48: 0.416869 | BF48: 0 | BG48: 0 | BH48: 0 | BM48: 0.416869 | BN48: 0 | BO48: 0 | BP48: 0 | BQ48: 0 | BR48: 0 | BS48: 0 | BT48: 0 | BU48: 0 | BV48: 0 | BW48: 0
B49: 0.47863 | C49: 0 | D49: 0 | E49: 0 | H49: 0.47863 | I49: 0 | J49: 0 | K49: 0 | N49: 0.47863 | O49: 0 | P49: 0 | Q49: 0 | U49: 0.47863 | V49: 0 | W49: 0 | X49: 0 | AA49: 0.47863 | AB49: 0 | AC49: 0 | AD49: 0 | AG49: 0.47863 | AH49: 0 | AI49: 0 | AJ49: 0 | AM49: 0.47863 | AN49: 0 | AO49: 0 | AP49: 0 | AS49: 0.47863 | AT49: 0 | AU49: 0 | AV49: 0 | AY49: 0.47863 | AZ49: 0 | BA49: 0 | BB49: 0 | BE49: 0.47863 | BF49: 0.140693 | BG49: 0.154755 | BH49: 0.147523 | BM49: 0.47863 | BN49: 0 | BO49: 0 | BP49: 0 | BQ49: 0 | BR49: 0 | BS49: 0 | BT49: 0 | BU49: 0 | BV49: 0 | BW49: 0.147657
B50: 0.549541 | C50: 0.032509 | D50: 0 | E50: 0 | H50: 0.549541 | I50: 0 | J50: 0 | K50: 0 | N50: 0.549541 | O50: 0 | P50: 0 | Q50: 0 | U50: 0.549541 | V50: 0 | W50: 0 | X50: 0 | AA50: 0.549541 | AB50: 0 | AC50: 0 | AD50: 0.019268 | AG50: 0.549541 | AH50: 0 | AI50: 0 | AJ50: 0 | AM50: 0.549541 | AN50: 0 | AO50: 0 | AP50: 0 | AS50: 0.549541 | AT50: 0 | AU50: 0 | AV50: 0 | AY50: 0.549541 | AZ50: 0 | BA50: 0.033258 | BB50: 0.05879 | BE50: 0.549541 | BF50: 0.259693 | BG50: 0.27649 | BH50: 0.269392 | BM50: 0.549541 | BN50: 0.01083633333 | BO50: 0 | BP50: 0 | BQ50: 0 | BR50: 0.006422666667 | BS50: 0 | BT50: 0 | BU50: 0 | BV50: 0.03068266667 | BW50: 0.268525
B51: 0.630957 | C51: 0.045149 | D51: 0 | E51: 0 | H51: 0.630957 | I51: 0 | J51: 0.014507 | K51: 0.012803 | N51: 0.630957 | O51: 0 | P51: 0 | Q51: 0 | U51: 0.630957 | V51: 0 | W51: 0 | X51: 0 | AA51: 0.630957 | AB51: 0 | AC51: 0 | AD51: 0.026944 | AG51: 0.630957 | AH51: 0 | AI51: 0 | AJ51: 0.013119 | AM51: 0.630957 | AN51: 0 | AO51: 0 | AP51: 0 | AS51: 0.630957 | AT51: 0 | AU51: 0 | AV51: 0 | AY51: 0.630957 | AZ51: 0.048078 | BA51: 0.06926 | BB51: 0.087679 | BE51: 0.630957 | BF51: 0.381038 | BG51: 0.397609 | BH51: 0.392786 | BM51: 0.630957 | BN51: 0.01504966667 | BO51: 0.009103333333 | BP51: 0 | BQ51: 0 | BR51: 0.008981333333 | BS51: 0.004373 | BT51: 0 | BU51: 0 | BV51: 0.068339 | BW51: 0.3904776667
B52: 0.724436 | C52: 0.047049 | D52: 0 | E52: 0 | H52: 0.724436 | I52: 0 | J52: 0.021802 | K52: 0.033567 | N52: 0.724436 | O52: 0 | P52: 0 | Q52: 0 | U52: 0.724436 | V52: 0 | W52: 0 | X52: 0 | AA52: 0.724436 | AB52: 0 | AC52: 0.012179 | AD52: 0.029417 | AG52: 0.724436 | AH52: 0 | AI52: 0.012569 | AJ52: 0.035859 | AM52: 0.724436 | AN52: 0 | AO52: 0 | AP52: 0 | AS52: 0.724436 | AT52: 0 | AU52: 0 | AV52: 0 | AY52: 0.724436 | AZ52: 0.073258 | BA52: 0.085662 | BB52: 0.10447 | BE52: 0.724436 | BF52: 0.468226 | BG52: 0.483063 | BH52: 0.48094 | BM52: 0.724436 | BN52: 0.015683 | BO52: 0.01845633333 | BP52: 0 | BQ52: 0 | BR52: 0.01386533333 | BS52: 0.01614266667 | BT52: 0 | BU52: 0 | BV52: 0.08779666667 | BW52: 0.4774096667
B53: 0.831764 | C53: 0.052669 | D53: 0 | E53: 0 | H53: 0.831764 | I53: 0 | J53: 0.022695 | K53: 0.054561 | N53: 0.831764 | O53: 0 | P53: 0 | Q53: 0 | U53: 0.831764 | V53: 0 | W53: 0 | X53: 0 | AA53: 0.831764 | AB53: 0.010287 | AC53: 0.021276 | AD53: 0.03185 | AG53: 0.831764 | AH53: 0 | AI53: 0.02128 | AJ53: 0.043433 | AM53: 0.831764 | AN53: 0 | AO53: 0 | AP53: 0 | AS53: 0.831764 | AT53: 0 | AU53: 0 | AV53: 0 | AY53: 0.831764 | AZ53: 0.081992 | BA53: 0.095591 | BB53: 0.116729 | BE53: 0.831764 | BF53: 0.542393 | BG53: 0.555237 | BH53: 0.555666 | BM53: 0.831764 | BN53: 0.01755633333 | BO53: 0.025752 | BP53: 0 | BQ53: 0 | BR53: 0.02113766667 | BS53: 0.021571 | BT53: 0 | BU53: 0 | BV53: 0.098104 | BW53: 0.5510986667
B54: 0.954993 | C54: 0.051015 | D54: 0 | E54: 0 | H54: 0.954993 | I54: 0 | J54: 0.02171 | K54: 0.065791 | N54: 0.954993 | O54: 0 | P54: 0 | Q54: 0 | U54: 0.954993 | V54: 0 | W54: 0 | X54: 0 | AA54: 0.954993 | AB54: 0.021146 | AC54: 0.020393 | AD54: 0.033187 | AG54: 0.954993 | AH54: 0 | AI54: 0.019676 | AJ54: 0.041356 | AM54: 0.954993 | AN54: 0 | AO54: 0 | AP54: 0 | AS54: 0.954993 | AT54: 0 | AU54: 0 | AV54: 0 | AY54: 0.954993 | AZ54: 0.086817 | BA54: 0.104188 | BB54: 0.127112 | BE54: 0.954993 | BF54: 0.597988 | BG54: 0.608847 | BH54: 0.611405 | BM54: 0.954993 | BN54: 0.017005 | BO54: 0.029167 | BP54: 0 | BQ54: 0 | BR54: 0.02490866667 | BS54: 0.020344 | BT54: 0 | BU54: 0 | BV54: 0.106039 | BW54: 0.60608
B55: 1.096478 | C55: 0.051282 | D55: 0 | E55: 0 | H55: 1.096478 | I55: 0 | J55: 0.031282 | K55: 0.063417 | N55: 1.096478 | O55: 0 | P55: 0 | Q55: 0 | U55: 1.096478 | V55: 0 | W55: 0 | X55: 0 | AA55: 1.096478 | AB55: 0.019601 | AC55: 0.022373 | AD55: 0.032186 | AG55: 1.096478 | AH55: 0 | AI55: 0.02013 | AJ55: 0.044753 | AM55: 1.096478 | AN55: 0 | AO55: 0 | AP55: 0 | AS55: 1.096478 | AT55: 0 | AU55: 0 | AV55: 0 | AY55: 1.096478 | AZ55: 0.094176 | BA55: 0.111728 | BB55: 0.136151 | BE55: 1.096478 | BF55: 0.648075 | BG55: 0.656806 | BH55: 0.66143 | BM55: 1.096478 | BN55: 0.017094 | BO55: 0.03156633333 | BP55: 0 | BQ55: 0 | BR55: 0.02472 | BS55: 0.02162766667 | BT55: 0 | BU55: 0 | BV55: 0.1140183333 | BW55: 0.655437
B56: 1.258925 | C56: 0.051334 | D56: 0 | E56: 0 | H56: 1.258925 | I56: 0 | J56: 0.049803 | K56: 0.066867 | N56: 1.258925 | O56: 0 | P56: 0 | Q56: 0 | U56: 1.258925 | V56: 0 | W56: 0 | X56: 0 | AA56: 1.258925 | AB56: 0.020988 | AC56: 0.021006 | AD56: 0.038619 | AG56: 1.258925 | AH56: 0 | AI56: 0.020688 | AJ56: 0.043216 | AM56: 1.258925 | AN56: 0 | AO56: 0 | AP56: 0 | AS56: 1.258925 | AT56: 0 | AU56: 0 | AV56: 0 | AY56: 1.258925 | AZ56: 0.10147 | BA56: 0.120627 | BB56: 0.147013 | BE56: 1.258925 | BF56: 0.701233 | BG56: 0.70723 | BH56: 0.714407 | BM56: 1.258925 | BN56: 0.01711133333 | BO56: 0.03889 | BP56: 0 | BQ56: 0 | BR56: 0.026871 | BS56: 0.02130133333 | BT56: 0 | BU56: 0 | BV56: 0.1230366667 | BW56: 0.7076233333
B57: 1.44544 | C57: 0.050479 | D57: 0 | E57: 0 | H57: 1.44544 | I57: 0 | J57: 0.068057 | K57: 0.070802 | N57: 1.44544 | O57: 0 | P57: 0 | Q57: 0 | U57: 1.44544 | V57: 0 | W57: 0 | X57: 0 | AA57: 1.44544 | AB57: 0.021789 | AC57: 0.027855 | AD57: 0.056289 | AG57: 1.44544 | AH57: 0 | AI57: 0.020474 | AJ57: 0.045187 | AM57: 1.44544 | AN57: 0 | AO57: 0 | AP57: 0 | AS57: 1.44544 | AT57: 0 | AU57: 0 | AV57: 0 | AY57: 1.44544 | AZ57: 0.11227 | BA57: 0.132758 | BB57: 0.162005 | BE57: 1.44544 | BF57: 0.768704 | BG57: 0.770662 | BH57: 0.781662 | BM57: 1.44544 | BN57: 0.01682633333 | BO57: 0.04628633333 | BP57: 0 | BQ57: 0 | BR57: 0.035311 | BS57: 0.021887 | BT57: 0 | BU57: 0 | BV57: 0.1356776667 | BW57: 0.773676
B58: 1.659587 | C58: 0.058427 | D58: 0 | E58: 0 | H58: 1.659587 | I58: 0 | J58: 0.072307 | K58: 0.078552 | N58: 1.659587 | O58: 0 | P58: 0 | Q58: 0 | U58: 1.659587 | V58: 0 | W58: 0 | X58: 0 | AA58: 1.659587 | AB58: 0.023663 | AC58: 0.046581 | AD58: 0.05549 | AG58: 1.659587 | AH58: 0 | AI58: 0.026184 | AJ58: 0.053305 | AM58: 1.659587 | AN58: 0 | AO58: 0 | AP58: 0 | AS58: 1.659587 | AT58: 0 | AU58: 0 | AV58: 0 | AY58: 1.659587 | AZ58: 0.126873 | BA58: 0.149016 | BB58: 0.182222 | BE58: 1.659587 | BF58: 0.85499 | BG58: 0.851093 | BH58: 0.867733 | BM58: 1.659587 | BN58: 0.01947566667 | BO58: 0.05028633333 | BP58: 0 | BQ58: 0 | BR58: 0.04191133333 | BS58: 0.02649633333 | BT58: 0 | BU58: 0 | BV58: 0.1527036667 | BW58: 0.8579386667
B59: 1.905461 | C59: 0.088153 | D59: 0.058023 | E59: 0 | H59: 1.905461 | I59: 0 | J59: 0.083636 | K59: 0.09001 | N59: 1.905461 | O59: 0 | P59: 0 | Q59: 0 | U59: 1.905461 | V59: 0 | W59: 0 | X59: 0 | AA59: 1.905461 | AB59: 0.025906 | AC59: 0.050081 | AD59: 0.062617 | AG59: 1.905461 | AH59: 0.047744 | AI59: 0.048142 | AJ59: 0.079797 | AM59: 1.905461 | AN59: 0 | AO59: 0 | AP59: 0 | AS59: 1.905461 | AT59: 0 | AU59: 0 | AV59: 0 | AY59: 1.905461 | AZ59: 0.145299 | BA59: 0.169287 | BB59: 0.207452 | BE59: 1.905461 | BF59: 0.960229 | BG59: 0.94836 | BH59: 0.972737 | BM59: 1.905461 | BN59: 0.04872533333 | BO59: 0.057882 | BP59: 0 | BQ59: 0 | BR59: 0.04620133333 | BS59: 0.058561 | BT59: 0 | BU59: 0 | BV59: 0.1740126667 | BW59: 0.960442
B60: 2.187762 | C60: 0.098152 | D60: 0.058641 | E60: 0 | H60: 2.187762 | I60: 0.019714 | J60: 0.097241 | K60: 0.104783 | N60: 2.187762 | O60: 0 | P60: 0 | Q60: 0 | U60: 2.187762 | V60: 0 | W60: 0 | X60: 0.027067 | AA60: 2.187762 | AB60: 0.029233 | AC60: 0.075476 | AD60: 0.086625 | AG60: 2.187762 | AH60: 0.067556 | AI60: 0.076531 | AJ60: 0.091473 | AM60: 2.187762 | AN60: 0 | AO60: 0 | AP60: 0 | AS60: 2.187762 | AT60: 0 | AU60: 0 | AV60: 0 | AY60: 2.187762 | AZ60: 0.165933 | BA60: 0.191882 | BB60: 0.23552 | BE60: 2.187762 | BF60: 1.077314 | BG60: 1.05565 | BH60: 1.089502 | BM60: 2.187762 | BN60: 0.05226433333 | BO60: 0.07391266667 | BP60: 0 | BQ60: 0.009022333333 | BR60: 0.063778 | BS60: 0.07852 | BT60: 0 | BU60: 0 | BV60: 0.1977783333 | BW60: 1.074155333
B61: 2.511886 | C61: 0.112246 | D61: 0.088737 | E61: 0 | H61: 2.511886 | I61: 0.022287 | J61: 0.11306 | K61: 0.121896 | N61: 2.511886 | O61: 0.01836 | P61: 0 | Q61: 0 | U61: 2.511886 | V61: 0 | W61: 0 | X61: 0.02948 | AA61: 2.511886 | AB61: 0.068542 | AC61: 0.084296 | AD61: 0.095628 | AG61: 2.511886 | AH61: 0.079227 | AI61: 0.089944 | AJ61: 0.106076 | AM61: 2.511886 | AN61: 0 | AO61: 0 | AP61: 0 | AS61: 2.511886 | AT61: 0 | AU61: 0 | AV61: 0 | AY61: 2.511886 | AZ61: 0.186884 | BA61: 0.214816 | BB61: 0.263924 | BE61: 2.511886 | BF61: 1.199628 | BG61: 1.166814 | BH61: 1.211295 | BM61: 2.511886 | BN61: 0.06699433333 | BO61: 0.08574766667 | BP61: 0.00612 | BQ61: 0.009826666667 | BR61: 0.082822 | BS61: 0.091749 | BT61: 0 | BU61: 0 | BV61: 0.2218746667 | BW61: 1.192579
B62: 2.884031 | C62: 0.127952 | D62: 0.106133 | E62: 0 | H62: 2.884031 | I62: 0.046719 | J62: 0.129695 | K62: 0.139978 | N62: 2.884031 | O62: 0.041011 | P62: 0 | Q62: 0 | U62: 2.884031 | V62: 0 | W62: 0 | X62: 0.032847 | AA62: 2.884031 | AB62: 0.081234 | AC62: 0.093128 | AD62: 0.104637 | AG62: 2.884031 | AH62: 0.090843 | AI62: 0.103166 | AJ62: 0.121165 | AM62: 2.884031 | AN62: 0 | AO62: 0 | AP62: 0 | AS62: 2.884031 | AT62: 0 | AU62: 0 | AV62: 0.015185 | AY62: 2.884031 | AZ62: 0.206275 | BA62: 0.236148 | BB62: 0.290285 | BE62: 2.884031 | BF62: 1.32283 | BG62: 1.277948 | BH62: 1.333584 | BM62: 2.884031 | BN62: 0.07802833333 | BO62: 0.105464 | BP62: 0.01367033333 | BQ62: 0.010949 | BR62: 0.09299966667 | BS62: 0.105058 | BT62: 0 | BU62: 0.005061666667 | BV62: 0.244236 | BW62: 1.311454
B63: 3.311311 | C63: 0.143483 | D63: 0.120289 | E63: 0 | H63: 3.311311 | I63: 0.07441 | J63: 0.14552 | K63: 0.157324 | N63: 3.311311 | O63: 0.047717 | P63: 0 | Q63: 0.013041 | U63: 3.311311 | V63: 0 | W63: 0.011431 | X63: 0.035432 | AA63: 3.311311 | AB63: 0.086709 | AC63: 0.102223 | AD63: 0.11365 | AG63: 3.311311 | AH63: 0.102286 | AI63: 0.116398 | AJ63: 0.135074 | AM63: 3.311311 | AN63: 0 | AO63: 0 | AP63: 0 | AS63: 3.311311 | AT63: 0 | AU63: 0 | AV63: 0.021047 | AY63: 3.311311 | AZ63: 0.222717 | BA63: 0.254432 | BB63: 0.312894 | BE63: 3.311311 | BF63: 1.44571 | BG63: 1.388026 | BH63: 1.454932 | BM63: 3.311311 | BN63: 0.087924 | BO63: 0.1257513333 | BP63: 0.02025266667 | BQ63: 0.015621 | BR63: 0.1008606667 | BS63: 0.1179193333 | BT63: 0 | BU63: 0.007015666667 | BV63: 0.2633476667 | BW63: 1.429556
B64: 3.801894 | C64: 0.157423 | D64: 0.134218 | E64: 0 | H64: 3.801894 | I64: 0.088067 | J64: 0.158725 | K64: 0.171941 | N64: 3.801894 | O64: 0.066182 | P64: 0 | Q64: 0.021601 | U64: 3.801894 | V64: 0 | W64: 0.035014 | X64: 0.051482 | AA64: 3.801894 | AB64: 0.0947 | AC64: 0.109588 | AD64: 0.120868 | AG64: 3.801894 | AH64: 0.111583 | AI64: 0.127004 | AJ64: 0.146867 | AM64: 3.801894 | AN64: 0 | AO64: 0 | AP64: 0 | AS64: 3.801894 | AT64: 0 | AU64: 0 | AV64: 0.021507 | AY64: 3.801894 | AZ64: 0.235421 | BA64: 0.268819 | BB64: 0.330826 | BE64: 3.801894 | BF64: 1.569384 | BG64: 1.498059 | BH64: 1.576274 | BM64: 3.801894 | BN64: 0.09721366667 | BO64: 0.1395776667 | BP64: 0.029261 | BQ64: 0.028832 | BR64: 0.1083853333 | BS64: 0.1284846667 | BT64: 0 | BU64: 0.007169 | BV64: 0.2783553333 | BW64: 1.547905667
B65: 4.365158 | C65: 0.167492 | D65: 0.143157 | E65: 0 | H65: 4.365158 | I65: 0.090437 | J65: 0.167271 | K65: 0.181581 | N65: 4.365158 | O65: 0.080574 | P65: 0 | Q65: 0.021828 | U65: 4.365158 | V65: 0 | W65: 0.044567 | X65: 0.064545 | AA65: 4.365158 | AB65: 0.099303 | AC65: 0.114953 | AD65: 0.125918 | AG65: 4.365158 | AH65: 0.118274 | AI65: 0.134676 | AJ65: 0.155484 | AM65: 4.365158 | AN65: 0 | AO65: 0 | AP65: 0 | AS65: 4.365158 | AT65: 0 | AU65: 0 | AV65: 0.023293 | AY65: 4.365158 | AZ65: 0.244123 | BA65: 0.278987 | BB65: 0.343836 | BE65: 4.365158 | BF65: 1.695354 | BG65: 1.609355 | BH65: 1.699084 | BM65: 4.365158 | BN65: 0.1035496667 | BO65: 0.1464296667 | BP65: 0.034134 | BQ65: 0.03637066667 | BR65: 0.1133913333 | BS65: 0.1361446667 | BT65: 0 | BU65: 0.007764333333 | BV65: 0.288982 | BW65: 1.667931
B66: 5.011872 | C66: 0.171872 | D66: 0.145841 | E66: 0 | H66: 5.011872 | I66: 0.092567 | J66: 0.169578 | K66: 0.184438 | N66: 5.011872 | O66: 0.078388 | P66: 0 | Q66: 0.022113 | U66: 5.011872 | V66: 0 | W66: 0.044248 | X66: 0.064017 | AA66: 5.011872 | AB66: 0.102084 | AC66: 0.117756 | AD66: 0.128295 | AG66: 5.011872 | AH66: 0.121917 | AI66: 0.138855 | AJ66: 0.160805 | AM66: 5.011872 | AN66: 0 | AO66: 0 | AP66: 0 | AS66: 5.011872 | AT66: 0 | AU66: 0 | AV66: 0.02394 | AY66: 5.011872 | AZ66: 0.249339 | BA66: 0.285442 | BB66: 0.352713 | BE66: 5.011872 | BF66: 1.828074 | BG66: 1.725829 | BH66: 1.827954 | BM66: 5.011872 | BN66: 0.1059043333 | BO66: 0.148861 | BP66: 0.03350033333 | BQ66: 0.03608833333 | BR66: 0.116045 | BS66: 0.1405256667 | BT66: 0 | BU66: 0.00798 | BV66: 0.2958313333 | BW66: 1.793952333
B67: 5.754399 | C67: 0.169074 | D67: 0.140589 | E67: 0 | H67: 5.754399 | I67: 0.087123 | J67: 0.164729 | K67: 0.179394 | N67: 5.754399 | O67: 0.078403 | P67: 0 | Q67: 0.022788 | U67: 5.754399 | V67: 0 | W67: 0.046762 | X67: 0.064312 | AA67: 5.754399 | AB67: 0.102309 | AC67: 0.118108 | AD67: 0.12815 | AG67: 5.754399 | AH67: 0.122893 | AI67: 0.140012 | AJ67: 0.163299 | AM67: 5.754399 | AN67: 0 | AO67: 0 | AP67: 0 | AS67: 5.754399 | AT67: 0 | AU67: 0 | AV67: 0.024073 | AY67: 5.754399 | AZ67: 0.251887 | BA67: 0.288967 | BB67: 0.358548 | BE67: 5.754399 | BF67: 1.968072 | BG67: 1.847979 | BH67: 1.963921 | BM67: 5.754399 | BN67: 0.103221 | BO67: 0.1437486667 | BP67: 0.03373033333 | BQ67: 0.03702466667 | BR67: 0.116189 | BS67: 0.142068 | BT67: 0 | BU67: 0.008024333333 | BV67: 0.2998006667 | BW67: 1.926657333
B68: 6.606934 | C68: 0.158763 | D68: 0.126443 | E68: 0 | H68: 6.606934 | I68: 0.080857 | J68: 0.153043 | K68: 0.166675 | N68: 6.606934 | O68: 0.06747 | P68: 0 | Q68: 0.012696 | U68: 6.606934 | V68: 0 | W68: 0.044327 | X68: 0.062937 | AA68: 6.606934 | AB68: 0.100745 | AC68: 0.116676 | AD68: 0.1262 | AG68: 6.606934 | AH68: 0.122449 | AI68: 0.139569 | AJ68: 0.164545 | AM68: 6.606934 | AN68: 0 | AO68: 0 | AP68: 0 | AS68: 6.606934 | AT68: 0 | AU68: 0 | AV68: 0.023551 | AY68: 6.606934 | AZ68: 0.252996 | BA68: 0.290752 | BB68: 0.36294 | BE68: 6.606934 | BF68: 2.118298 | BG68: 1.978466 | BH68: 2.110519 | BM68: 6.606934 | BN68: 0.09506866667 | BO68: 0.133525 | BP68: 0.026722 | BQ68: 0.03575466667 | BR68: 0.1145403333 | BS68: 0.1421876667 | BT68: 0 | BU68: 0.007850333333 | BV68: 0.3022293333 | BW68: 2.069094333
B69: 7.585776 | C69: 0.142642 | D69: 0.107311 | E69: 0 | H69: 7.585776 | I69: 0.06116 | J69: 0.136967 | K69: 0.148858 | N69: 7.585776 | O69: 0.041646 | P69: 0 | Q69: 0 | U69: 7.585776 | V69: 0 | W69: 0.030547 | X69: 0.053383 | AA69: 7.585776 | AB69: 0.09852 | AC69: 0.114777 | AD69: 0.123819 | AG69: 7.585776 | AH69: 0.122709 | AI69: 0.139962 | AJ69: 0.166957 | AM69: 7.585776 | AN69: 0 | AO69: 0 | AP69: 0 | AS69: 7.585776 | AT69: 0 | AU69: 0 | AV69: 0.022243 | AY69: 7.585776 | AZ69: 0.253813 | BA69: 0.291798 | BB69: 0.367125 | BE69: 7.585776 | BF69: 2.272984 | BG69: 2.112367 | BH69: 2.262647 | BM69: 7.585776 | BN69: 0.08331766667 | BO69: 0.1156616667 | BP69: 0.013882 | BQ69: 0.02797666667 | BR69: 0.112372 | BS69: 0.1432093333 | BT69: 0 | BU69: 0.007414333333 | BV69: 0.3042453333 | BW69: 2.215999333
B70: 8.709636 | C70: 0.124058 | D70: 0.082322 | E70: 0 | H70: 8.709636 | I70: 0.022767 | J70: 0.120425 | K70: 0.130203 | N70: 8.709636 | O70: 0.022228 | P70: 0 | Q70: 0 | U70: 8.709636 | V70: 0 | W70: 0 | X70: 0.030456 | AA70: 8.709636 | AB70: 0.097308 | AC70: 0.114144 | AD70: 0.122749 | AG70: 8.709636 | AH70: 0.126527 | AI70: 0.144466 | AJ70: 0.173767 | AM70: 8.709636 | AN70: 0 | AO70: 0 | AP70: 0 | AS70: 8.709636 | AT70: 0 | AU70: 0 | AV70: 0.021127 | AY70: 8.709636 | AZ70: 0.255274 | BA70: 0.292806 | BB70: 0.371972 | BE70: 8.709636 | BF70: 2.429346 | BG70: 2.247329 | BH70: 2.417753 | BM70: 8.709636 | BN70: 0.06879333333 | BO70: 0.09113166667 | BP70: 0.007409333333 | BQ70: 0.010152 | BR70: 0.1114003333 | BS70: 0.1482533333 | BT70: 0 | BU70: 0.007042333333 | BV70: 0.306684 | BW70: 2.364809333
B71: 10 | C71: 0.109331 | D71: 0.048002 | E71: 0 | H71: 10 | I71: 0.021755 | J71: 0.109863 | K71: 0.117868 | N71: 10 | O71: 0.022889 | P71: 0 | Q71: 0 | U71: 10 | V71: 0 | W71: 0 | X71: 0.027026 | AA71: 10 | AB71: 0.099066 | AC71: 0.116696 | AD71: 0.124901 | AG71: 10 | AH71: 0.13679 | AI71: 0.156398 | AJ71: 0.188002 | AM71: 10 | AN71: 0 | AO71: 0 | AP71: 0 | AS71: 10 | AT71: 0 | AU71: 0 | AV71: 0.019418 | AY71: 10 | AZ71: 0.257741 | BA71: 0.293844 | BB71: 0.377218 | BE71: 10 | BF71: 2.573582 | BG71: 2.371469 | BH71: 2.561827 | BM71: 10 | BN71: 0.05244433333 | BO71: 0.083162 | BP71: 0.007629666667 | BQ71: 0.009008666667 | BR71: 0.1135543333 | BS71: 0.1603966667 | BT71: 0 | BU71: 0.006472666667 | BV71: 0.309601 | BW71: 2.502292667
B72: 11.481536 | C72: 0.10546 | D72: 0.043628 | E72: 0 | H72: 11.481536 | I72: 0.020562 | J72: 0.11201 | K72: 0.11942 | N72: 11.481536 | O72: 0.042188 | P72: 0 | Q72: 0 | U72: 11.481536 | V72: 0 | W72: 0 | X72: 0.022902 | AA72: 11.481536 | AB72: 0.105644 | AC72: 0.124155 | AD72: 0.131941 | AG72: 11.481536 | AH72: 0.156377 | AI72: 0.179077 | AJ72: 0.212707 | AM72: 11.481536 | AN72: 0 | AO72: 0 | AP72: 0 | AS72: 11.481536 | AT72: 0 | AU72: 0 | AV72: 0.018693 | AY72: 11.481536 | AZ72: 0.261115 | BA72: 0.294495 | BB72: 0.381954 | BE72: 11.481536 | BF72: 2.698313 | BG72: 2.478456 | BH72: 2.686644 | BM72: 11.481536 | BN72: 0.049696 | BO72: 0.08399733333 | BP72: 0.01406266667 | BQ72: 0.007634 | BR72: 0.12058 | BS72: 0.1827203333 | BT72: 0 | BU72: 0.006231 | BV72: 0.3125213333 | BW72: 2.621137667
B73: 13.182567 | C73: 0.119707 | D73: 0.071738 | E73: 0 | H73: 13.182567 | I73: 0.045267 | J73: 0.132843 | K73: 0.14176 | N73: 13.182567 | O73: 0.073135 | P73: 0 | Q73: 0.016543 | U73: 13.182567 | V73: 0 | W73: 0 | X73: 0.02284 | AA73: 13.182567 | AB73: 0.117794 | AC73: 0.136982 | AD73: 0.144308 | AG73: 13.182567 | AH73: 0.185724 | AI73: 0.212998 | AJ73: 0.247966 | AM73: 13.182567 | AN73: 0 | AO73: 0 | AP73: 0 | AS73: 13.182567 | AT73: 0 | AU73: 0 | AV73: 0.018877 | AY73: 13.182567 | AZ73: 0.26469 | BA73: 0.294063 | BB73: 0.384484 | BE73: 13.182567 | BF73: 2.788895 | BG73: 2.555782 | BH73: 2.776269 | BM73: 13.182567 | BN73: 0.063815 | BO73: 0.1066233333 | BP73: 0.02989266667 | BQ73: 0.007613333333 | BR73: 0.133028 | BS73: 0.2155626667 | BT73: 0 | BU73: 0.006292333333 | BV73: 0.3144123333 | BW73: 2.706982
B74: 15.135612 | C74: 0.157128 | D74: 0.112159 | E74: 0.061547 | H74: 15.135612 | I74: 0.093558 | J74: 0.175842 | K74: 0.189061 | N74: 15.135612 | O74: 0.102563 | P74: 0.035909 | Q74: 0.062239 | U74: 15.135612 | V74: 0 | W74: 0 | X74: 0.021957 | AA74: 15.135612 | AB74: 0.135355 | AC74: 0.154711 | AD74: 0.161534 | AG74: 15.135612 | AH74: 0.224328 | AI74: 0.257581 | AJ74: 0.293002 | AM74: 15.135612 | AN74: 0 | AO74: 0 | AP74: 0 | AS74: 15.135612 | AT74: 0 | AU74: 0 | AV74: 0.02025 | AY74: 15.135612 | AZ74: 0.267938 | BA74: 0.292204 | BB74: 0.383671 | BE74: 15.135612 | BF74: 2.841305 | BG74: 2.600139 | BH74: 2.825186 | BM74: 15.135612 | BN74: 0.110278 | BO74: 0.1528203333 | BP74: 0.06690366667 | BQ74: 0.007319 | BR74: 0.1505333333 | BS74: 0.2583036667 | BT74: 0 | BU74: 0.00675 | BV74: 0.3146043333 | BW74: 2.755543333
B75: 17.378008 | C75: 0.216023 | D75: 0.172518 | E75: 0.128475 | H75: 17.378008 | I75: 0.142752 | J75: 0.23703 | K75: 0.257254 | N75: 17.378008 | O75: 0.138777 | P75: 0.073516 | Q75: 0.111539 | U75: 17.378008 | V75: 0 | W75: 0.023478 | X75: 0.062497 | AA75: 17.378008 | AB75: 0.155344 | AC75: 0.174076 | AD75: 0.180441 | AG75: 17.378008 | AH75: 0.266787 | AI75: 0.306585 | AJ75: 0.341598 | AM75: 17.378008 | AN75: 0 | AO75: 0 | AP75: 0 | AS75: 17.378008 | AT75: 0 | AU75: 0 | AV75: 0.022878 | AY75: 17.378008 | AZ75: 0.270744 | BA75: 0.289685 | BB75: 0.379816 | BE75: 17.378008 | BF75: 2.85398 | BG75: 2.610421 | BH75: 2.8307 | BM75: 17.378008 | BN75: 0.1723386667 | BO75: 0.2123453333 | BP75: 0.107944 | BQ75: 0.02865833333 | BR75: 0.1699536667 | BS75: 0.30499 | BT75: 0 | BU75: 0.007626 | BV75: 0.313415 | BW75: 2.765033667
B76: 19.952623 | C76: 0.289229 | D76: 0.248077 | E76: 0.212954 | H76: 19.952623 | I76: 0.195845 | J76: 0.307263 | K76: 0.336413 | N76: 19.952623 | O76: 0.17963 | P76: 0.098543 | Q76: 0.147229 | U76: 19.952623 | V76: 0.020309 | W76: 0.073028 | X76: 0.101065 | AA76: 19.952623 | AB76: 0.17351 | AC76: 0.190691 | AD76: 0.196796 | AG76: 19.952623 | AH76: 0.306586 | AI76: 0.352477 | AJ76: 0.386644 | AM76: 19.952623 | AN76: 0 | AO76: 0 | AP76: 0 | AS76: 19.952623 | AT76: 0.010238 | AU76: 0 | AV76: 0.026284 | AY76: 19.952623 | AZ76: 0.274569 | BA76: 0.289071 | BB76: 0.375941 | BE76: 19.952623 | BF76: 2.835709 | BG76: 2.594393 | BH76: 2.800914 | BM76: 19.952623 | BN76: 0.2500866667 | BO76: 0.2798403333 | BP76: 0.1418006667 | BQ76: 0.06480066667 | BR76: 0.186999 | BS76: 0.348569 | BT76: 0 | BU76: 0.012174 | BV76: 0.3131936667 | BW76: 2.743672
B77: 22.908677 | C77: 0.358261 | D77: 0.317429 | E77: 0.276684 | H77: 22.908677 | I77: 0.243851 | J77: 0.367117 | K77: 0.404919 | N77: 22.908677 | O77: 0.212845 | P77: 0.12388 | Q77: 0.182721 | U77: 22.908677 | V77: 0.073884 | W77: 0.110075 | X77: 0.129535 | AA77: 22.908677 | AB77: 0.183232 | AC77: 0.198176 | AD77: 0.204446 | AG77: 22.908677 | AH77: 0.333728 | AI77: 0.383688 | AJ77: 0.417428 | AM77: 22.908677 | AN77: 0 | AO77: 0 | AP77: 0 | AS77: 22.908677 | AT77: 0.02348 | AU77: 0 | AV77: 0.02946 | AY77: 22.908677 | AZ77: 0.282965 | BA77: 0.295494 | BB77: 0.379072 | BE77: 22.908677 | BF77: 2.803229 | BG77: 2.566625 | BH77: 2.753443 | BM77: 22.908677 | BN77: 0.317458 | BO77: 0.338629 | BP77: 0.1731486667 | BQ77: 0.104498 | BR77: 0.1952846667 | BS77: 0.3782813333 | BT77: 0 | BU77: 0.01764666667 | BV77: 0.319177 | BW77: 2.707765667
B78: 26.30268 | C78: 0.401419 | D78: 0.356762 | E78: 0.308464 | H78: 26.30268 | I78: 0.268185 | J78: 0.395362 | K78: 0.438761 | N78: 26.30268 | O78: 0.228276 | P78: 0.129108 | Q78: 0.196902 | U78: 26.30268 | V78: 0.10675 | W78: 0.137548 | X78: 0.158386 | AA78: 26.30268 | AB78: 0.178746 | AC78: 0.191199 | AD78: 0.198298 | AG78: 26.30268 | AH78: 0.340104 | AI78: 0.390802 | AJ78: 0.425658 | AM78: 26.30268 | AN78: 0 | AO78: 0 | AP78: 0 | AS78: 26.30268 | AT78: 0.023389 | AU78: 0 | AV78: 0.031302 | AY78: 26.30268 | AZ78: 0.302691 | BA78: 0.317085 | BB78: 0.40072 | BE78: 26.30268 | BF78: 2.778616 | BG78: 2.546174 | BH78: 2.712203 | BM78: 26.30268 | BN78: 0.3555483333 | BO78: 0.367436 | BP78: 0.184762 | BQ78: 0.134228 | BR78: 0.1894143333 | BS78: 0.3855213333 | BT78: 0 | BU78: 0.01823033333 | BV78: 0.3401653333 | BW78: 2.678997667
B79: 30.199517 | C79: 0.391465 | D79: 0.341854 | E79: 0.286704 | H79: 30.199517 | I79: 0.252951 | J79: 0.369175 | K79: 0.411881 | N79: 30.199517 | O79: 0.214602 | P79: 0.115835 | Q79: 0.18153 | U79: 30.199517 | V79: 0.121677 | W79: 0.149466 | X79: 0.168379 | AA79: 30.199517 | AB79: 0.155545 | AC79: 0.166468 | AD79: 0.175175 | AG79: 30.199517 | AH79: 0.321354 | AI79: 0.368705 | AJ79: 0.407306 | AM79: 30.199517 | AN79: 0 | AO79: 0 | AP79: 0 | AS79: 30.199517 | AT79: 0.024933 | AU79: 0 | AV79: 0.029994 | AY79: 30.199517 | AZ79: 0.343136 | BA79: 0.363955 | BB79: 0.455758 | BE79: 30.199517 | BF79: 2.786225 | BG79: 2.553876 | BH79: 2.705162 | BM79: 30.199517 | BN79: 0.3400076667 | BO79: 0.344669 | BP79: 0.1706556667 | BQ79: 0.1465073333 | BR79: 0.1657293333 | BS79: 0.3657883333 | BT79: 0 | BU79: 0.018309 | BV79: 0.3876163333 | BW79: 2.681754333
B80: 34.673685 | C80: 0.317839 | D80: 0.251884 | E80: 0.176781 | H80: 34.673685 | I80: 0.190119 | J80: 0.282586 | K80: 0.316107 | N80: 34.673685 | O80: 0.173831 | P80: 0.056692 | Q80: 0.132511 | U80: 34.673685 | V80: 0.115938 | W80: 0.136211 | X80: 0.155276 | AA80: 34.673685 | AB80: 0.117531 | AC80: 0.128077 | AD80: 0.13922 | AG80: 34.673685 | AH80: 0.281374 | AI80: 0.321777 | AJ80: 0.367435 | AM80: 34.673685 | AN80: 0 | AO80: 0 | AP80: 0 | AS80: 34.673685 | AT80: 0.014449 | AU80: 0 | AV80: 0.025996 | AY80: 34.673685 | AZ80: 0.417114 | BA80: 0.448388 | BB80: 0.56201 | BE80: 34.673685 | BF80: 2.846715 | BG80: 2.607127 | BH80: 2.757069 | BM80: 34.673685 | BN80: 0.2488346667 | BO80: 0.2629373333 | BP80: 0.1210113333 | BQ80: 0.1358083333 | BR80: 0.128276 | BS80: 0.3235286667 | BT80: 0 | BU80: 0.01348166667 | BV80: 0.4758373333 | BW80: 2.736970333
B81: 39.810717 | C81: 0.157121 | D81: 0.098017 | E81: 0.025999 | H81: 39.810717 | I81: 0.081625 | J81: 0.129063 | K81: 0.144076 | N81: 39.810717 | O81: 0.105169 | P81: 0 | Q81: 0.055087 | U81: 39.810717 | V81: 0.067502 | W81: 0.07554 | X81: 0.100613 | AA81: 39.810717 | AB81: 0.068069 | AC81: 0.082464 | AD81: 0.096374 | AG81: 39.810717 | AH81: 0.235889 | AI81: 0.268055 | AJ81: 0.323708 | AM81: 39.810717 | AN81: 0 | AO81: 0 | AP81: 0 | AS81: 39.810717 | AT81: 0 | AU81: 0 | AV81: 0.01503 | AY81: 39.810717 | AZ81: 0.53797 | BA81: 0.581074 | BB81: 0.734906 | BE81: 39.810717 | BF81: 2.971178 | BG81: 2.714694 | BH81: 2.883261 | BM81: 39.810717 | BN81: 0.09371233333 | BO81: 0.1182546667 | BP81: 0.05341866667 | BQ81: 0.08121833333 | BR81: 0.08230233333 | BS81: 0.275884 | BT81: 0 | BU81: 0.00501 | BV81: 0.6179833333 | BW81: 2.856377667
B82: 45.708819 | C82: 0 | D82: 0 | E82: 0 | H82: 45.708819 | I82: 0 | J82: 0 | K82: 0 | N82: 45.708819 | O82: 0.019377 | P82: 0 | Q82: 0 | U82: 45.708819 | V82: 0 | W82: 0 | X82: 0.011378 | AA82: 45.708819 | AB82: 0.016214 | AC82: 0.040895 | AD82: 0.058682 | AG82: 45.708819 | AH82: 0.212601 | AI82: 0.239421 | AJ82: 0.306314 | AM82: 45.708819 | AN82: 0 | AO82: 0 | AP82: 0 | AS82: 45.708819 | AT82: 0 | AU82: 0 | AV82: 0 | AY82: 45.708819 | AZ82: 0.719752 | BA82: 0.771106 | BB82: 0.986434 | BE82: 45.708819 | BF82: 3.157626 | BG82: 2.873811 | BH82: 3.084762 | BM82: 45.708819 | BN82: 0 | BO82: 0 | BP82: 0.006459 | BQ82: 0.003792666667 | BR82: 0.038597 | BS82: 0.2527786667 | BT82: 0 | BU82: 0 | BV82: 0.825764 | BW82: 3.038733
B83: 52.480746 | C83: 0 | D83: 0 | E83: 0 | H83: 52.480746 | I83: 0 | J83: 0 | K83: 0 | N83: 52.480746 | O83: 0.020021 | P83: 0 | Q83: 0.001073 | U83: 52.480746 | V83: 0 | W83: 0 | X83: 0 | AA83: 52.480746 | AB83: 0.023366 | AC83: 0.052048 | AD83: 0.074912 | AG83: 52.480746 | AH83: 0.24895 | AI83: 0.279138 | AJ83: 0.35518 | AM83: 52.480746 | AN83: 0 | AO83: 0 | AP83: 0 | AS83: 52.480746 | AT83: 0 | AU83: 0 | AV83: 0 | AY83: 52.480746 | AZ83: 0.973561 | BA83: 1.022281 | BB83: 1.319397 | BE83: 52.480746 | BF83: 3.386824 | BG83: 3.067008 | BH83: 3.343106 | BM83: 52.480746 | BN83: 0 | BO83: 0 | BP83: 0.007031333333 | BQ83: 0 | BR83: 0.05010866667 | BS83: 0.2944226667 | BT83: 0 | BU83: 0 | BV83: 1.105079667 | BW83: 3.265646
B84: 60.255959 | C84: 0 | D84: 0 | E84: 0 | H84: 60.255959 | I84: 0 | J84: 0 | K84: 0 | N84: 60.255959 | O84: 0.13653 | P84: 0 | Q84: 0.011412 | U84: 60.255959 | V84: 0 | W84: 0 | X84: 0 | AA84: 60.255959 | AB84: 0.109364 | AC84: 0.145075 | AD84: 0.162728 | AG84: 60.255959 | AH84: 0.384407 | AI84: 0.433102 | AJ84: 0.511478 | AM84: 60.255959 | AN84: 0 | AO84: 0 | AP84: 0 | AS84: 60.255959 | AT84: 0 | AU84: 0 | AV84: 0 | AY84: 60.255959 | AZ84: 1.305636 | BA84: 1.332108 | BB84: 1.725344 | BE84: 60.255959 | BF84: 3.622751 | BG84: 3.263234 | BH84: 3.620027 | BM84: 60.255959 | BN84: 0 | BO84: 0 | BP84: 0.049314 | BQ84: 0 | BR84: 0.1390556667 | BS84: 0.4429956667 | BT84: 0 | BU84: 0 | BV84: 1.454362667 | BW84: 3.502004
B85: 69.183097 | C85: 0.007636 | D85: 0 | E85: 0 | H85: 69.183097 | I85: 0.092443 | J85: 0.263517 | K85: 0.265956 | N85: 69.183097 | O85: 0.385872 | P85: 0.151976 | Q85: 0.255845 | U85: 69.183097 | V85: 0 | W85: 0 | X85: 0 | AA85: 69.183097 | AB85: 0.274485 | AC85: 0.315962 | AD85: 0.329206 | AG85: 69.183097 | AH85: 0.650961 | AI85: 0.739034 | AJ85: 0.807576 | AM85: 69.183097 | AN85: 0 | AO85: 0 | AP85: 0 | AS85: 69.183097 | AT85: 0 | AU85: 0 | AV85: 0 | AY85: 69.183097 | AZ85: 1.719378 | BA85: 1.695149 | BB85: 2.188679 | BE85: 69.183097 | BF85: 3.818893 | BG85: 3.423729 | BH85: 3.864221 | BM85: 69.183097 | BN85: 0.002545333333 | BO85: 0.2073053333 | BP85: 0.2645643333 | BQ85: 0 | BR85: 0.306551 | BS85: 0.7325236667 | BT85: 0 | BU85: 0 | BV85: 1.867735333 | BW85: 3.702281
B86: 79.432823 | C86: 0.42553 | D86: 0.297217 | E86: 0.439309 | H86: 79.432823 | I86: 0.512018 | J86: 0.938835 | K86: 1.006333 | N86: 79.432823 | O86: 0.819255 | P86: 0.563194 | Q86: 0.692476 | U86: 79.432823 | V86: 0 | W86: 0 | X86: 0.057616 | AA86: 79.432823 | AB86: 0.540139 | AC86: 0.580846 | AD86: 0.587242 | AG86: 79.432823 | AH86: 1.055935 | AI86: 1.206892 | AJ86: 1.248831 | AM86: 79.432823 | AN86: 0 | AO86: 0.025275 | AP86: 0 | AS86: 79.432823 | AT86: 0.077237 | AU86: 0.093029 | AV86: 0.032608 | AY86: 79.432823 | AZ86: 2.207169 | BA86: 2.097835 | BB86: 2.680697 | BE86: 79.432823 | BF86: 3.922804 | BG86: 3.50587 | BH86: 4.015735 | BM86: 79.432823 | BN86: 0.387352 | BO86: 0.819062 | BP86: 0.6916416667 | BQ86: 0.01920533333 | BR86: 0.569409 | BS86: 1.170552667 | BT86: 0.008425 | BU86: 0.06762466667 | BV86: 2.328567 | BW86: 3.814803
B87: 91.201084 | C87: 1.34203 | D87: 1.234563 | E87: 1.517704 | H87: 91.201084 | I87: 1.267354 | J87: 1.97947 | K87: 2.171693 | N87: 91.201084 | O87: 1.448767 | P87: 1.186282 | Q87: 1.330598 | U87: 91.201084 | V87: 0.191722 | W87: 0.269925 | X87: 0.396645 | AA87: 91.201084 | AB87: 0.901627 | AC87: 0.931137 | AD87: 0.927842 | AG87: 91.201084 | AH87: 1.583251 | AI87: 1.820465 | AJ87: 1.816062 | AM87: 91.201084 | AN87: 0.027899 | AO87: 0.158754 | AP87: 0.056975 | AS87: 91.201084 | AT87: 0.254576 | AU87: 0.262811 | AV87: 0.138213 | AY87: 91.201084 | AZ87: 2.766608 | BA87: 2.534642 | BB87: 3.181311 | BE87: 91.201084 | BF87: 3.89204 | BG87: 3.475503 | BH87: 4.024997 | BM87: 91.201084 | BN87: =AVERAGE(C87:E87) -> 1.364765667 | BO87: =AVERAGE(I87:K87) -> 1.806172333 | BP87: =AVERAGE(O87:Q87) -> 1.321882333 | BQ87: =AVERAGE(V87:X87) -> 0.2860973333 | BR87: =AVERAGE(AB87:AD87) -> 0.920202 | BS87: =AVERAGE(AH87:AJ87) -> 1.739926 | BT87: =AVERAGE(AN87:AP87) -> 0.08120933333 | BU87: =AVERAGE(AT87:AV87) -> 0.2185333333 | BV87: =AVERAGE(AZ87:BB87) -> 2.827520333 | BW87: =AVERAGE(BF87:BH87) -> 3.797513333
B88: 104.712855 | C88: 2.689418 | D88: 2.688941 | E88: 3.013246 | H88: 104.712855 | I88: 2.316604 | J88: 3.333013 | K88: 3.695073 | N88: 104.712855 | O88: 2.221246 | P88: 1.975604 | Q88: 2.137735 | U88: 104.712855 | V88: 0.726902 | W88: 0.86013 | X88: 1.002839 | AA88: 104.712855 | AB88: 1.315407 | AC88: 1.320907 | AD88: 1.307776 | AG88: 104.712855 | AH88: 2.170539 | AI88: 2.510783 | AJ88: 2.441937 | AM88: 104.712855 | AN88: 0.093917 | AO88: 0.454369 | AP88: 0.171385 | AS88: 104.712855 | AT88: 0.442854 | AU88: 0.564204 | AV88: 0.273401 | AY88: 104.712855 | AZ88: 3.378219 | BA88: 2.992228 | BB88: 3.663104 | BE88: 104.712855 | BF88: 3.704147 | BG88: 3.314182 | BH88: 3.86273 | BM88: 104.712855 | BN88: 2.797201667 | BO88: 3.114896667 | BP88: 2.111528333 | BQ88: 0.8632903333 | BR88: 1.314696667 | BS88: 2.374419667 | BT88: 0.2398903333 | BU88: 0.4268196667 | BV88: 3.344517 | BW88: 3.627019667
B89: 120.226443 | C89: 4.419843 | D89: 4.617963 | E89: 4.896931 | H89: 120.226443 | I89: 3.601608 | J89: 4.886246 | K89: 5.4551 | N89: 120.226443 | O89: 3.06567 | P89: 2.864575 | Q89: 3.036891 | U89: 120.226443 | V89: 1.434241 | W89: 1.628388 | X89: 1.842511 | AA89: 120.226443 | AB89: 1.72977 | AC89: 1.698066 | AD89: 1.677305 | AG89: 120.226443 | AH89: 2.74731 | AI89: 3.200304 | AJ89: 3.05304 | AM89: 120.226443 | AN89: 0.216593 | AO89: 0.756917 | AP89: 0.371663 | AS89: 120.226443 | AT89: 0.675149 | AU89: 0.880612 | AV89: 0.4205 | AY89: 120.226443 | AZ89: 4.040168 | BA89: 3.477579 | BB89: 4.125754 | BE89: 120.226443 | BF89: 3.360638 | BG89: 3.021294 | BH89: 3.527515 | BM89: 120.226443 | BN89: 4.644912333 | BO89: 4.647651333 | BP89: 2.989045333 | BQ89: 1.635046667 | BR89: 1.701713667 | BS89: 3.000218 | BT89: 0.448391 | BU89: 0.6587536667 | BV89: 3.881167 | BW89: 3.303149
B90: 138.038426 | C90: 6.282423 | D90: 6.747997 | E90: 6.87403 | H90: 138.038426 | I90: 4.929978 | J90: 6.399335 | K90: 7.179118 | N90: 138.038426 | O90: 3.849757 | P90: 3.714003 | Q90: 3.890211 | U90: 138.038426 | V90: 2.32917 | W90: 2.569268 | X90: 2.867216 | AA90: 138.038426 | AB90: 2.065849 | AC90: 1.98852 | AD90: 1.965065 | AG90: 138.038426 | AH90: 3.212837 | AI90: 3.775329 | AJ90: 3.546865 | AM90: 138.038426 | AN90: 0.318824 | AO90: 1.092496 | AP90: 0.551075 | AS90: 138.038426 | AT90: 0.888862 | AU90: 1.219798 | AV90: 0.557747 | AY90: 138.038426 | AZ90: 4.72214 | BA90: 3.982786 | BB90: 4.562299 | BE90: 138.038426 | BF90: 2.904139 | BG90: 2.628989 | BH90: 3.062127 | BM90: 138.038426 | BN90: 6.634816667 | BO90: 6.169477 | BP90: 3.817990333 | BQ90: 2.588551333 | BR90: 2.006478 | BS90: 3.511677 | BT90: 0.6541316667 | BU90: 0.8888023333 | BV90: 4.422408333 | BW90: 2.865085
B91: 158.489319 | C91: 8.024101 | D91: 8.772658 | E91: 8.659596 | H91: 158.489319 | I91: 6.124783 | J91: 7.667832 | K91: 8.632127 | N91: 158.489319 | O91: 4.473912 | P91: 4.412875 | Q91: 4.585454 | U91: 158.489319 | V91: 3.353117 | W91: 3.60285 | X91: 4.009577 | AA91: 158.489319 | AB91: 2.266979 | AC91: 2.143181 | AD91: 2.122997 | AG91: 158.489319 | AH91: 3.502798 | AI91: 4.163956 | AJ91: 3.862306 | AM91: 158.489319 | AN91: 0.425482 | AO91: 1.385623 | AP91: 0.729587 | AS91: 158.489319 | AT91: 1.052613 | AU91: 1.512773 | AV91: 0.655693 | AY91: 158.489319 | AZ91: 5.417754 | BA91: 4.521922 | BB91: 4.993683 | BE91: 158.489319 | BF91: 2.381918 | BG91: 2.172413 | BH91: 2.517089 | BM91: 158.489319 | BN91: 8.485451667 | BO91: 7.474914 | BP91: 4.490747 | BQ91: 3.655181333 | BR91: 2.177719 | BS91: 3.84302 | BT91: 0.8468973333 | BU91: 1.073693 | BV91: 4.977786333 | BW91: 2.35714
B92: 181.970086 | C92: 9.284538 | D92: 10.255105 | E92: 9.865378 | H92: 181.970086 | I92: 6.954542 | J92: 8.448601 | K92: 9.529357 | N92: 181.970086 | O92: 4.835847 | P92: 4.836978 | Q92: 4.99938 | U92: 181.970086 | V92: 4.386567 | W92: 4.594095 | X92: 5.126325 | AA92: 181.970086 | AB92: 2.290996 | AC92: 2.134111 | AD92: 2.12158 | AG92: 181.970086 | AH92: 3.573109 | AI92: 4.311433 | AJ92: 3.960011 | AM92: 181.970086 | AN92: 0.50808 | AO92: 1.582602 | AP92: 0.85206 | AS92: 181.970086 | AT92: 1.128116 | AU92: 1.709582 | AV92: 0.69178 | AY92: 181.970086 | AZ92: 6.072861 | BA92: 5.072412 | BB92: 5.414828 | BE92: 181.970086 | BF92: 1.874191 | BG92: 1.71719 | BH92: 1.978737 | BM92: 181.970086 | BN92: 9.801673667 | BO92: 8.310833333 | BP92: 4.890735 | BQ92: 4.702329 | BR92: 2.182229 | BS92: 3.948184333 | BT92: 0.980914 | BU92: 1.176492667 | BV92: 5.520033667 | BW92: 1.856706
B93: 208.929613 | C93: 9.851067 | D93: 10.93048 | E93: 10.268164 | H93: 208.929613 | I93: 7.306778 | J93: 8.635579 | K93: 9.738357 | N93: 208.929613 | O93: 4.919017 | P93: 4.947866 | Q93: 5.094552 | U93: 208.929613 | V93: 5.355836 | W93: 5.459926 | X93: 6.130989 | AA93: 208.929613 | AB93: 2.144455 | AC93: 1.983225 | AD93: 1.97834 | AG93: 208.929613 | AH93: 3.441173 | AI93: 4.231468 | AJ93: 3.864051 | AM93: 208.929613 | AN93: 0.573037 | AO93: 1.653882 | AP93: 0.907086 | AS93: 208.929613 | AT93: 1.111005 | AU93: 1.789209 | AV93: 0.667618 | AY93: 208.929613 | AZ93: 6.654742 | BA93: 5.625599 | BB93: 5.829805 | BE93: 208.929613 | BF93: 1.424427 | BG93: 1.301092 | BH93: 1.495822 | BM93: 208.929613 | BN93: 10.34990367 | BO93: 8.560238 | BP93: 4.987145 | BQ93: 5.648917 | BR93: 2.03534 | BS93: 3.845564 | BT93: 1.044668333 | BU93: 1.189277333 | BV93: 6.036715333 | BW93: 1.407113667
B94: 239.883292 | C94: 9.605811 | D94: 10.654772 | E94: 9.768356 | H94: 239.883292 | I94: 7.14433 | J94: 8.216857 | K94: 9.232437 | N94: 239.883292 | O94: 4.76661 | P94: 4.766616 | Q94: 4.894582 | U94: 239.883292 | V94: 6.144816 | W94: 6.093071 | X94: 6.896392 | AA94: 239.883292 | AB94: 1.888785 | AC94: 1.767977 | AD94: 1.763655 | AG94: 239.883292 | AH94: 3.179524 | AI94: 3.989951 | AJ94: 3.647418 | AM94: 239.883292 | AN94: 0.639203 | AO94: 1.603865 | AP94: 0.899845 | AS94: 239.883292 | AT94: 1.032454 | AU94: 1.763951 | AV94: 0.61677 | AY94: 239.883292 | AZ94: 7.079787 | BA94: 6.118934 | BB94: 6.193655 | BE94: 239.883292 | BF94: 1.083081 | BG94: 0.975534 | BH94: 1.124932 | BM94: 239.883292 | BN94: 10.00964633 | BO94: 8.197874667 | BP94: 4.809269333 | BQ94: 6.378093 | BR94: 1.806805667 | BS94: 3.605631 | BT94: 1.047637667 | BU94: 1.137725 | BV94: 6.464125333 | BW94: 1.061182333
B95: 275.42287 | C95: 8.621632 | D95: 9.519664 | E95: 8.465908 | H95: 275.42287 | I95: 6.555724 | J95: 7.300134 | K95: 8.121742 | N95: 275.42287 | O95: 4.485608 | P95: 4.386458 | Q95: 4.494958 | U95: 275.42287 | V95: 6.72194 | W95: 6.478486 | X95: 7.386893 | AA95: 275.42287 | AB95: 1.622809 | AC95: 1.599839 | AD95: 1.581547 | AG95: 275.42287 | AH95: 2.891834 | AI95: 3.685051 | AJ95: 3.408009 | AM95: 275.42287 | AN95: 0.757431 | AO95: 1.487311 | AP95: 0.876686 | AS95: 275.42287 | AT95: 0.964126 | AU95: 1.693681 | AV95: 0.60773 | AY95: 275.42287 | AZ95: 7.289695 | BA95: 6.503782 | BB95: 6.460586 | BE95: 275.42287 | BF95: 0.851372 | BG95: 0.754055 | BH95: 0.869478 | BM95: 275.42287 | BN95: 8.869068 | BO95: 7.325866667 | BP95: 4.455674667 | BQ95: 6.862439667 | BR95: 1.601398333 | BS95: 3.328298 | BT95: 1.040476 | BU95: 1.088512333 | BV95: 6.751354333 | BW95: 0.8249683333
B96: 316.227766 | C96: 7.151443 | D96: 7.831171 | E96: 6.669627 | H96: 316.227766 | I96: 5.73243 | J96: 6.113094 | K96: 6.660212 | N96: 316.227766 | O96: 4.224136 | P96: 3.959993 | Q96: 4.052194 | U96: 316.227766 | V96: 7.05756 | W96: 6.624237 | X96: 7.577242 | AA96: 316.227766 | AB96: 1.487773 | AC96: 1.619364 | AD96: 1.567492 | AG96: 316.227766 | AH96: 2.710267 | AI96: 3.441545 | AJ96: 3.259324 | AM96: 316.227766 | AN96: 0.996891 | AO96: 1.409321 | AP96: 0.922392 | AS96: 316.227766 | AT96: 1.014381 | AU96: 1.678403 | AV96: 0.739548 | AY96: 316.227766 | AZ96: 7.222615 | BA96: 6.704267 | BB96: 6.556103 | BE96: 316.227766 | BF96: 0.725706 | BG96: 0.65118 | BH96: 0.726392 | BM96: 316.227766 | BN96: 7.217413667 | BO96: 6.168578667 | BP96: 4.078774333 | BQ96: 7.086346333 | BR96: 1.558209667 | BS96: 3.137045333 | BT96: 1.109534667 | BU96: 1.144110667 | BV96: 6.827661667 | BW96: 0.7010926667
B97: 363.078055 | C97: 5.478525 | D97: 5.924432 | E97: 4.711263 | H97: 363.078055 | I97: 4.867915 | J97: 4.870035 | K97: 5.089068 | N97: 363.078055 | O97: 4.10827 | P97: 3.632174 | Q97: 3.714446 | U97: 363.078055 | V97: 7.180158 | W97: 6.593374 | X97: 7.500406 | AA97: 363.078055 | AB97: 1.619417 | AC97: 1.952571 | AD97: 1.845963 | AG97: 363.078055 | AH97: 2.742096 | AI97: 3.357134 | AJ97: 3.283481 | AM97: 363.078055 | AN97: 1.449781 | AO97: 1.503582 | AP97: 1.152916 | AS97: 363.078055 | AT97: 1.306993 | AU97: 1.838316 | AV97: 1.128472 | AY97: 363.078055 | AZ97: 6.853771 | BA97: 6.672266 | BB97: 6.420844 | BE97: 363.078055 | BF97: 0.676983 | BG97: 0.659273 | BH97: 0.663359 | BM97: 363.078055 | BN97: 5.371406667 | BO97: 4.942339333 | BP97: 3.818296667 | BQ97: 7.091312667 | BR97: 1.805983667 | BS97: 3.127570333 | BT97: 1.368759667 | BU97: 1.424593667 | BV97: 6.648960333 | BW97: 0.6665383333
B98: 416.869383 | C98: 3.93668 | D98: 4.176236 | E98: 2.960063 | H98: 416.869383 | I98: 4.158589 | J98: 3.801586 | K98: 3.681362 | N98: 416.869383 | O98: 4.217691 | P98: 3.530107 | Q98: 3.611014 | U98: 416.869383 | V98: 7.125913 | W98: 6.459435 | X98: 7.209 | AA98: 416.869383 | AB98: 2.122214 | AC98: 2.669901 | AD98: 2.494398 | AG98: 416.869383 | AH98: 3.053825 | AI98: 3.494944 | AJ98: 3.52051 | AM98: 416.869383 | AN98: 2.188739 | AO98: 1.904835 | AP98: 1.685065 | AS98: 416.869383 | AT98: 1.943992 | AU98: 2.283193 | AV98: 1.866801 | AY98: 416.869383 | AZ98: 6.209569 | BA98: 6.383959 | BB98: 6.021595 | BE98: 416.869383 | BF98: 0.670061 | BG98: 0.75945 | BH98: 0.640745 | BM98: 416.869383 | BN98: 3.690993 | BO98: 3.880512333 | BP98: 3.786270667 | BQ98: 6.931449333 | BR98: 2.428837667 | BS98: 3.356426333 | BT98: 1.926213 | BU98: 2.031328667 | BV98: 6.205041 | BW98: 0.6900853333
B99: 478.630092 | C99: 2.721227 | D99: 2.788926 | E99: 1.524723 | H99: 478.630092 | I99: 3.70351 | J99: 3.02124 | K99: 2.579756 | N99: 478.630092 | O99: 4.552284 | P99: 3.710779 | Q99: 3.7966 | U99: 478.630092 | V99: 6.935379 | W99: 6.282743 | X99: 6.758828 | AA99: 478.630092 | AB99: 3.047031 | AC99: 3.779111 | AD99: 3.533256 | AG99: 478.630092 | AH99: 3.653468 | AI99: 3.861258 | AJ99: 3.959662 | AM99: 478.630092 | AN99: 3.277776 | AO99: 2.722158 | AP99: 2.62479 | AS99: 478.630092 | AT99: 2.99675 | AU99: 3.096181 | AV99: 3.022242 | AY99: 478.630092 | AZ99: 5.344284 | BA99: 5.848258 | BB99: 5.357349 | BE99: 478.630092 | BF99: 0.664563 | BG99: 0.920716 | BH99: 0.616314 | BM99: 478.630092 | BN99: 2.344958667 | BO99: 3.101502 | BP99: 4.019887667 | BQ99: 6.658983333 | BR99: 3.453132667 | BS99: 3.824796 | BT99: 2.874908 | BU99: 3.038391 | BV99: 5.516630333 | BW99: 0.7338643333
B100: 549.540874 | C100: 1.943744 | D100: 1.863724 | E100: 0.926131 | H100: 549.540874 | I100: 3.533131 | J100: 2.571995 | K100: 1.859993 | N100: 549.540874 | O100: 5.0273 | P100: 4.15553 | Q100: 4.243679 | U100: 549.540874 | V100: 6.639519 | W100: 6.095494 | X100: 6.208269 | AA100: 549.540874 | AB100: 4.338236 | AC100: 5.167858 | AD100: 4.870747 | AG100: 549.540874 | AH100: 4.468097 | AI100: 4.395965 | AJ100: 4.530282 | AM100: 549.540874 | AN100: 4.702095 | AO100: 3.976519 | AP100: 3.997845 | AS100: 549.540874 | AT100: 4.439069 | AU100: 4.278731 | AV100: 4.56458 | AY100: 549.540874 | AZ100: 4.361127 | BA100: 5.119352 | BB100: 4.487382 | BE100: 549.540874 | BF100: 0.625749 | BG100: 1.098552 | BH100: 0.546771 | BM100: 549.540874 | BN100: 1.577866333 | BO100: 2.655039667 | BP100: 4.475503 | BQ100: 6.314427333 | BR100: 4.792280333 | BS100: 4.464781333 | BT100: 4.225486333 | BU100: 4.42746 | BV100: 4.655953667 | BW100: 0.757024
B101: 630.957344 | C101: 1.571911 | D101: 1.346523 | E101: 1.019147 | H101: 630.957344 | I101: 3.59063 | J101: 2.393032 | K101: 1.479194 | N101: 630.957344 | O101: 5.510094 | P101: 4.780997 | Q101: 4.853121 | U101: 630.957344 | V101: 6.247922 | W101: 5.888302 | X101: 5.593933 | AA101: 630.957344 | AB101: 5.867373 | AC101: 6.659618 | AD101: 6.351197 | AG101: 630.957344 | AH101: 5.379337 | AI101: 4.997779 | AJ101: 5.134123 | AM101: 630.957344 | AN101: 6.399877 | AO101: 5.609884 | AP101: 5.76183 | AS101: 630.957344 | AT101: 6.178679 | AU101: 5.769035 | AV101: 6.400735 | AY101: 630.957344 | AZ101: 3.349391 | BA101: 4.261121 | BB101: 3.483989 | BE101: 630.957344 | BF101: 0.528766 | BG101: 1.244377 | BH101: 0.434788 | BM101: 630.957344 | BN101: 1.312527 | BO101: 2.487618667 | BP101: 5.048070667 | BQ101: 5.910052333 | BR101: 6.292729333 | BS101: 5.170413 | BT101: 5.923863667 | BU101: 6.116149667 | BV101: 3.698167 | BW101: 0.735977
B102: 724.43596 | C102: 1.503535 | D102: 1.122274 | E102: 1.331648 | H102: 724.43596 | I102: 3.766634 | J102: 2.374649 | K102: 1.340258 | N102: 724.43596 | O102: 5.84897 | P102: 5.44949 | Q102: 5.468884 | U102: 724.43596 | V102: 5.763996 | W102: 5.627683 | X102: 4.94082 | AA102: 724.43596 | AB102: 7.405181 | AC102: 7.999732 | AD102: 7.736004 | AG102: 724.43596 | AH102: 6.220274 | AI102: 5.529958 | AJ102: 5.647664 | AM102: 724.43596 | AN102: 8.204764 | AO102: 7.434852 | AP102: 7.742549 | AS102: 724.43596 | AT102: 8.010927 | AU102: 7.398557 | AV102: 8.321677 | AY102: 724.43596 | AZ102: 2.342748 | BA102: 3.357782 | BB102: 2.468566 | BE102: 724.43596 | BF102: 0.387399 | BG102: 1.316991 | BH102: 0.217143 | BM102: 724.43596 | BN102: 1.319152333 | BO102: 2.493847 | BP102: 5.589114667 | BQ102: 5.444166333 | BR102: 7.713639 | BS102: 5.799298667 | BT102: 7.794055 | BU102: 7.910387 | BV102: 2.723032 | BW102: 0.640511
B103: 831.763771 | C103: 1.599915 | D103: 1.053883 | E103: 1.815401 | H103: 831.763771 | I103: 3.931978 | J103: 2.392397 | K103: 1.320133 | N103: 831.763771 | O103: 5.9293 | P103: 6.012802 | Q103: 5.930442 | U103: 831.763771 | V103: 5.187772 | W103: 5.271733 | X103: 4.277149 | AA103: 831.763771 | AB103: 8.694979 | AC103: 8.94571 | AD103: 8.785672 | AG103: 831.763771 | AH103: 6.829748 | AI103: 5.864605 | AJ103: 5.961035 | AM103: 831.763771 | AN103: 9.894685 | AO103: 9.189067 | AP103: 9.681516 | AS103: 831.763771 | AT103: 9.68362 | AU103: 8.94086 | AV103: 10.067592 | AY103: 831.763771 | AZ103: 1.449023 | BA103: 2.434582 | BB103: 1.41996 | BE103: 831.763771 | BF103: 0.212813 | BG103: 1.276163 | BH103: 0.067385 | BM103: 831.763771 | BN103: 1.489733 | BO103: 2.548169333 | BP103: 5.957514667 | BQ103: 4.912218 | BR103: 8.808787 | BS103: 6.218462667 | BT103: 9.588422667 | BU103: 9.564024 | BV103: 1.767855 | BW103: 0.518787
B104: 954.992586 | C104: 1.730265 | D104: 1.029639 | E104: 2.297732 | H104: 954.992586 | I104: 3.973579 | J104: 2.348425 | K104: 1.31496 | N104: 954.992586 | O104: 5.697806 | P104: 6.333886 | Q104: 6.105714 | U104: 954.992586 | V104: 4.531913 | W104: 4.794489 | X104: 3.580986 | AA104: 954.992586 | AB104: 9.487589 | AC104: 9.309911 | AD104: 9.296957 | AG104: 954.992586 | AH104: 7.075231 | AI104: 5.905108 | AJ104: 5.992403 | AM104: 954.992586 | AN104: 11.197199 | AO104: 10.557948 | AP104: 11.248763 | AS104: 954.992586 | AT104: 10.916043 | AU104: 10.125591 | AV104: 11.346559 | AY104: 954.992586 | AZ104: 0.811948 | BA104: 1.575144 | BB104: 0.523752 | BE104: 954.992586 | BF104: 0.095103 | BG104: 1.139511 | BH104: 0 | BM104: 954.992586 | BN104: 1.685878667 | BO104: 2.545654667 | BP104: 6.045802 | BQ104: 4.302462667 | BR104: 9.364819 | BS104: 6.324247333 | BT104: 11.00130333 | BU104: 10.79606433 | BV104: 0.9702813333 | BW104: 0.411538
B105: 1096.478196 | C105: 1.794465 | D105: 0.985799 | E105: 2.642934 | H105: 1096.478196 | I105: 3.820524 | J105: 2.192559 | K105: 1.261176 | N105: 1096.478196 | O105: 5.173593 | P105: 6.313905 | Q105: 5.924542 | U105: 1096.478196 | V105: 3.82791 | W105: 4.201237 | X105: 2.845617 | AA105: 1096.478196 | AB105: 9.605076 | AC105: 9.014124 | AD105: 9.157715 | AG105: 1096.478196 | AH105: 6.883738 | AI105: 5.609444 | AJ105: 5.7045 | AM105: 1096.478196 | AN105: 11.842445 | AO105: 11.24485 | AP105: 12.1121 | AS105: 1096.478196 | AT105: 11.45701 | AU105: 10.694212 | AV105: 11.897452 | AY105: 1096.478196 | AZ105: 0.379597 | BA105: 0.990446 | BB105: 0.199127 | BE105: 1096.478196 | BF105: 0 | BG105: 0.997151 | BH105: 0 | BM105: 1096.478196 | BN105: 1.807732667 | BO105: 2.424753 | BP105: 5.804013333 | BQ105: 3.624921333 | BR105: 9.258971667 | BS105: 6.065894 | BT105: 11.73313167 | BU105: 11.349558 | BV105: 0.5230566667 | BW105: 0.3323836667
B106: 1258.925412 | C106: 1.732459 | D106: 0.912463 | E106: 2.743759 | H106: 1258.925412 | I106: 3.445873 | J106: 1.919367 | K106: 1.135872 | N106: 1258.925412 | O106: 4.418335 | P106: 5.896932 | Q106: 5.377093 | U106: 1258.925412 | V106: 3.104909 | W106: 3.513283 | X106: 2.315918 | AA106: 1258.925412 | AB106: 8.976655 | AC106: 8.091726 | AD106: 8.360709 | AG106: 1258.925412 | AH106: 6.24564 | AI106: 4.987184 | AJ106: 5.099821 | AM106: 1258.925412 | AN106: 11.613663 | AO106: 11.034114 | AP106: 12.009262 | AS106: 1258.925412 | AT106: 11.127836 | AU106: 10.450324 | AV106: 11.53821 | AY106: 1258.925412 | AZ106: 0.263569 | BA106: 0.59724 | BB106: 0 | BE106: 1258.925412 | BF106: 0 | BG106: 0.78943 | BH106: 0 | BM106: 1258.925412 | BN106: 1.796227 | BO106: 2.167037333 | BP106: 5.230786667 | BQ106: 2.978036667 | BR106: 8.476363333 | BS106: 5.444215 | BT106: 11.55234633 | BU106: 11.03879 | BV106: 0.2869363333 | BW106: 0.2631433333
B107: 1445.439771 | C107: 1.522203 | D107: 0.796636 | E107: 2.539917 | H107: 1445.439771 | I107: 2.862203 | J107: 1.545671 | K107: 0.944545 | N107: 1445.439771 | O107: 3.515028 | P107: 5.07203 | Q107: 4.50334 | U107: 1445.439771 | V107: 2.390319 | W107: 2.765695 | X107: 1.80376 | AA107: 1445.439771 | AB107: 7.648626 | AC107: 6.668467 | AD107: 6.995922 | AG107: 1445.439771 | AH107: 5.213349 | AI107: 4.095226 | AJ107: 4.220065 | AM107: 1445.439771 | AN107: 10.38251 | AO107: 9.825758 | AP107: 10.793159 | AS107: 1445.439771 | AT107: 9.846683 | AU107: 9.292949 | AV107: 10.192388 | AY107: 1445.439771 | AZ107: 0.151174 | BA107: 0.300784 | BB107: 0 | BE107: 1445.439771 | BF107: 0 | BG107: 0.548069 | BH107: 0 | BM107: 1445.439771 | BN107: 1.619585333 | BO107: 1.784139667 | BP107: 4.363466 | BQ107: 2.319924667 | BR107: 7.104338333 | BS107: 4.509546667 | BT107: 10.333809 | BU107: 9.77734 | BV107: 0.1506526667 | BW107: 0.1826896667
B108: 1659.586907 | C108: 1.183865 | D108: 0.622967 | E108: 2.052123 | H108: 1659.586907 | I108: 2.120135 | J108: 1.080887 | K108: 0.706589 | N108: 1659.586907 | O108: 2.541911 | P108: 3.903559 | Q108: 3.390744 | U108: 1659.586907 | V108: 1.697051 | W108: 1.992187 | X108: 1.289223 | AA108: 1659.586907 | AB108: 5.801474 | AC108: 4.932059 | AD108: 5.240011 | AG108: 1659.586907 | AH108: 3.901488 | AI108: 3.027318 | AJ108: 3.130783 | AM108: 1659.586907 | AN108: 8.23315 | AO108: 7.739688 | AP108: 8.566966 | AS108: 1659.586907 | AT108: 7.728044 | AU108: 7.320503 | AV108: 7.987375 | AY108: 1659.586907 | AZ108: 0.038142 | BA108: 0.176255 | BB108: 0 | BE108: 1659.586907 | BF108: 0 | BG108: 0.35652 | BH108: 0 | BM108: 1659.586907 | BN108: 1.286318333 | BO108: 1.302537 | BP108: 3.278738 | BQ108: 1.659487 | BR108: 5.324514667 | BS108: 3.353196333 | BT108: 8.179934667 | BU108: 7.678640667 | BV108: 0.07146566667 | BW108: 0.11884
B109: 1905.460718 | C109: 0.687038 | D109: 0.364384 | E109: 1.22216 | H109: 1905.460718 | I109: 1.173459 | J109: 0.600205 | K109: 0.402728 | N109: 1905.460718 | O109: 1.418065 | P109: 2.264173 | Q109: 1.939973 | U109: 1905.460718 | V109: 0.938973 | W109: 1.110452 | X109: 0.71588 | AA109: 1905.460718 | AB109: 3.322542 | AC109: 2.783061 | AD109: 2.980991 | AG109: 1905.460718 | AH109: 2.218335 | AI109: 1.705687 | AJ109: 1.731934 | AM109: 1905.460718 | AN109: 4.872415 | AO109: 4.547493 | AP109: 5.058829 | AS109: 1905.460718 | AT109: 4.532289 | AU109: 4.303283 | AV109: 4.680523 | AY109: 1905.460718 | AZ109: 0 | BA109: 0.082879 | BB109: 0 | BE109: 1905.460718 | BF109: 0 | BG109: 0.181921 | BH109: 0 | BM109: 1905.460718 | BN109: 0.7578606667 | BO109: 0.725464 | BP109: 1.874070333 | BQ109: 0.9217683333 | BR109: 3.028864667 | BS109: 1.885318667 | BT109: 4.826245667 | BU109: 4.505365 | BV109: 0.02762633333 | BW109: 0.06064033333
B110: 2187.761624 | C110: 0.164488 | D110: 0.087811 | E110: 0.297143 | H110: 2187.761624 | I110: 0.27067 | J110: 0.14523 | K110: 0.095901 | N110: 2187.761624 | O110: 0.333843 | P110: 0.543732 | Q110: 0.462674 | U110: 2187.761624 | V110: 0.220334 | W110: 0.261406 | X110: 0.168155 | AA110: 2187.761624 | AB110: 0.791688 | AC110: 0.658434 | AD110: 0.708249 | AG110: 2187.761624 | AH110: 0.526827 | AI110: 0.402644 | AJ110: 0.398345 | AM110: 2187.761624 | AN110: 1.183544 | AO110: 1.098836 | AP110: 1.225658 | AS110: 2187.761624 | AT110: 1.094205 | AU110: 1.040213 | AV110: 1.129634 | AY110: 2187.761624 | AZ110: 0 | BA110: 0.02172 | BB110: 0 | BE110: 2187.761624 | BF110: 0 | BG110: 0.049663 | BH110: 0 | BM110: 2187.761624 | BN110: 0.1831473333 | BO110: 0.1706003333 | BP110: 0.4467496667 | BQ110: 0.2166316667 | BR110: 0.719457 | BS110: 0.4426053333 | BT110: 1.169346 | BU110: 1.088017333 | BV110: 0.00724 | BW110: 0.01655433333
B111: 2511.886432 | C111: 0 | D111: 0 | E111: 0 | H111: 2511.886432 | I111: 0 | J111: 0 | K111: 0 | N111: 2511.886432 | O111: 0 | P111: 0 | Q111: 0 | U111: 2511.886432 | V111: 0 | W111: 0 | X111: 0 | AA111: 2511.886432 | AB111: 0 | AC111: 0 | AD111: 0 | AG111: 2511.886432 | AH111: 0 | AI111: 0 | AJ111: 0 | AM111: 2511.886432 | AN111: 0 | AO111: 0 | AP111: 0 | AS111: 2511.886432 | AT111: 0 | AU111: 0 | AV111: 0 | AY111: 2511.886432 | AZ111: 0 | BA111: 0 | BB111: 0 | BE111: 2511.886432 | BF111: 0 | BG111: 0 | BH111: 0 | BM111: 2511.886432 | BN111: 0 | BO111: 0 | BP111: 0 | BQ111: 0 | BR111: 0 | BS111: 0 | BT111: 0 | BU111: 0 | BV111: 0 | BW111: 0
B112: 2884.031503 | C112: 0 | D112: 0 | E112: 0 | H112: 2884.031503 | I112: 0 | J112: 0 | K112: 0 | N112: 2884.031503 | O112: 0 | P112: 0 | Q112: 0 | U112: 2884.031503 | V112: 0 | W112: 0 | X112: 0 | AA112: 2884.031503 | AB112: 0 | AC112: 0 | AD112: 0 | AG112: 2884.031503 | AH112: 0 | AI112: 0 | AJ112: 0 | AM112: 2884.031503 | AN112: 0 | AO112: 0 | AP112: 0 | AS112: 2884.031503 | AT112: 0 | AU112: 0 | AV112: 0 | AY112: 2884.031503 | AZ112: 0 | BA112: 0 | BB112: 0 | BE112: 2884.031503 | BF112: 0 | BG112: 0 | BH112: 0 | BM112: 2884.031503 | BN112: 0 | BO112: 0 | BP112: 0 | BQ112: 0 | BR112: 0 | BS112: 0 | BT112: 0 | BU112: 0 | BV112: 0 | BW112: 0
B113: 3311.311215 | C113: 0 | D113: 0 | E113: 0 | H113: 3311.311215 | I113: 0 | J113: 0 | K113: 0 | N113: 3311.311215 | O113: 0 | P113: 0 | Q113: 0 | U113: 3311.311215 | V113: 0 | W113: 0 | X113: 0 | AA113: 3311.311215 | AB113: 0 | AC113: 0 | AD113: 0 | AG113: 3311.311215 | AH113: 0 | AI113: 0 | AJ113: 0 | AM113: 3311.311215 | AN113: 0 | AO113: 0 | AP113: 0 | AS113: 3311.311215 | AT113: 0 | AU113: 0 | AV113: 0 | AY113: 3311.311215 | AZ113: 0 | BA113: 0 | BB113: 0 | BE113: 3311.311215 | BF113: 0 | BG113: 0 | BH113: 0 | BM113: 3311.311215 | BN113: 0 | BO113: 0 | BP113: 0 | BQ113: 0 | BR113: 0 | BS113: 0 | BT113: 0 | BU113: 0 | BV113: 0 | BW113: 0
B114: 3801.893963 | C114: 0 | D114: 0 | E114: 0 | H114: 3801.893963 | I114: 0 | J114: 0 | K114: 0 | N114: 3801.893963 | O114: 0 | P114: 0 | Q114: 0 | U114: 3801.893963 | V114: 0 | W114: 0 | X114: 0 | AA114: 3801.893963 | AB114: 0 | AC114: 0 | AD114: 0 | AG114: 3801.893963 | AH114: 0 | AI114: 0 | AJ114: 0 | AM114: 3801.893963 | AN114: 0 | AO114: 0 | AP114: 0 | AS114: 3801.893963 | AT114: 0 | AU114: 0 | AV114: 0 | AY114: 3801.893963 | AZ114: 0 | BA114: 0 | BB114: 0 | BE114: 3801.893963 | BF114: 0 | BG114: 0 | BH114: 0 | BM114: 3801.893963 | BN114: 0 | BO114: 0 | BP114: 0 | BQ114: 0 | BR114: 0 | BS114: 0 | BT114: 0 | BU114: 0 | BV114: 0 | BW114: 0
B115: 4365.158322 | C115: 0 | D115: 0 | E115: 0 | H115: 4365.158322 | I115: 0 | J115: 0 | K115: 0 | N115: 4365.158322 | O115: 0 | P115: 0 | Q115: 0 | U115: 4365.158322 | V115: 0 | W115: 0 | X115: 0 | AA115: 4365.158322 | AB115: 0 | AC115: 0 | AD115: 0 | AG115: 4365.158322 | AH115: 0 | AI115: 0 | AJ115: 0 | AM115: 4365.158322 | AN115: 0 | AO115: 0 | AP115: 0 | AS115: 4365.158322 | AT115: 0 | AU115: 0 | AV115: 0 | AY115: 4365.158322 | AZ115: 0 | BA115: 0 | BB115: 0 | BE115: 4365.158322 | BF115: 0 | BG115: 0 | BH115: 0 | BM115: 4365.158322 | BN115: 0 | BO115: 0 | BP115: 0 | BQ115: 0 | BR115: 0 | BS115: 0 | BT115: 0 | BU115: 0 | BV115: 0 | BW115: 0
B116: 5011.872336 | C116: 0 | D116: 0 | E116: 0 | H116: 5011.872336 | I116: 0 | J116: 0 | K116: 0 | N116: 5011.872336 | O116: 0 | P116: 0 | Q116: 0 | U116: 5011.872336 | V116: 0 | W116: 0 | X116: 0 | AA116: 5011.872336 | AB116: 0 | AC116: 0 | AD116: 0 | AG116: 5011.872336 | AH116: 0 | AI116: 0 | AJ116: 0 | AM116: 5011.872336 | AN116: 0 | AO116: 0 | AP116: 0 | AS116: 5011.872336 | AT116: 0 | AU116: 0 | AV116: 0 | AY116: 5011.872336 | AZ116: 0 | BA116: 0 | BB116: 0 | BE116: 5011.872336 | BF116: 0 | BG116: 0 | BH116: 0 | BM116: 5011.872336 | BN116: 0 | BO116: 0 | BP116: 0 | BQ116: 0 | BR116: 0 | BS116: 0 | BT116: 0 | BU116: 0 | BV116: 0 | BW116: 0
B117: 5754.399373 | C117: 0 | D117: 0 | E117: 0 | H117: 5754.399373 | I117: 0 | J117: 0 | K117: 0 | N117: 5754.399373 | O117: 0 | P117: 0 | Q117: 0 | U117: 5754.399373 | V117: 0 | W117: 0 | X117: 0 | AA117: 5754.399373 | AB117: 0 | AC117: 0 | AD117: 0 | AG117: 5754.399373 | AH117: 0 | AI117: 0 | AJ117: 0 | AM117: 5754.399373 | AN117: 0 | AO117: 0 | AP117: 0 | AS117: 5754.399373 | AT117: 0 | AU117: 0 | AV117: 0 | AY117: 5754.399373 | AZ117: 0 | BA117: 0 | BB117: 0 | BE117: 5754.399373 | BF117: 0 | BG117: 0 | BH117: 0 | BM117: 5754.399373 | BN117: 0 | BO117: 0 | BP117: 0 | BQ117: 0 | BR117: 0 | BS117: 0 | BT117: 0 | BU117: 0 | BV117: 0 | BW117: 0
B118: 6606.93448 | C118: 0 | D118: 0 | E118: 0 | H118: 6606.93448 | I118: 0 | J118: 0 | K118: 0 | N118: 6606.93448 | O118: 0 | P118: 0 | Q118: 0 | U118: 6606.93448 | V118: 0 | W118: 0 | X118: 0 | AA118: 6606.93448 | AB118: 0 | AC118: 0 | AD118: 0 | AG118: 6606.93448 | AH118: 0 | AI118: 0 | AJ118: 0 | AM118: 6606.93448 | AN118: 0 | AO118: 0 | AP118: 0 | AS118: 6606.93448 | AT118: 0 | AU118: 0 | AV118: 0 | AY118: 6606.93448 | AZ118: 0 | BA118: 0 | BB118: 0 | BE118: 6606.93448 | BF118: 0 | BG118: 0 | BH118: 0 | BM118: 6606.93448 | BN118: 0 | BO118: 0 | BP118: 0 | BQ118: 0 | BR118: 0 | BS118: 0 | BT118: 0 | BU118: 0 | BV118: 0 | BW118: 0
B119: 7585.77575 | C119: 0 | D119: 0 | E119: 0 | H119: 7585.77575 | I119: 0 | J119: 0 | K119: 0 | N119: 7585.77575 | O119: 0 | P119: 0 | Q119: 0 | U119: 7585.77575 | V119: 0 | W119: 0 | X119: 0 | AA119: 7585.77575 | AB119: 0 | AC119: 0 | AD119: 0 | AG119: 7585.77575 | AH119: 0 | AI119: 0 | AJ119: 0 | AM119: 7585.77575 | AN119: 0 | AO119: 0 | AP119: 0 | AS119: 7585.77575 | AT119: 0 | AU119: 0 | AV119: 0 | AY119: 7585.77575 | AZ119: 0 | BA119: 0 | BB119: 0 | BE119: 7585.77575 | BF119: 0 | BG119: 0 | BH119: 0 | BM119: 7585.77575 | BN119: 0 | BO119: 0 | BP119: 0 | BQ119: 0 | BR119: 0 | BS119: 0 | BT119: 0 | BU119: 0 | BV119: 0 | BW119: 0
B120: 8709.6359 | C120: 0 | D120: 0 | E120: 0 | H120: 8709.6359 | I120: 0 | J120: 0 | K120: 0 | N120: 8709.6359 | O120: 0 | P120: 0 | Q120: 0 | U120: 8709.6359 | V120: 0 | W120: 0 | X120: 0 | AA120: 8709.6359 | AB120: 0 | AC120: 0 | AD120: 0 | AG120: 8709.6359 | AH120: 0 | AI120: 0 | AJ120: 0 | AM120: 8709.6359 | AN120: 0 | AO120: 0 | AP120: 0 | AS120: 8709.6359 | AT120: 0 | AU120: 0 | AV120: 0 | AY120: 8709.6359 | AZ120: 0 | BA120: 0 | BB120: 0 | BE120: 8709.6359 | BF120: 0 | BG120: 0 | BH120: 0 | BM120: 8709.6359 | BN120: 0 | BO120: 0 | BP120: 0 | BQ120: 0 | BR120: 0 | BS120: 0 | BT120: 0 | BU120: 0 | BV120: 0 | BW120: 0
B121: 10000 | C121: 0 | D121: 0 | E121: 0 | H121: 10000 | I121: 0 | J121: 0 | K121: 0 | N121: 10000 | O121: 0 | P121: 0 | Q121: 0 | U121: 10000 | V121: 0 | W121: 0 | X121: 0 | AA121: 10000 | AB121: 0 | AC121: 0 | AD121: 0 | AG121: 10000 | AH121: 0 | AI121: 0 | AJ121: 0 | AM121: 10000 | AN121: 0 | AO121: 0 | AP121: 0 | AS121: 10000 | AT121: 0 | AU121: 0 | AV121: 0 | AY121: 10000 | AZ121: 0 | BA121: 0 | BB121: 0 | BE121: 10000 | BF121: 0 | BG121: 0 | BH121: 0 | BM121: 10000 | BN121: 0 | BO121: 0 | BP121: 0 | BQ121: 0 | BR121: 0 | BS121: 0 | BT121: 0 | BU121: 0 | BV121: 0 | BW121: 0

Sheet Calculations (hidden)
A1: Basics | D1: Basics | G1: Basics | J1: Basics
A2: =IF('Texture Calculator'!$G$4+1.5*'Texture Calculator'!$E$4<0.15,1,0) -> 1 | B2: ((silt + 1.5*clay) < 15) | C2: SAND | D2: =IF('Texture Calculator'!$G$5+1.5*'Texture Calculator'!$E$5<0.15,1,0) -> 1 | E2: ((silt + 1.5*clay) < 15) | F2: SAND | G2: =IF('Texture Calculator'!$G$6+1.5*'Texture Calculator'!$E$6<0.15,1,0) -> 1 | H2: ((silt + 1.5*clay) < 15) | I2: SAND | J2: =IF('Texture Calculator'!$G$7+1.5*'Texture Calculator'!$E$7<0.15,1,0) -> 1 | K2: ((silt + 1.5*clay) < 15) | L2: SAND
A3: =IF(AND('Texture Calculator'!$G$4+1.5*'Texture Calculator'!$E$4>=0.15, 'Texture Calculator'!$G$4+2*'Texture Calculator'!$E$4<0.3), 2, 0) -> 0 | B3: ((silt + 1.5*clay >= 15) && (silt + 2*clay < 30)) | C3: LOAMY SAND | D3: =IF(AND('Texture Calculator'!$G$5+1.5*'Texture Calculator'!$E$5>=0.15, 'Texture Calculator'!$G$5+2*'Texture Calculator'!$E$5<0.3), 2, 0) -> 0 | E3: ((silt + 1.5*clay >= 15) && (silt + 2*clay < 30)) | F3: LOAMY SAND | G3: =IF(AND('Texture Calculator'!$G$6+1.5*'Texture Calculator'!$E$6>=0.15, 'Texture Calculator'!$G$6+2*'Texture Calculator'!$E$6<0.3), 2, 0) -> 0 | H3: ((silt + 1.5*clay >= 15) && (silt + 2*clay < 30)) | I3: LOAMY SAND | J3: =IF(AND('Texture Calculator'!$G$7+1.5*'Texture Calculator'!$E$7>=0.15, 'Texture Calculator'!$G$7+2*'Texture Calculator'!$E$7<0.3), 2, 0) -> 0 | K3: ((silt + 1.5*clay >= 15) && (silt + 2*clay < 30)) | L3: LOAMY SAND
A4: =IF(OR(AND('Texture Calculator'!$E$4>=0.07, 'Texture Calculator'!$E$4<0.2,'Texture Calculator'!$C$4>0.52,'Texture Calculator'!$G$4+2*'Texture Calculator'!$E$4>=0.3), AND('Texture Calculator'!$E$4<0.07, 'Texture Calculator'!$G$4<0.5, 'Texture Calculator'!$G$4+2*'Texture Calculator'!$E$4>=0.3)), 3,0) -> 0 | B4: ((clay >= 7 && clay < 20) && (sand > 52) && ((silt + 2*clay) >= 30) || (clay < 7 && silt < 50 && (silt+2*clay)>=30)) | C4: SANDY LOAM | D4: =IF(OR(AND('Texture Calculator'!$E$5>=0.07, 'Texture Calculator'!$E$5<0.2,'Texture Calculator'!$C$5>0.52,'Texture Calculator'!$G$5+2*'Texture Calculator'!$E$5>=0.3), AND('Texture Calculator'!$E$5<0.07, 'Texture Calculator'!$G$5<0.5, 'Texture Calculator'!$G$5+2*'Texture Calculator'!$E$5>=0.3)), 3,0) -> 0 | E4: ((clay >= 7 && clay < 20) && (sand > 52) && ((silt + 2*clay) >= 30) || (clay < 7 && silt < 50 && (silt+2*clay)>=30)) | F4: SANDY LOAM | G4: =IF(OR(AND('Texture Calculator'!$E$6>=0.07, 'Texture Calculator'!$E$6<0.2,'Texture Calculator'!$C$6>0.52,'Texture Calculator'!$G$6+2*'Texture Calculator'!$E$6>=0.3), AND('Texture Calculator'!$E$6<0.07, 'Texture Calculator'!$G$6<0.5, 'Texture Calculator'!$G$6+2*'Texture Calculator'!$E$6>=0.3)), 3,0) -> 0 | H4: ((clay >= 7 && clay < 20) && (sand > 52) && ((silt + 2*clay) >= 30) || (clay < 7 && silt < 50 && (silt+2*clay)>=30)) | I4: SANDY LOAM | J4: =IF(OR(AND('Texture Calculator'!$E$7>=0.07, 'Texture Calculator'!$E$7<0.2,'Texture Calculator'!$C$7>0.52,'Texture Calculator'!$G$7+2*'Texture Calculator'!$E$7>=0.3), AND('Texture Calculator'!$E$7<0.07, 'Texture Calculator'!$G$7<0.5, 'Texture Calculator'!$G$7+2*'Texture Calculator'!$E$7>=0.3)), 3,0) -> 0 | K4: ((clay >= 7 && clay < 20) && (sand > 52) && ((silt + 2*clay) >= 30) || (clay < 7 && silt < 50 && (silt+2*clay)>=30)) | L4: SANDY LOAM
A5: =IF(AND('Texture Calculator'!$E$4>=0.07, 'Texture Calculator'!$E$4<0.27, 'Texture Calculator'!$G$4>=0.28, 'Texture Calculator'!$G$4<0.5, 'Texture Calculator'!$C$4<=0.52), 4, 0) -> 0 | B5: ((clay >= 7 && clay < 27) && (silt >= 28 && silt < 50) && (sand <= 52)) | C5: LOAM | D5: =IF(AND('Texture Calculator'!$E$5>=0.07, 'Texture Calculator'!$E$5<0.27, 'Texture Calculator'!$G$5>=0.28, 'Texture Calculator'!$G$5<0.5, 'Texture Calculator'!$C$5<=0.52), 4, 0) -> 0 | E5: ((clay >= 7 && clay < 27) && (silt >= 28 && silt < 50) && (sand <= 52)) | F5: LOAM | G5: =IF(AND('Texture Calculator'!$E$6>=0.07, 'Texture Calculator'!$E$6<0.27, 'Texture Calculator'!$G$6>=0.28, 'Texture Calculator'!$G$6<0.5, 'Texture Calculator'!$C$6<=0.52), 4, 0) -> 0 | H5: ((clay >= 7 && clay < 27) && (silt >= 28 && silt < 50) && (sand <= 52)) | I5: LOAM | J5: =IF(AND('Texture Calculator'!$E$7>=0.07, 'Texture Calculator'!$E$7<0.27, 'Texture Calculator'!$G$7>=0.28, 'Texture Calculator'!$G$7<0.5, 'Texture Calculator'!$C$7<=0.52), 4, 0) -> 0 | K5: ((clay >= 7 && clay < 27) && (silt >= 28 && silt < 50) && (sand <= 52)) | L5: LOAM
A6: =IF(OR(AND('Texture Calculator'!$G$4>=0.5, 'Texture Calculator'!$E$4>=0.12,'Texture Calculator'!$E$4<0.27), AND('Texture Calculator'!$G$4>=0.5,'Texture Calculator'!$G$4<0.8,'Texture Calculator'!$E$4<0.12)), 5,0) -> 0 | B6: ((silt >= 50 && (clay >= 12 && clay < 27)) || ((silt >= 50 && silt < 80) && clay < 12)) | C6: SILT LOAM | D6: =IF(OR(AND('Texture Calculator'!$G$5>=0.5, 'Texture Calculator'!$E$5>=0.12,'Texture Calculator'!$E$5<0.27), AND('Texture Calculator'!$G$5>=0.5,'Texture Calculator'!$G$5<0.8,'Texture Calculator'!$E$5<0.12)), 5,0) -> 0 | E6: ((silt >= 50 && (clay >= 12 && clay < 27)) || ((silt >= 50 && silt < 80) && clay < 12)) | F6: SILT LOAM | G6: =IF(OR(AND('Texture Calculator'!$G$6>=0.5, 'Texture Calculator'!$E$6>=0.12,'Texture Calculator'!$E$6<0.27), AND('Texture Calculator'!$G$6>=0.5,'Texture Calculator'!$G$6<0.8,'Texture Calculator'!$E$6<0.12)), 5,0) -> 0 | H6: ((silt >= 50 && (clay >= 12 && clay < 27)) || ((silt >= 50 && silt < 80) && clay < 12)) | I6: SILT LOAM | J6: =IF(OR(AND('Texture Calculator'!$G$7>=0.5, 'Texture Calculator'!$E$7>=0.12,'Texture Calculator'!$E$7<0.27), AND('Texture Calculator'!$G$7>=0.5,'Texture Calculator'!$G$7<0.8,'Texture Calculator'!$E$7<0.12)), 5,0) -> 0 | K6: ((silt >= 50 && (clay >= 12 && clay < 27)) || ((silt >= 50 && silt < 80) && clay < 12)) | L6: SILT LOAM
A7: =IF(AND('Texture Calculator'!$G$4>=0.8, 'Texture Calculator'!$E$4<0.12), 6, 0) -> 0 | B7: (silt >= 80 && clay < 12) | C7: SILT | D7: =IF(AND('Texture Calculator'!$G$5>=0.8, 'Texture Calculator'!$E$5<0.12), 6, 0) -> 0 | E7: (silt >= 80 && clay < 12) | F7: SILT | G7: =IF(AND('Texture Calculator'!$G$6>=0.8, 'Texture Calculator'!$E$6<0.12), 6, 0) -> 0 | H7: (silt >= 80 && clay < 12) | I7: SILT | J7: =IF(AND('Texture Calculator'!$G$7>=0.8, 'Texture Calculator'!$E$7<0.12), 6, 0) -> 0 | K7: (silt >= 80 && clay < 12) | L7: SILT
A8: =IF(AND('Texture Calculator'!$E$4>=0.2, 'Texture Calculator'!$E$4<0.35, 'Texture Calculator'!$G$4<0.28, 'Texture Calculator'!$C$4>0.45), 7, 0) -> 0 | B8: ((clay >= 20 && clay < 35) && (silt < 28) && (sand > 45)) | C8: SANDY CLAY LOAM | D8: =IF(AND('Texture Calculator'!$E$5>=0.2, 'Texture Calculator'!$E$5<0.35, 'Texture Calculator'!$G$5<0.28, 'Texture Calculator'!$C$5>0.45), 7, 0) -> 0 | E8: ((clay >= 20 && clay < 35) && (silt < 28) && (sand > 45)) | F8: SANDY CLAY LOAM | G8: =IF(AND('Texture Calculator'!$E$6>=0.2, 'Texture Calculator'!$E$6<0.35, 'Texture Calculator'!$G$6<0.28, 'Texture Calculator'!$C$6>0.45), 7, 0) -> 0 | H8: ((clay >= 20 && clay < 35) && (silt < 28) && (sand > 45)) | I8: SANDY CLAY LOAM | J8: =IF(AND('Texture Calculator'!$E$7>=0.2, 'Texture Calculator'!$E$7<0.35, 'Texture Calculator'!$G$7<0.28, 'Texture Calculator'!$C$7>0.45), 7, 0) -> 0 | K8: ((clay >= 20 && clay < 35) && (silt < 28) && (sand > 45)) | L8: SANDY CLAY LOAM
A9: =IF(AND('Texture Calculator'!$E$4>=0.27, 'Texture Calculator'!$E$4<0.4, 'Texture Calculator'!$C$4>0.2, 'Texture Calculator'!$C$4<=0.45), 8, 0) -> 0 | B9: ((clay >= 27 && clay < 40) && (sand > 20 && sand <= 45)) | C9: CLAY LOAM | D9: =IF(AND('Texture Calculator'!$E$5>=0.27, 'Texture Calculator'!$E$5<0.4, 'Texture Calculator'!$C$5>0.2, 'Texture Calculator'!$C$5<=0.45), 8, 0) -> 0 | E9: ((clay >= 27 && clay < 40) && (sand > 20 && sand <= 45)) | F9: CLAY LOAM | G9: =IF(AND('Texture Calculator'!$E$6>=0.27, 'Texture Calculator'!$E$6<0.4, 'Texture Calculator'!$C$6>0.2, 'Texture Calculator'!$C$6<=0.45), 8, 0) -> 0 | H9: ((clay >= 27 && clay < 40) && (sand > 20 && sand <= 45)) | I9: CLAY LOAM | J9: =IF(AND('Texture Calculator'!$E$7>=0.27, 'Texture Calculator'!$E$7<0.4, 'Texture Calculator'!$C$7>0.2, 'Texture Calculator'!$C$7<=0.45), 8, 0) -> 0 | K9: ((clay >= 27 && clay < 40) && (sand > 20 && sand <= 45)) | L9: CLAY LOAM
A10: =IF(AND('Texture Calculator'!$E$4>=0.27, 'Texture Calculator'!$E$4<0.4, 'Texture Calculator'!$C$4<=0.2), 9, 0) -> 0 | B10: ((clay >= 27 && clay < 40) && (sand <= 20)) | C10: SILTY CLAY LOAM | D10: =IF(AND('Texture Calculator'!$E$5>=0.27, 'Texture Calculator'!$E$5<0.4, 'Texture Calculator'!$C$5<=0.2), 9, 0) -> 0 | E10: ((clay >= 27 && clay < 40) && (sand <= 20)) | F10: SILTY CLAY LOAM | G10: =IF(AND('Texture Calculator'!$E$6>=0.27, 'Texture Calculator'!$E$6<0.4, 'Texture Calculator'!$C$6<=0.2), 9, 0) -> 0 | H10: ((clay >= 27 && clay < 40) && (sand <= 20)) | I10: SILTY CLAY LOAM | J10: =IF(AND('Texture Calculator'!$E$7>=0.27, 'Texture Calculator'!$E$7<0.4, 'Texture Calculator'!$C$7<=0.2), 9, 0) -> 0 | K10: ((clay >= 27 && clay < 40) && (sand <= 20)) | L10: SILTY CLAY LOAM
A11: =IF(AND('Texture Calculator'!$E$4>=0.35, 'Texture Calculator'!$C$4>0.45), 10, 0) -> 0 | B11: (clay >= 35 && sand > 45) | C11: SANDY CLAY | D11: =IF(AND('Texture Calculator'!$E$5>=0.35, 'Texture Calculator'!$C$5>0.45), 10, 0) -> 0 | E11: (clay >= 35 && sand > 45) | F11: SANDY CLAY | G11: =IF(AND('Texture Calculator'!$E$6>=0.35, 'Texture Calculator'!$C$6>0.45), 10, 0) -> 0 | H11: (clay >= 35 && sand > 45) | I11: SANDY CLAY | J11: =IF(AND('Texture Calculator'!$E$7>=0.35, 'Texture Calculator'!$C$7>0.45), 10, 0) -> 0 | K11: (clay >= 35 && sand > 45) | L11: SANDY CLAY
A12: =IF(AND('Texture Calculator'!$E$4>=0.4, 'Texture Calculator'!$G$4>=0.4), 11, 0) -> 0 | B12: (clay >= 40 && silt >= 40) | C12: SILTY CLAY | D12: =IF(AND('Texture Calculator'!$E$5>=0.4, 'Texture Calculator'!$G$5>=0.4), 11, 0) -> 0 | E12: (clay >= 40 && silt >= 40) | F12: SILTY CLAY | G12: =IF(AND('Texture Calculator'!$E$6>=0.4, 'Texture Calculator'!$G$6>=0.4), 11, 0) -> 0 | H12: (clay >= 40 && silt >= 40) | I12: SILTY CLAY | J12: =IF(AND('Texture Calculator'!$E$7>=0.4, 'Texture Calculator'!$G$7>=0.4), 11, 0) -> 0 | K12: (clay >= 40 && silt >= 40) | L12: SILTY CLAY
A13: =IF(AND('Texture Calculator'!$E$4>=0.4, 'Texture Calculator'!$C$4<=0.45,'Texture Calculator'!$G$4<0.4), 12, 0) -> 0 | B13: (clay >= 40 && sand <= 45 && silt < 40) | C13: CLAY | D13: =IF(AND('Texture Calculator'!$E$5>=0.4, 'Texture Calculator'!$C$5<=0.45,'Texture Calculator'!$G$5<0.4), 12, 0) -> 0 | E13: (clay >= 40 && sand <= 45 && silt < 40) | F13: CLAY | G13: =IF(AND('Texture Calculator'!$E$6>=0.4, 'Texture Calculator'!$C$6<=0.45,'Texture Calculator'!$G$6<0.4), 12, 0) -> 0 | H13: (clay >= 40 && sand <= 45 && silt < 40) | I13: CLAY | J13: =IF(AND('Texture Calculator'!$E$7>=0.4, 'Texture Calculator'!$C$7<=0.45,'Texture Calculator'!$G$7<0.4), 12, 0) -> 0 | K13: (clay >= 40 && sand <= 45 && silt < 40) | L13: CLAY
A14: =SUM(A2:A13) -> 1 | D14: =SUM(D2:D13) -> 1 | G14: =SUM(G2:G13) -> 1 | J14: =SUM(J2:J13) -> 1
A17: Sand | D17: Sand | G17: Sand | J17: Sand
A18: =IF(AND(SUM('Texture Calculator'!$C$13:$C$17)='Texture Calculator'!$C$4, 'Texture Calculator'!$C$13+'Texture Calculator'!$C$14>=0.25, 'Texture Calculator'!$C$15<0.5, 'Texture Calculator'!$C$16<0.5, 'Texture Calculator'!$C$17<0.5), 1, 0) ->  | B18: vcscs >= 25 && ms < 50 && fs < 50 && vfs < 50 | C18: COARSE SAND | D18: =IF(AND(SUM('Texture Calculator'!$C$26:$C$49)='Texture Calculator'!$C$5, 'Texture Calculator'!$C$26+'Texture Calculator'!#REF!>=0.25, 'Texture Calculator'!#REF!<0.5, 'Texture Calculator'!#REF!<0.5, 'Texture Calculator'!#REF!<0.5), 1, 0) ->  | E18: vcscs >= 25 && ms < 50 && fs < 50 && vfs < 50 | F18: COARSE SAND | G18: =IF(AND(SUM('Texture Calculator'!#REF!)='Texture Calculator'!$C$6, 'Texture Calculator'!#REF!+'Texture Calculator'!#REF!>=0.25, 'Texture Calculator'!#REF!<0.5, 'Texture Calculator'!#REF!<0.5, 'Texture Calculator'!#REF!<0.5), 1, 0) ->  | H18: vcscs >= 25 && ms < 50 && fs < 50 && vfs < 50 | I18: COARSE SAND | J18: =IF(AND(SUM('Texture Calculator'!$C$50:$C$55)='Texture Calculator'!$C$7, 'Texture Calculator'!#REF!+'Texture Calculator'!#REF!>=0.25, 'Texture Calculator'!$C$53<0.5, 'Texture Calculator'!$C$54<0.5, 'Texture Calculator'!$C$55<0.5), 1, 0) ->  | K18: vcscs >= 25 && ms < 50 && fs < 50 && vfs < 50 | L18: COARSE SAND
A19: =IF(AND(SUM('Texture Calculator'!$C$13:$C$17)='Texture Calculator'!$C$4,SUM($A$18) = 0, 'Texture Calculator'!$C$13+'Texture Calculator'!$C$14+'Texture Calculator'!$C$15>=0.25, 'Texture Calculator'!$C$13+'Texture Calculator'!$C$14<0.25, 'Texture Calculator'!$C$16<0.5,'Texture Calculator'!$C$17<0.5), 2, 0) ->  | B19: vcscsms >= 25 && vcscs < 25 && fs < 50 && vfs < 50 | C19: SAND | D19: =IF(AND(SUM('Texture Calculator'!$C$26:$C$49)='Texture Calculator'!$C$5,SUM($D$18) = 0, 'Texture Calculator'!$C$26+'Texture Calculator'!#REF!+'Texture Calculator'!#REF!>=0.25, 'Texture Calculator'!$C$26+'Texture Calculator'!#REF!<0.25, 'Texture Calculator'!#REF!<0.5,'Texture Calculator'!#REF!<0.5), 2, 0) ->  | E19: vcscsms >= 25 && vcscs < 25 && fs < 50 && vfs < 50 | F19: SAND | G19: =IF(AND(SUM('Texture Calculator'!#REF!)='Texture Calculator'!$C$6,SUM($G$18) = 0, 'Texture Calculator'!#REF!+'Texture Calculator'!#REF!+'Texture Calculator'!#REF!>=0.25, 'Texture Calculator'!#REF!+'Texture Calculator'!#REF!<0.25, 'Texture Calculator'!#REF!<0.5,'Texture Calculator'!#REF!<0.5), 2, 0) ->  | H19: vcscsms >= 25 && vcscs < 25 && fs < 50 && vfs < 50 | I19: SAND | J19: =IF(AND(SUM('Texture Calculator'!$C$50:$C$55)='Texture Calculator'!$C$7,SUM($J$18) = 0, 'Texture Calculator'!#REF!+'Texture Calculator'!#REF!+'Texture Calculator'!$C$53>=0.25, 'Texture Calculator'!#REF!+'Texture Calculator'!#REF!<0.25, 'Texture Calculator'!$C$54<0.5,'Texture Calculator'!$C$55<0.5), 2, 0) ->  | K19: vcscsms >= 25 && vcscs < 25 && fs < 50 && vfs < 50 | L19: SAND
A20: =IF(AND(SUM('Texture Calculator'!$C$13:$C$17)='Texture Calculator'!$C$4,SUM($A$18:$A$19) = 0, 'Texture Calculator'!$C$15>=0.5, 'Texture Calculator'!$C$13+'Texture Calculator'!$C$14>=0.25), 3, 0) ->  | B20: ms >= 50 && vcscs >= 25 | C20: SAND | D20: =IF(AND(SUM('Texture Calculator'!$C$26:$C$49)='Texture Calculator'!$C$5,SUM($D$18:$D$19) = 0, 'Texture Calculator'!#REF!>=0.5, 'Texture Calculator'!$C$26+'Texture Calculator'!#REF!>=0.25), 3, 0) ->  | E20: ms >= 50 && vcscs >= 25 | F20: SAND | G20: =IF(AND(SUM('Texture Calculator'!#REF!)='Texture Calculator'!$C$6,SUM($G$18:$G$19) = 0, 'Texture Calculator'!#REF!>=0.5, 'Texture Calculator'!#REF!+'Texture Calculator'!#REF!>=0.25), 3, 0) ->  | H20: ms >= 50 && vcscs >= 25 | I20: SAND | J20: =IF(AND(SUM('Texture Calculator'!$C$50:$C$55)='Texture Calculator'!$C$7,SUM($J$18:$J$19) = 0, 'Texture Calculator'!$C$53>=0.5, 'Texture Calculator'!#REF!+'Texture Calculator'!#REF!>=0.25), 3, 0) ->  | K20: ms >= 50 && vcscs >= 25 | L20: SAND
A21: =IF(AND(SUM('Texture Calculator'!$C$13:$C$17)='Texture Calculator'!$C$4,SUM($A$18:$A$20) = 0, 'Texture Calculator'!$C$16>=0.5, 'Texture Calculator'!$C$16>'Texture Calculator'!$C$17), 4, 0) ->  | B21: fs >= 50 && fs > vfs | C21: FINE SAND | D21: =IF(AND(SUM('Texture Calculator'!$C$26:$C$49)='Texture Calculator'!$C$5,SUM($D$18:$D$20) = 0, 'Texture Calculator'!#REF!>=0.5, 'Texture Calculator'!#REF!>'Texture Calculator'!#REF!), 4, 0) ->  | E21: fs >= 50 && fs > vfs | F21: FINE SAND | G21: =IF(AND(SUM('Texture Calculator'!#REF!)='Texture Calculator'!$C$6,SUM($G$18:$G$20) = 0, 'Texture Calculator'!#REF!>=0.5, 'Texture Calculator'!#REF!>'Texture Calculator'!#REF!), 4, 0) ->  | H21: fs >= 50 && fs > vfs | I21: FINE SAND | J21: =IF(AND(SUM('Texture Calculator'!$C$50:$C$55)='Texture Calculator'!$C$7,SUM($J$18:$J$20) = 0, 'Texture Calculator'!$C$54>=0.5, 'Texture Calculator'!$C$54>'Texture Calculator'!$C$55), 4, 0) ->  | K21: fs >= 50 && fs > vfs | L21: FINE SAND
A22: =IF(AND(SUM('Texture Calculator'!$C$13:$C$17)='Texture Calculator'!$C$4,SUM($A$18:$A$21) = 0, 'Texture Calculator'!$C$13+'Texture Calculator'!$C$14+'Texture Calculator'!$C$15<0.25, 'Texture Calculator'!$C$17<0.5), 5, 0) ->  | B22: vcscsms < 25 && vfs < 50 | C22: FINE SAND | D22: =IF(AND(SUM('Texture Calculator'!$C$26:$C$49)='Texture Calculator'!$C$5,SUM($D$18:$D$21) = 0, 'Texture Calculator'!$C$26+'Texture Calculator'!#REF!+'Texture Calculator'!#REF!<0.25, 'Texture Calculator'!#REF!<0.5), 5, 0) ->  | E22: vcscsms < 25 && vfs < 50 | F22: FINE SAND | G22: =IF(AND(SUM('Texture Calculator'!#REF!)='Texture Calculator'!$C$6,SUM($G$18:$G$21) = 0, 'Texture Calculator'!#REF!+'Texture Calculator'!#REF!+'Texture Calculator'!#REF!<0.25, 'Texture Calculator'!#REF!<0.5), 5, 0) ->  | H22: vcscsms < 25 && vfs < 50 | I22: FINE SAND | J22: =IF(AND(SUM('Texture Calculator'!$C$50:$C$55)='Texture Calculator'!$C$7,SUM($J$18:$J$21) = 0, 'Texture Calculator'!#REF!+'Texture Calculator'!#REF!+'Texture Calculator'!$C$53<0.25, 'Texture Calculator'!$C$55<0.5), 5, 0) ->  | K22: vcscsms < 25 && vfs < 50 | L22: FINE SAND
A23: =IF(AND(SUM('Texture Calculator'!$C$13:$C$17)='Texture Calculator'!$C$4,SUM($A$18:$A$22) = 0, 'Texture Calculator'!$C$17>=0.5), 6, 0) ->  | B23: vfs >= 50 | C23: VERY FINE SAND | D23: =IF(AND(SUM('Texture Calculator'!$C$26:$C$49)='Texture Calculator'!$C$5,SUM($D$18:$D$22) = 0, 'Texture Calculator'!#REF!>=0.5), 6, 0) ->  | E23: vfs >= 50 | F23: VERY FINE SAND | G23: =IF(AND(SUM('Texture Calculator'!#REF!)='Texture Calculator'!$C$6,SUM($G$18:$G$22) = 0, 'Texture Calculator'!#REF!>=0.5), 6, 0) ->  | H23: vfs >= 50 | I23: VERY FINE SAND | J23: =IF(AND(SUM('Texture Calculator'!$C$50:$C$55)='Texture Calculator'!$C$7,SUM($J$18:$J$22) = 0, 'Texture Calculator'!$C$55>=0.5), 6, 0) ->  | K23: vfs >= 50 | L23: VERY FINE SAND
A24: =SUM(A18:A23)+1 ->  | D24: =SUM(D18:D23)+1 ->  | G24: =SUM(G18:G23)+1 ->  | J24: =SUM(J18:J23)+1 -> 
A27: Loam Sand | D27: Loam Sand | G27: Loam Sand | J27: Loam Sand
A28: =IF(AND(SUM('Texture Calculator'!$C$13:$C$17)='Texture Calculator'!$C$4, 'Texture Calculator'!$C$13+'Texture Calculator'!$C$14>=0.25, 'Texture Calculator'!$C$15<0.5, 'Texture Calculator'!$C$16<0.5, 'Texture Calculator'!$C$17<0.5), 1, 0) ->  | B28: vcscs >= 25 && ms < 50 && fs < 50 && vfs < 50 | C28: LOAMY COARSE SAND | D28: =IF(AND(SUM('Texture Calculator'!$C$26:$C$49)='Texture Calculator'!$C$5, 'Texture Calculator'!$C$26+'Texture Calculator'!#REF!>=0.25, 'Texture Calculator'!#REF!<0.5, 'Texture Calculator'!#REF!<0.5, 'Texture Calculator'!#REF!<0.5), 1, 0) ->  | E28: vcscs >= 25 && ms < 50 && fs < 50 && vfs < 50 | F28: LOAMY COARSE SAND | G28: =IF(AND(SUM('Texture Calculator'!#REF!)='Texture Calculator'!$C$6, 'Texture Calculator'!#REF!+'Texture Calculator'!#REF!>=0.25, 'Texture Calculator'!#REF!<0.5, 'Texture Calculator'!#REF!<0.5, 'Texture Calculator'!#REF!<0.5), 1, 0) ->  | H28: vcscs >= 25 && ms < 50 && fs < 50 && vfs < 50 | I28: LOAMY COARSE SAND | J28: =IF(AND(SUM('Texture Calculator'!$C$50:$C$55)='Texture Calculator'!$C$7, 'Texture Calculator'!#REF!+'Texture Calculator'!#REF!>=0.25, 'Texture Calculator'!$C$53<0.5, 'Texture Calculator'!$C$54<0.5, 'Texture Calculator'!$C$55<0.5), 1, 0) ->  | K28: vcscs >= 25 && ms < 50 && fs < 50 && vfs < 50 | L28: LOAMY COARSE SAND
A29: =IF(AND(SUM('Texture Calculator'!$C$13:$C$17)='Texture Calculator'!$C$4,SUM($A$28) = 0, 'Texture Calculator'!$C$13+'Texture Calculator'!$C$14+'Texture Calculator'!$C$15>=0.25, 'Texture Calculator'!$C$13+'Texture Calculator'!$C$14<0.25, 'Texture Calculator'!$C$16<0.5,'Texture Calculator'!$C$17<0.5), 2, 0) ->  | B29: vcscsms >= 25 && vcscs < 25 && fs < 50 && vfs < 50 | C29: LOAMY SAND | D29: =IF(AND(SUM('Texture Calculator'!$C$26:$C$49)='Texture Calculator'!$C$5,SUM($D$28) = 0, 'Texture Calculator'!$C$26+'Texture Calculator'!#REF!+'Texture Calculator'!#REF!>=0.25, 'Texture Calculator'!$C$26+'Texture Calculator'!#REF!<0.25, 'Texture Calculator'!#REF!<0.5,'Texture Calculator'!#REF!<0.5), 2, 0) ->  | E29: vcscsms >= 25 && vcscs < 25 && fs < 50 && vfs < 50 | F29: LOAMY SAND | G29: =IF(AND(SUM('Texture Calculator'!#REF!)='Texture Calculator'!$C$6,SUM($A$28) = 0, 'Texture Calculator'!$C$13+'Texture Calculator'!$C$14+'Texture Calculator'!$C$15>=0.25, 'Texture Calculator'!$C$13+'Texture Calculator'!$C$14<0.25, 'Texture Calculator'!$C$16<0.5,'Texture Calculator'!$C$17<0.5), 2, 0) ->  | H29: vcscsms >= 25 && vcscs < 25 && fs < 50 && vfs < 50 | I29: LOAMY SAND | J29: =IF(AND(SUM('Texture Calculator'!$C$50:$C$55)='Texture Calculator'!$C$7,SUM($J$28) = 0, 'Texture Calculator'!#REF!+'Texture Calculator'!#REF!+'Texture Calculator'!$C$53>=0.25, 'Texture Calculator'!#REF!+'Texture Calculator'!#REF!<0.25, 'Texture Calculator'!$C$54<0.5,'Texture Calculator'!$C$55<0.5), 2, 0) ->  | K29: vcscsms >= 25 && vcscs < 25 && fs < 50 && vfs < 50 | L29: LOAMY SAND
A30: =IF(AND(SUM('Texture Calculator'!$C$13:$C$17)='Texture Calculator'!$C$4,SUM($A$28:$A$29) = 0, 'Texture Calculator'!$C$15>=0.5, 'Texture Calculator'!$C$13+'Texture Calculator'!$C$14>=0.25),3, 0) ->  | B30: ms >= 50 && vcscs >= 25 | C30: LOAMY SAND | D30: =IF(AND(SUM('Texture Calculator'!$C$26:$C$49)='Texture Calculator'!$C$5,SUM($D$28:$D$29) = 0, 'Texture Calculator'!#REF!>=0.5, 'Texture Calculator'!$C$26+'Texture Calculator'!#REF!>=0.25),3, 0) ->  | E30: ms >= 50 && vcscs >= 25 | F30: LOAMY SAND | G30: =IF(AND(SUM('Texture Calculator'!#REF!)='Texture Calculator'!$C$6,SUM($G$28:$G$29) = 0, 'Texture Calculator'!#REF!>=0.5, 'Texture Calculator'!#REF!+'Texture Calculator'!#REF!>=0.25),3, 0) ->  | H30: ms >= 50 && vcscs >= 25 | I30: LOAMY SAND | J30: =IF(AND(SUM('Texture Calculator'!$C$50:$C$55)='Texture Calculator'!$C$7,SUM($J$28:$J$29) = 0, 'Texture Calculator'!$C$53>=0.5, 'Texture Calculator'!#REF!+'Texture Calculator'!#REF!>=0.25),3, 0) ->  | K30: ms >= 50 && vcscs >= 25 | L30: LOAMY SAND
A31: =IF(AND(SUM('Texture Calculator'!$C$13:$C$17)='Texture Calculator'!$C$4,SUM($A$28:$A$30) = 0, 'Texture Calculator'!$C$16>=0.5), 4, 0) ->  | B31: fs >= 50 | C31: LOAMY FINE SAND | D31: =IF(AND(SUM('Texture Calculator'!$C$26:$C$49)='Texture Calculator'!$C$5,SUM($D$28:$D$30) = 0, 'Texture Calculator'!#REF!>=0.5), 4, 0) ->  | E31: fs >= 50 | F31: LOAMY FINE SAND | G31: =IF(AND(SUM('Texture Calculator'!#REF!)='Texture Calculator'!$C$6,SUM($G$28:$G$30) = 0, 'Texture Calculator'!#REF!>=0.5), 4, 0) ->  | H31: fs >= 50 | I31: LOAMY FINE SAND | J31: =IF(AND(SUM('Texture Calculator'!$C$50:$C$55)='Texture Calculator'!$C$7,SUM($J$28:$J$30) = 0, 'Texture Calculator'!$C$54>=0.5), 4, 0) ->  | K31: fs >= 50 | L31: LOAMY FINE SAND
A32: =IF(AND(SUM('Texture Calculator'!$C$13:$C$17)='Texture Calculator'!$C$4,SUM($A$28:$A$31) = 0, 'Texture Calculator'!$C$13+'Texture Calculator'!$C$14+'Texture Calculator'!$C$15<0.25, 'Texture Calculator'!$C$17<0.5), 5, 0) ->  | B32: vcscsms < 25 && vfs < 50 | C32: LOAMY FINE SAND | D32: =IF(AND(SUM('Texture Calculator'!$C$26:$C$49)='Texture Calculator'!$C$5,SUM($D$28:$D$31) = 0, 'Texture Calculator'!$C$26+'Texture Calculator'!#REF!+'Texture Calculator'!#REF!<0.25, 'Texture Calculator'!#REF!<0.5), 5, 0) ->  | E32: vcscsms < 25 && vfs < 50 | F32: LOAMY FINE SAND | G32: =IF(AND(SUM('Texture Calculator'!#REF!)='Texture Calculator'!$C$6,SUM($G$28:$G$31) = 0, 'Texture Calculator'!#REF!+'Texture Calculator'!#REF!+'Texture Calculator'!#REF!<0.25, 'Texture Calculator'!#REF!<0.5), 5, 0) ->  | H32: vcscsms < 25 && vfs < 50 | I32: LOAMY FINE SAND | J32: =IF(AND(SUM('Texture Calculator'!$C$50:$C$55)='Texture Calculator'!$C$7,SUM($J$28:$J$31) = 0, 'Texture Calculator'!#REF!+'Texture Calculator'!#REF!+'Texture Calculator'!$C$53<0.25, 'Texture Calculator'!$C$55<0.5), 5, 0) ->  | K32: vcscsms < 25 && vfs < 50 | L32: LOAMY FINE SAND
A33: =IF(AND(SUM('Texture Calculator'!$C$13:$C$17)='Texture Calculator'!$C$4,SUM($A$28:$A$32) = 0, 'Texture Calculator'!$C$17>=0.5), 6, 0) ->  | B33: vfs >= 50 | C33: LOAMY VERY FINE SAND | D33: =IF(AND(SUM('Texture Calculator'!$C$26:$C$49)='Texture Calculator'!$C$5,SUM($D$28:$D$32) = 0, 'Texture Calculator'!#REF!>=0.5), 6, 0) ->  | E33: vfs >= 50 | F33: LOAMY VERY FINE SAND | G33: =IF(AND(SUM('Texture Calculator'!#REF!)='Texture Calculator'!$C$6,SUM($G$28:$G$32) = 0, 'Texture Calculator'!#REF!>=0.5), 6, 0) ->  | H33: vfs >= 50 | I33: LOAMY VERY FINE SAND | J33: =IF(AND(SUM('Texture Calculator'!$C$50:$C$55)='Texture Calculator'!$C$7,SUM($J$28:$J$32) = 0, 'Texture Calculator'!$C$55>=0.5), 6, 0) ->  | K33: vfs >= 50 | L33: LOAMY VERY FINE SAND
A34: =SUM(A28:A33)+1 ->  | D34: =SUM(D28:D33)+1 ->  | G34: =SUM(G28:G33)+1 ->  | J34: =SUM(J28:J33)+1 -> 
A36: Sand Loam | D36: Sand Loam | G36: Sand Loam | J36: Sand Loam
A37: =IF(AND(SUM('Texture Calculator'!$C$13:$C$17)='Texture Calculator'!$C$4, 'Texture Calculator'!$C$13+'Texture Calculator'!$C$14>=0.25, 'Texture Calculator'!$C$15<0.5, 'Texture Calculator'!$C$16<0.5, 'Texture Calculator'!$C$17<0.5), 1, 0) ->  | B37: vcscs >= 25 && ms < 50 && fs < 50 && vfs < 50 | C37: COARSE SANDY LOAM | D37: =IF(AND(SUM('Texture Calculator'!$C$26:$C$49)='Texture Calculator'!$C$5, 'Texture Calculator'!$C$26+'Texture Calculator'!#REF!>=0.25, 'Texture Calculator'!#REF!<0.5, 'Texture Calculator'!#REF!<0.5, 'Texture Calculator'!#REF!<0.5), 1, 0) ->  | E37: vcscs >= 25 && ms < 50 && fs < 50 && vfs < 50 | F37: COARSE SANDY LOAM | G37: =IF(AND(SUM('Texture Calculator'!#REF!)='Texture Calculator'!$C$6, 'Texture Calculator'!#REF!+'Texture Calculator'!#REF!>=0.25, 'Texture Calculator'!#REF!<0.5, 'Texture Calculator'!#REF!<0.5, 'Texture Calculator'!#REF!<0.5), 1, 0) ->  | H37: vcscs >= 25 && ms < 50 && fs < 50 && vfs < 50 | I37: COARSE SANDY LOAM | J37: =IF(AND(SUM('Texture Calculator'!$C$50:$C$55)='Texture Calculator'!$C$7, 'Texture Calculator'!#REF!+'Texture Calculator'!#REF!>=0.25, 'Texture Calculator'!$C$53<0.5, 'Texture Calculator'!$C$54<0.5, 'Texture Calculator'!$C$55<0.5), 1, 0) ->  | K37: vcscs >= 25 && ms < 50 && fs < 50 && vfs < 50 | L37: COARSE SANDY LOAM
A38: =IF(AND(SUM('Texture Calculator'!$C$13:$C$17)='Texture Calculator'!$C$4,SUM($A$37) = 0,'Texture Calculator'!$C$13+'Texture Calculator'!$C$14+'Texture Calculator'!$C$15>=0.3, 'Texture Calculator'!$C$17>=0.3, 'Texture Calculator'!$C$17<0.5), 2,0) ->  | B38: vcscsms >= 30 && vfs >= 30 && vfs < 50 | C38: COARSE SANDY LOAM | D38: =IF(AND(SUM('Texture Calculator'!$C$26:$C$49)='Texture Calculator'!$C$5,SUM($D$37) = 0,'Texture Calculator'!$C$26+'Texture Calculator'!#REF!+'Texture Calculator'!#REF!>=0.3, 'Texture Calculator'!#REF!>=0.3, 'Texture Calculator'!#REF!<0.5), 2,0) ->  | E38: vcscsms >= 30 && vfs >= 30 && vfs < 50 | F38: COARSE SANDY LOAM | G38: =IF(AND(SUM('Texture Calculator'!#REF!)='Texture Calculator'!$C$6,SUM($G$37) = 0,'Texture Calculator'!#REF!+'Texture Calculator'!#REF!+'Texture Calculator'!#REF!>=0.3, 'Texture Calculator'!#REF!>=0.3, 'Texture Calculator'!#REF!<0.5), 2,0) ->  | H38: vcscsms >= 30 && vfs >= 30 && vfs < 50 | I38: COARSE SANDY LOAM | J38: =IF(AND(SUM('Texture Calculator'!$C$50:$C$55)='Texture Calculator'!$C$7,SUM($J$37) = 0,'Texture Calculator'!#REF!+'Texture Calculator'!#REF!+'Texture Calculator'!$C$53>=0.3, 'Texture Calculator'!$C$55>=0.3, 'Texture Calculator'!$C$55<0.5), 2,0) ->  | K38: vcscsms >= 30 && vfs >= 30 && vfs < 50 | L38: COARSE SANDY LOAM
A39: =IF(AND(SUM('Texture Calculator'!$C$13:$C$17)='Texture Calculator'!$C$4,SUM($A$37:$A$38) = 0, 'Texture Calculator'!$C$13+'Texture Calculator'!$C$14+'Texture Calculator'!$C$15>=0.3, 'Texture Calculator'!$C$13+'Texture Calculator'!$C$14<0.25, 'Texture Calculator'!$C$16<0.3,'Texture Calculator'!$C$17<0.3), 3, 0) ->  | B39: vcscsms >= 30 && vcscs < 25 && fs < 30 && vfs < 30 | C39: SANDY LOAM | D39: =IF(AND(SUM('Texture Calculator'!$C$26:$C$49)='Texture Calculator'!$C$5,SUM($D$37:$D$38) = 0, 'Texture Calculator'!$C$26+'Texture Calculator'!#REF!+'Texture Calculator'!#REF!>=0.3, 'Texture Calculator'!$C$26+'Texture Calculator'!#REF!<0.25, 'Texture Calculator'!#REF!<0.3,'Texture Calculator'!#REF!<0.3), 3, 0) ->  | E39: vcscsms >= 30 && vcscs < 25 && fs < 30 && vfs < 30 | F39: SANDY LOAM | G39: =IF(AND(SUM('Texture Calculator'!#REF!)='Texture Calculator'!$C$6,SUM($G$37:$G$38) = 0, 'Texture Calculator'!#REF!+'Texture Calculator'!#REF!+'Texture Calculator'!#REF!>=0.3, 'Texture Calculator'!#REF!+'Texture Calculator'!#REF!<0.25, 'Texture Calculator'!#REF!<0.3,'Texture Calculator'!#REF!<0.3), 3, 0) ->  | H39: vcscsms >= 30 && vcscs < 25 && fs < 30 && vfs < 30 | I39: SANDY LOAM | J39: =IF(AND(SUM('Texture Calculator'!$C$50:$C$55)='Texture Calculator'!$C$7,SUM($J$37:$J$38) = 0, 'Texture Calculator'!#REF!+'Texture Calculator'!#REF!+'Texture Calculator'!$C$53>=0.3, 'Texture Calculator'!#REF!+'Texture Calculator'!#REF!<0.25, 'Texture Calculator'!$C$54<0.3,'Texture Calculator'!$C$55<0.3), 3, 0) ->  | K39: vcscsms >= 30 && vcscs < 25 && fs < 30 && vfs < 30 | L39: SANDY LOAM
A40: =IF(AND(SUM('Texture Calculator'!$C$13:$C$17)='Texture Calculator'!$C$4,SUM($A$37:$A$39) = 0,'Texture Calculator'!$C$13+'Texture Calculator'!$C$14+'Texture Calculator'!$C$15<=0.15,'Texture Calculator'!$C$16<0.3,'Texture Calculator'!$C$17<0.3,'Texture Calculator'!$C$16+'Texture Calculator'!$C$17<0.4), 4, 0) ->  | B40: vcscsms <= 15 && fs < 30 && vfs < 30 && fsvfs < 40 | C40: SANDY LOAM | D40: =IF(AND(SUM('Texture Calculator'!$C$26:$C$49)='Texture Calculator'!$C$5,SUM($D$37:$D$39) = 0,'Texture Calculator'!$C$26+'Texture Calculator'!#REF!+'Texture Calculator'!#REF!<=0.15,'Texture Calculator'!#REF!<0.3,'Texture Calculator'!#REF!<0.3,'Texture Calculator'!#REF!+'Texture Calculator'!#REF!<0.4), 4, 0) ->  | E40: vcscsms <= 15 && fs < 30 && vfs < 30 && fsvfs < 40 | F40: SANDY LOAM | G40: =IF(AND(SUM('Texture Calculator'!#REF!)='Texture Calculator'!$C$6,SUM($G$37:$G$39) = 0,'Texture Calculator'!#REF!+'Texture Calculator'!#REF!+'Texture Calculator'!#REF!<=0.15,'Texture Calculator'!#REF!<0.3,'Texture Calculator'!#REF!<0.3,'Texture Calculator'!#REF!+'Texture Calculator'!#REF!<0.4), 4, 0) ->  | H40: vcscsms <= 15 && fs < 30 && vfs < 30 && fsvfs < 40 | I40: SANDY LOAM | J40: =IF(AND(SUM('Texture Calculator'!$C$50:$C$55)='Texture Calculator'!$C$7,SUM($J$37:$J$39) = 0,'Texture Calculator'!#REF!+'Texture Calculator'!#REF!+'Texture Calculator'!$C$53<=0.15,'Texture Calculator'!$C$54<0.3,'Texture Calculator'!$C$55<0.3,'Texture Calculator'!$C$54+'Texture Calculator'!$C$55<0.4), 4, 0) ->  | K40: vcscsms <= 15 && fs < 30 && vfs < 30 && fsvfs < 40 | L40: SANDY LOAM
A41: =IF(AND(SUM('Texture Calculator'!$C$13:$C$17)='Texture Calculator'!$C$4,SUM($A$37:$A$40) = 0,'Texture Calculator'!$C$13+'Texture Calculator'!$C$14>=0.25, 'Texture Calculator'!$C$15>=0.5), 5, 0) ->  | B41: vcscs >= 25 && ms >= 50 | C41: SANDY LOAM | D41: =IF(AND(SUM('Texture Calculator'!$C$26:$C$49)='Texture Calculator'!$C$5,SUM($D$37:$D$40) = 0,'Texture Calculator'!$C$26+'Texture Calculator'!#REF!>=0.25, 'Texture Calculator'!#REF!>=0.5), 5, 0) ->  | E41: vcscs >= 25 && ms >= 50 | F41: SANDY LOAM | G41: =IF(AND(SUM('Texture Calculator'!#REF!)='Texture Calculator'!$C$6,SUM($G$37:$G$40) = 0,'Texture Calculator'!#REF!+'Texture Calculator'!#REF!>=0.25, 'Texture Calculator'!#REF!>=0.5), 5, 0) ->  | H41: vcscs >= 25 && ms >= 50 | I41: SANDY LOAM | J41: =IF(AND(SUM('Texture Calculator'!$C$50:$C$55)='Texture Calculator'!$C$7,SUM($J$37:$J$40) = 0,'Texture Calculator'!#REF!+'Texture Calculator'!#REF!>=0.25, 'Texture Calculator'!$C$53>=0.5), 5, 0) ->  | K41: vcscs >= 25 && ms >= 50 | L41: SANDY LOAM
A42: =IF(AND(SUM('Texture Calculator'!$C$13:$C$17)='Texture Calculator'!$C$4,SUM($A$37:$A$41) = 0,'Texture Calculator'!$C$16>=0.3,'Texture Calculator'!$C$17<0.3, 'Texture Calculator'!$C$13+'Texture Calculator'!$C$14<0.25), 6, 0) ->  | B42: fs >= 30 && vfs < 30 && vcscs < 25 | C42: FINE SANDY LOAM | D42: =IF(AND(SUM('Texture Calculator'!$C$26:$C$49)='Texture Calculator'!$C$5,SUM($D$37:$D$41) = 0,'Texture Calculator'!#REF!>=0.3,'Texture Calculator'!#REF!<0.3, 'Texture Calculator'!$C$26+'Texture Calculator'!#REF!<0.25), 6, 0) ->  | E42: fs >= 30 && vfs < 30 && vcscs < 25 | F42: FINE SANDY LOAM | G42: =IF(AND(SUM('Texture Calculator'!#REF!)='Texture Calculator'!$C$6,SUM($G$37:$G$41) = 0,'Texture Calculator'!#REF!>=0.3,'Texture Calculator'!#REF!<0.3, 'Texture Calculator'!#REF!+'Texture Calculator'!#REF!<0.25), 6, 0) ->  | H42: fs >= 30 && vfs < 30 && vcscs < 25 | I42: FINE SANDY LOAM | J42: =IF(AND(SUM('Texture Calculator'!$C$50:$C$55)='Texture Calculator'!$C$7,SUM($J$37:$J$41) = 0,'Texture Calculator'!$C$54>=0.3,'Texture Calculator'!$C$55<0.3, 'Texture Calculator'!#REF!+'Texture Calculator'!#REF!<0.25), 6, 0) ->  | K42: fs >= 30 && vfs < 30 && vcscs < 25 | L42: FINE SANDY LOAM
A43: =IF(AND(SUM('Texture Calculator'!$C$13:$C$17)='Texture Calculator'!$C$4,SUM($A$37:$A$42) = 0,'Texture Calculator'!$C$13+'Texture Calculator'!$C$14+'Texture Calculator'!$C$15>=0.15, 'Texture Calculator'!$C$13+'Texture Calculator'!$C$14+'Texture Calculator'!$C$15<0.3, 'Texture Calculator'!$C$13+'Texture Calculator'!$C$14<0.25), 7, 0) ->  | B43: vcscsms >= 15 && vcscsms < 30 && vcscs < 25 | C43: FINE SANDY LOAM | D43: =IF(AND(SUM('Texture Calculator'!$C$26:$C$49)='Texture Calculator'!$C$5,SUM($D$37:$D$42) = 0,'Texture Calculator'!$C$26+'Texture Calculator'!#REF!+'Texture Calculator'!#REF!>=0.15, 'Texture Calculator'!$C$26+'Texture Calculator'!#REF!+'Texture Calculator'!#REF!<0.3, 'Texture Calculator'!$C$26+'Texture Calculator'!#REF!<0.25), 7, 0) ->  | E43: vcscsms >= 15 && vcscsms < 30 && vcscs < 25 | F43: FINE SANDY LOAM | G43: =IF(AND(SUM('Texture Calculator'!#REF!)='Texture Calculator'!$C$6,SUM($G$37:$G$42) = 0,'Texture Calculator'!#REF!+'Texture Calculator'!#REF!+'Texture Calculator'!#REF!>=0.15, 'Texture Calculator'!#REF!+'Texture Calculator'!#REF!+'Texture Calculator'!#REF!<0.3, 'Texture Calculator'!#REF!+'Texture Calculator'!#REF!<0.25), 7, 0) ->  | H43: vcscsms >= 15 && vcscsms < 30 && vcscs < 25 | I43: FINE SANDY LOAM | J43: =IF(AND(SUM('Texture Calculator'!$C$50:$C$55)='Texture Calculator'!$C$7,SUM($J$37:$J$42) = 0,'Texture Calculator'!#REF!+'Texture Calculator'!#REF!+'Texture Calculator'!$C$53>=0.15, 'Texture Calculator'!#REF!+'Texture Calculator'!#REF!+'Texture Calculator'!$C$53<0.3, 'Texture Calculator'!#REF!+'Texture Calculator'!#REF!<0.25), 7, 0) ->  | K43: vcscsms >= 15 && vcscsms < 30 && vcscs < 25 | L43: FINE SANDY LOAM
A44: =IF(AND(SUM('Texture Calculator'!$C$13:$C$17)='Texture Calculator'!$C$4,SUM($A$37:$A$43) = 0,'Texture Calculator'!$C$16+'Texture Calculator'!$C$17>=0.4, 'Texture Calculator'!$C$16>='Texture Calculator'!$C$17, 'Texture Calculator'!$C$13+'Texture Calculator'!$C$14+'Texture Calculator'!$C$15<=0.15), 8, 0) ->  | B44: fsvfs >= 40 && fs >= vfs && vcscsms <= 15 | C44: FINE SANDY LOAM | D44: =IF(AND(SUM('Texture Calculator'!$C$26:$C$49)='Texture Calculator'!$C$5,SUM($D$37:$D$43) = 0,'Texture Calculator'!#REF!+'Texture Calculator'!#REF!>=0.4, 'Texture Calculator'!#REF!>='Texture Calculator'!#REF!, 'Texture Calculator'!$C$26+'Texture Calculator'!#REF!+'Texture Calculator'!#REF!<=0.15), 8, 0) ->  | E44: fsvfs >= 40 && fs >= vfs && vcscsms <= 15 | F44: FINE SANDY LOAM | G44: =IF(AND(SUM('Texture Calculator'!#REF!)='Texture Calculator'!$C$6,SUM($G$37:$G$43) = 0,'Texture Calculator'!#REF!+'Texture Calculator'!#REF!>=0.4, 'Texture Calculator'!#REF!>='Texture Calculator'!#REF!, 'Texture Calculator'!#REF!+'Texture Calculator'!#REF!+'Texture Calculator'!#REF!<=0.15), 8, 0) ->  | H44: fsvfs >= 40 && fs >= vfs && vcscsms <= 15 | I44: FINE SANDY LOAM | J44: =IF(AND(SUM('Texture Calculator'!$C$50:$C$55)='Texture Calculator'!$C$7,SUM($J$37:$J$43) = 0,'Texture Calculator'!$C$54+'Texture Calculator'!$C$55>=0.4, 'Texture Calculator'!$C$54>='Texture Calculator'!$C$55, 'Texture Calculator'!#REF!+'Texture Calculator'!#REF!+'Texture Calculator'!$C$53<=0.15), 8, 0) ->  | K44: fsvfs >= 40 && fs >= vfs && vcscsms <= 15 | L44: FINE SANDY LOAM
A45: =IF(AND(SUM('Texture Calculator'!$C$13:$C$17)='Texture Calculator'!$C$4,SUM($A$37:$A$44) = 0,'Texture Calculator'!$C$13+'Texture Calculator'!$C$14>=0.25, 'Texture Calculator'!$C$16>=0.5), 9, 0) ->  | B45: vcscs >= 25 && fs >= 50 | C45: FINE SANDY LOAM | D45: =IF(AND(SUM('Texture Calculator'!$C$26:$C$49)='Texture Calculator'!$C$5,SUM($D$37:$D$44) = 0,'Texture Calculator'!$C$26+'Texture Calculator'!#REF!>=0.25, 'Texture Calculator'!#REF!>=0.5), 9, 0) ->  | E45: vcscs >= 25 && fs >= 50 | F45: FINE SANDY LOAM | G45: =IF(AND(SUM('Texture Calculator'!#REF!)='Texture Calculator'!$C$6,SUM($G$37:$G$44) = 0,'Texture Calculator'!#REF!+'Texture Calculator'!#REF!>=0.25, 'Texture Calculator'!#REF!>=0.5), 9, 0) ->  | H45: vcscs >= 25 && fs >= 50 | I45: FINE SANDY LOAM | J45: =IF(AND(SUM('Texture Calculator'!$C$50:$C$55)='Texture Calculator'!$C$7,SUM($J$37:$J$44) = 0,'Texture Calculator'!#REF!+'Texture Calculator'!#REF!>=0.25, 'Texture Calculator'!$C$54>=0.5), 9, 0) ->  | K45: vcscs >= 25 && fs >= 50 | L45: FINE SANDY LOAM
A46: =IF(AND(SUM('Texture Calculator'!$C$13:$C$17)='Texture Calculator'!$C$4,SUM($A$37:$A$45) = 0,'Texture Calculator'!$C$17>=0.3, 'Texture Calculator'!$C$13+'Texture Calculator'!$C$14+'Texture Calculator'!$C$15<0.15, 'Texture Calculator'!$C$17>'Texture Calculator'!$C$16), 10, 0) ->  | B46: vfs >= 30 && vcscsms < 15 && vfs > fs | C46: VERY FINE SANDY LOAM | D46: =IF(AND(SUM('Texture Calculator'!$C$26:$C$49)='Texture Calculator'!$C$5,SUM($D$37:$D$45) = 0,'Texture Calculator'!#REF!>=0.3, 'Texture Calculator'!$C$26+'Texture Calculator'!#REF!+'Texture Calculator'!#REF!<0.15, 'Texture Calculator'!#REF!>'Texture Calculator'!#REF!), 10, 0) ->  | E46: vfs >= 30 && vcscsms < 15 && vfs > fs | F46: VERY FINE SANDY LOAM | G46: =IF(AND(SUM('Texture Calculator'!#REF!)='Texture Calculator'!$C$6,SUM($G$37:$G$45) = 0,'Texture Calculator'!#REF!>=0.3, 'Texture Calculator'!#REF!+'Texture Calculator'!#REF!+'Texture Calculator'!#REF!<0.15, 'Texture Calculator'!#REF!>'Texture Calculator'!#REF!), 10, 0) ->  | H46: vfs >= 30 && vcscsms < 15 && vfs > fs | I46: VERY FINE SANDY LOAM | J46: =IF(AND(SUM('Texture Calculator'!$C$50:$C$55)='Texture Calculator'!$C$7,SUM($J$37:$J$45) = 0,'Texture Calculator'!$C$55>=0.3, 'Texture Calculator'!#REF!+'Texture Calculator'!#REF!+'Texture Calculator'!$C$53<0.15, 'Texture Calculator'!$C$55>'Texture Calculator'!$C$54), 10, 0) ->  | K46: vfs >= 30 && vcscsms < 15 && vfs > fs | L46: VERY FINE SANDY LOAM
A47: =IF(AND(SUM('Texture Calculator'!$C$13:$C$17)='Texture Calculator'!$C$4,SUM($A$37:$A$46) = 0,'Texture Calculator'!$C$16+'Texture Calculator'!$C$17>=0.4, 'Texture Calculator'!$C$17>'Texture Calculator'!$C$16, 'Texture Calculator'!$C$13+'Texture Calculator'!$C$14+'Texture Calculator'!$C$15<15), 11, 0) ->  | B47: fsvfs >= 40 && vfs > fs && vcscsms < 15 | C47: VERY FINE SANDY LOAM | D47: =IF(AND(SUM('Texture Calculator'!$C$26:$C$49)='Texture Calculator'!$C$5,SUM($D$37:$D$46) = 0,'Texture Calculator'!#REF!+'Texture Calculator'!#REF!>=0.4, 'Texture Calculator'!#REF!>'Texture Calculator'!#REF!, 'Texture Calculator'!$C$26+'Texture Calculator'!#REF!+'Texture Calculator'!#REF!<15), 11, 0) ->  | E47: fsvfs >= 40 && vfs > fs && vcscsms < 15 | F47: VERY FINE SANDY LOAM | G47: =IF(AND(SUM('Texture Calculator'!#REF!)='Texture Calculator'!$C$6,SUM($G$37:$G$46) = 0,'Texture Calculator'!#REF!+'Texture Calculator'!#REF!>=0.4, 'Texture Calculator'!#REF!>'Texture Calculator'!#REF!, 'Texture Calculator'!#REF!+'Texture Calculator'!#REF!+'Texture Calculator'!#REF!<15), 11, 0) ->  | H47: fsvfs >= 40 && vfs > fs && vcscsms < 15 | I47: VERY FINE SANDY LOAM | J47: =IF(AND(SUM('Texture Calculator'!$C$50:$C$55)='Texture Calculator'!$C$7,SUM($J$37:$J$46) = 0,'Texture Calculator'!$C$54+'Texture Calculator'!$C$55>=0.4, 'Texture Calculator'!$C$55>'Texture Calculator'!$C$54, 'Texture Calculator'!#REF!+'Texture Calculator'!#REF!+'Texture Calculator'!$C$53<15), 11, 0) ->  | K47: fsvfs >= 40 && vfs > fs && vcscsms < 15 | L47: VERY FINE SANDY LOAM
A48: =IF(AND(SUM('Texture Calculator'!$C$13:$C$17)='Texture Calculator'!$C$4,SUM($A$37:$A$47) = 0,'Texture Calculator'!$C$13+'Texture Calculator'!$C$14>=0.25, 'Texture Calculator'!$C$17>=0.5), 12, 0) ->  | B48: vcscs >= 25 && vfs >= 50 | C48: VERY FINE SANDY LOAM | D48: =IF(AND(SUM('Texture Calculator'!$C$26:$C$49)='Texture Calculator'!$C$5,SUM($D$37:$D$47) = 0,'Texture Calculator'!$C$26+'Texture Calculator'!#REF!>=0.25, 'Texture Calculator'!#REF!>=0.5), 12, 0) ->  | E48: vcscs >= 25 && vfs >= 50 | F48: VERY FINE SANDY LOAM | G48: =IF(AND(SUM('Texture Calculator'!#REF!)='Texture Calculator'!$C$6,SUM($G$37:$G$47) = 0,'Texture Calculator'!#REF!+'Texture Calculator'!#REF!>=0.25, 'Texture Calculator'!#REF!>=0.5), 12, 0) ->  | H48: vcscs >= 25 && vfs >= 50 | I48: VERY FINE SANDY LOAM | J48: =IF(AND(SUM('Texture Calculator'!$C$50:$C$55)='Texture Calculator'!$C$7,SUM($J$37:$J$47) = 0,'Texture Calculator'!#REF!+'Texture Calculator'!#REF!>=0.25, 'Texture Calculator'!$C$55>=0.5), 12, 0) ->  | K48: vcscs >= 25 && vfs >= 50 | L48: VERY FINE SANDY LOAM
A49: =IF(AND(SUM('Texture Calculator'!$C$13:$C$17)='Texture Calculator'!$C$4,SUM($A$37:$A$48) = 0,'Texture Calculator'!$C$13+'Texture Calculator'!$C$14+'Texture Calculator'!$C$15>=0.3, 'Texture Calculator'!$C$17>=0.5), 13,0) ->  | B49: vcscsms >= 30 && vfs >= 50 | C49: VERY FINE SANDY LOAM | D49: =IF(AND(SUM('Texture Calculator'!$C$26:$C$49)='Texture Calculator'!$C$5,SUM($D$37:$D$48) = 0,'Texture Calculator'!$C$26+'Texture Calculator'!#REF!+'Texture Calculator'!#REF!>=0.3, 'Texture Calculator'!#REF!>=0.5), 13,0) ->  | E49: vcscsms >= 30 && vfs >= 50 | F49: VERY FINE SANDY LOAM | G49: =IF(AND(SUM('Texture Calculator'!#REF!)='Texture Calculator'!$C$6,SUM($G$37:$G$48) = 0,'Texture Calculator'!#REF!+'Texture Calculator'!#REF!+'Texture Calculator'!#REF!>=0.3, 'Texture Calculator'!#REF!>=0.5), 13,0) ->  | H49: vcscsms >= 30 && vfs >= 50 | I49: VERY FINE SANDY LOAM | J49: =IF(AND(SUM('Texture Calculator'!$C$50:$C$55)='Texture Calculator'!$C$7,SUM($J$37:$J$48) = 0,'Texture Calculator'!#REF!+'Texture Calculator'!#REF!+'Texture Calculator'!$C$53>=0.3, 'Texture Calculator'!$C$55>=0.5), 13,0) ->  | K49: vcscsms >= 30 && vfs >= 50 | L49: VERY FINE SANDY LOAM
A50: =SUM(A37:A49)+1 ->  | D50: =SUM(D37:D49)+1 ->  | G50: =SUM(G37:G49)+1 ->  | J50: =SUM(J37:J49)+1 -> 

Sheet Sheet1
